Workbook

Sheet ПФХД
A2: СОГЛАСОВАНО | K2: УТВЕРЖДАЮ
A3: Заместитель министра образования Московской области | K3: директор
A4: (наименование должности лица, утверждающего документ) | K4: (наименование должности лица, утверждающего документ)
B5: Лазарев Андрей Александрович | L5: Домашина Ольга Владимировна
A6: (подпись) | B6: (расшифровка подписи) | K6: (подпись) | L6: (расшифровка подписи)
A7: "_____" _____________ ______ г. | K7: "_____" _____________ ______ г.
K8: (дата утверждения)
A10: План финансово-хозяйственной деятельности
A11: ГАОУ МО «ЛНИП» на 2024 год и плановый период 2025-2026 годов
G12: "05" февраля 2024 г. | K12: Форма по КФД
A13: Наименование государственного учреждения: | E13: Государственное автономное общеобразовательное учреждение Московской области «Королёвский лицей научно-инженерного профиля» | K13: Дата | L13: 05.02.2024
A14: Наименование органа, осуществляющего функции и полномочия учредителя: | E14: Министерство образования Московской области | K14: по ОКПО | L14: 42257606
A15: Адрес фактического местонахождения государственного учреждения: | E15: 141070, Россия, Московская область, г. Королёв, ул. Циолковского, дом 9 | K15: ИНН/КПП | L15: 5018044880/501801001
A16: Единица измерения: руб. | K16: по ОКЕИ | L16: 383
K17: по ОКЕИ | L17: 383
B19: Подписано. Заверено ЭП. | I19: Подписано. Заверено ЭП.
B20: ФИО: Лазарев Андрей Александрович | I20: ФИО: Домашина Ольга Владимировна
B21: Должность: Заместитель министра образования Московской области | I21: Должность: Директор
B22: Действует c 17.05.2023 09:34:00 по: 09.08.2024 09:34:00 | I22: Действует c 29.11.2022 15:17:00 по: 22.02.2024 15:17:00
B23: Серийный номер: DDDFABCBE09750D93362F1256FA1A9D87CB5B379 | I23: Серийный номер: 9F855521B7362898C4C7E6CBF4AC6B5D3B6FA5D7
B24: Издатель: Казначейство России | I24: Издатель: Казначейство России
B25: Время подписания: 06.02.2024 18:33:12 | I25: Время подписания: 06.02.2024 17:59:44

Sheet Раздел 1
A2: Раздел 1. Поступления и выплаты
A4: Наименование показателя | B4: Код строки | C4: Код по бюджетной классификации Российской Федерации | D4: Аналитический код (КОСГУ) | E4: Сумма
E5: на 2024 г. текущий финансовый год | F5: на 2025 г. первый год планового периода | G5: на 2026 г. второй год планового периода | H5: за пределами планового периода
A6: 1 | B6: 2 | C6: 3 | D6: 4 | E6: 5 | F6: 6 | G6: 7 | H6: 8
A7: Остаток средств на начало текущего финансового года | B7: 0001 | C7: х | D7: х | E7: 6,341,371.30 | F7: 0.00 | G7: 0.00 | H7: X
A8: Остаток средств на конец текущего финансового года | B8: 0002 | C8: х | D8: х | E8: 0.00 | F8: 0.00 | G8: 0.00 | H8: 0.00
A9: Доходы, всего: | B9: 1000 | E9: 99,038,535.98 | F9: 85,623,055.98 | G9: 85,623,055.98 | H9: X
A10: в том числе: доходы от собственности, всего | B10: 1100 | C10: 120 | E10: X | F10: X | G10: X | H10: X
A11: в том числе, аренда | B11: 1110 | C11: 120 | D11: 121 | E11: X | F11: X | G11: X | H11: X
A12: иные доходы от собственности | B12: 1120 | C12: 120 | D12: 129 | E12: X | F12: X | G12: X | H12: X
A13: доходы от оказания услуг, работ, компенсации затрат учреждений, всего | B13: 1200 | C13: 130 | E13: 85,623,055.98 | F13: 85,623,055.98 | G13: 85,623,055.98 | H13: X
A14: в том числе: субсидии на финансовое обеспечение выполнения государственного (муниципального) задания за счет средств бюджета публично-правового образования, создавшего учреждение | B14: 1210 | C14: 130 | D14: 131 | E14: 61,623,055.98 | F14: 61,623,055.98 | G14: 61,623,055.98 | H14: X
A15: доходы от возмещений Фондом пенсионного и социального страхования Российской Федерации расходов | B15: 1220 | C15: 130 | D15: 139 | E15: X | F15: X | G15: X | H15: X
A16: доходы от штрафов, пеней, иных сумм принудительного изъятия, всего | B16: 1300 | C16: 140 | E16: X | F16: X | G16: X | H16: X
A17: в том числе, неустойки | B17: 1310 | C17: 140 | D17: 141 | E17: X | F17: X | G17: X | H17: X
A18: безвозмездные денежные поступления, всего | B18: 1400 | C18: 150 | E18: 13,415,480.00 | F18: X | G18: X | H18: X
A19: в том числе: целевые субсидии | B19: 1410 | C19: 150 | E19: 13,415,480.00 | F19: X | G19: X | H19: X
A20: субсидии на осуществление капитальных вложений | B20: 1420 | C20: 150 | E20: X | F20: X | G20: X | H20: X
A21: безвозмездные поступления | B21: 1430 | C21: 150 | E21: X | F21: X | G21: X | H21: X
A22: пожертвования | B22: 1440 | C22: 150 | E22: X | F22: X | G22: X | H22: X
A23: прочие доходы, всего | B23: 1500 | C23: 180 | E23: X | F23: X | G23: X | H23: X
A24: иные доходы | B24: 1510 | C24: 180 | E24: X | F24: X | G24: X | H24: X
A25: доходы от операций с активами, всего | B25: 1900 | C25: х | E25: X | F25: X | G25: X | H25: X
A26: прочие поступления, всего | B26: 1980 | C26: х | E26: X | F26: X | G26: X | H26: X
A27: увеличение остатков денежных средств за счет возврата дебиторской задолженности прошлых лет | B27: 1981 | C27: 510 | E27: X | F27: X | G27: X | H27: X
A28: Расходы, всего | B28: 2000 | C28: х | E28: 105,303,826.93 | F28: 85,623,055.98 | G28: 85,623,055.98 | H28: 0.00
A29: в том числе: на выплаты персоналу, всего | B29: 2100 | C29: х | E29: 85,570,521.37 | F29: 69,675,583.26 | G29: 69,675,583.26 | H29: 0.00
A30: в том числе: фонд оплаты труда учреждений | B30: 2110 | C30: 111 | E30: 65,739,777.30 | F30: 53,465,348.52 | G30: 53,465,348.52 | H30: 0.00
A31: в том числе: оплата труда | B31: 2111 | C31: 111 | D31: 211 | E31: 65,309,777.30 | F31: 53,215,348.52 | G31: 53,215,348.52 | H31: 0.00
A32: в том числе: оплата труда Педагогических работников | B32: 2111.1 | C32: 111 | D32: 211 | E32: 50,171,073.99 | F32: 40,850,866.61 | G32: 40,850,866.61 | H32: 0.00
A33: в том числе Педагогические работники ("Указные") | B33: 2111.1.1 | C33: 111 | D33: 211 | E33: 50,171,073.99 | F33: 40,850,866.61 | G33: 40,850,866.61 | H33: 0.00
A34: оплата труда Прочих педагогических работников | B34: 2111.1.2 | C34: 111 | D34: 211 | E34: X | F34: X | G34: X | H34: X
A35: оплата труда Прочего персонала | B35: 2111.2 | C35: 111 | D35: 211 | E35: 15,138,703.31 | F35: 12,364,481.91 | G35: 12,364,481.91 | H35: 0.00
A36: в том числе: Руководящие работники | B36: 2111.2.1 | C36: 111 | D36: 211 | E36: 10,861,142.80 | F36: 9,351,698.40 | G36: 9,351,698.40 | H36: 0.00
A37: Административно-управленческий персонал | B37: 2111.2.2 | C37: 111 | D37: 211 | E37: X | F37: X | G37: X | H37: X
A38: в том числе: АУП "Указные" | B38: 2111.2.2.1 | C38: 111 | D38: 211 | E38: X | F38: X | G38: X | H38: X
A39: АУП прочие | B39: 2111.2.2.2 | C39: 111 | D39: 211 | E39: X | F39: X | G39: X | H39: X
A40: Учебно-вспомогательный персонал | B40: 2111.2.3 | C40: 111 | D40: 211 | E40: 3,031,259.68 | F40: 1,862,482.68 | G40: 1,862,482.68 | H40: 0.00
A41: Младший обслуживающий персонал | B41: 2111.2.4 | C41: 111 | D41: 211 | E41: 1,246,300.83 | F41: 1,150,300.83 | G41: 1,150,300.83 | H41: 0.00
A42: Работники культуры | B42: 2111.2.5 | C42: 111 | D42: 211 | E42: X | F42: X | G42: X | H42: X
A43: Социальные пособия и компенсация персоналу в денежной форме | B43: 2112 | C43: 111 | D43: 266 | E43: 430,000.00 | F43: 250,000.00 | G43: 250,000.00 | H43: 0.00
A44: прочие выплаты персоналу, в том числе компенсационного характера, всего | B44: 2120 | C44: 112 | E44: 162,600.00 | F44: 162,600.00 | G44: 162,600.00 | H44: 0.00
A45: в том числе: прочие несоциальные выплаты персоналу в денежной и натуральной формах, всего | B45: 2121 | C45: 112 | D45: 212 | E45: 12,400.00 | F45: 12,400.00 | G45: 12,400.00 | H45: 0.00
A46: транспортные услуги, всего | B46: 2122 | C46: 112 | D46: 222 | E46: X | F46: X | G46: X | H46: X
A47: прочие работы, услуги, за исключением разработки проектной и сметной документации для ремонта объектов нефинансовых активов, всего | B47: 2123 | C47: 112 | D47: 226 | E47: 150,200.00 | F47: 150,200.00 | G47: 150,200.00 | H47: 0.00
A48: социальное обеспечение населения, в том числе доставка социальных выплат, всего | B48: 2124 | C48: 112 | D48: 266 | E48: X | F48: X | G48: X | H48: X
A49: социальные компенсации персоналу в натуральной форме | B49: 2125 | C49: 112 | D49: 267 | E49: X | F49: X | G49: X | H49: X
A50: иные выплаты, за исключением фонда оплаты труда учреждения, для выполнения отдельных полномочий | B50: 2130 | C50: 113 | E50: X | F50: X | G50: X | H50: X
A51: в том числе: прочие несоциальные выплаты персоналу в денежной и натуральной формах, всего | B51: 2131 | C51: 113 | D51: 212 | E51: X | F51: X | G51: X | H51: X
A52: транспортные услуги, всего | B52: 2132 | C52: 113 | D52: 222 | E52: X | F52: X | G52: X | H52: X
A53: прочие работы, услуги, за исключением разработки проектной и сметной документации для ремонта объектов нефинансовых активов, всего | B53: 2133 | C53: 113 | D53: 226 | E53: X | F53: X | G53: X | H53: X
A54: социальное обеспечение населения, в том числе доставка социальных выплат, всего | B54: 2134 | C54: 113 | D54: 266 | E54: X | F54: X | G54: X | H54: X
A55: взносы по обязательному социальному страхованию на выплаты по оплате труда работников и иные выплаты работникам учреждений, всего | B55: 2140 | C55: 119 | E55: 19,668,144.07 | F55: 16,047,634.74 | G55: 16,047,634.74 | H55: 0.00
A56: в том числе: на выплаты по оплате труда | B56: 2141 | C56: 119 | D56: 213 | E56: 19,668,144.07 | F56: 16,047,634.74 | G56: 16,047,634.74 | H56: 0.00
A57: иные выплаты работникам | B57: 2142 | C57: 119 | E57: X | F57: X | G57: X | H57: X
A58: социальные и иные выплаты населению, всего | B58: 2200 | C58: 300 | E58: 250,000.00 | F58: 0.00 | G58: 0.00 | H58: 0.00
A59: в том числе: социальные выплаты гражданам, кроме публичных нормативных социальных выплат | B59: 2210 | C59: 320 | D59: 260 | E59: 250,000.00 | F59: 0.00 | G59: 0.00 | H59: 0.00
A60: из них: пособия, компенсации и иные социальные выплаты гражданам, кроме публичных нормативных обязательств | B60: 2211 | C60: 321 | D60: 260 | E60: 250,000.00 | F60: 0.00 | G60: 0.00 | H60: 0.00
A61: выплата стипендий, осуществление иных расходов на социальную поддержку обучающихся за счет средств стипендиального фонда | B61: 2220 | C61: 340 | E61: X | F61: X | G61: X | H61: X
A62: выплата стипендий | B62: 2221 | C62: 340 | D62: 262 | E62: X | F62: X | G62: X | H62: X
A63: осуществление иных расходов на социальную поддержку обучающихся за счет средств стипендиального фонда | B63: 2222 | C63: 340 | D63: 296 | E63: X | F63: X | G63: X | H63: X
A64: на премирование физических лиц за достижения в области культуры, искусства, образования, науки и техники, а также на предоставление грантов с целью поддержки проектов в области науки, культуры и искусства | B64: 2230 | C64: 350 | D64: 296 | E64: X | F64: X | G64: X | H64: X
A65: иные выплаты населению | B65: 2240 | C65: 360 | D65: 262 | E65: X | F65: X | G65: X | H65: X
A66: уплата налогов, сборов и иных платежей, всего | B66: 2300 | C66: 850 | E66: 780,000.00 | F66: 780,000.00 | G66: 780,000.00 | H66: 0.00
A67: из них: налог на имущество организаций и земельный налог | B67: 2310 | C67: 851 | D67: 291 | E67: 740,000.00 | F67: 740,000.00 | G67: 740,000.00 | H67: 0.00
A68: иные налоги (включаемые в состав расходов) в бюджеты бюджетной системы Российской Федерации, а также государственная пошлина | B68: 2320 | C68: 852 | D68: 291 | E68: 5,000.00 | F68: 5,000.00 | G68: 5,000.00 | H68: 0.00
A69: уплата штрафов (в том числе административных), пеней и иных платежей | B69: 2330 | C69: 853 | E69: 35,000.00 | F69: 35,000.00 | G69: 35,000.00 | H69: 0.00
A70: уплата штрафов (в том числе административных), пеней | B70: 2331 | C70: 853 | D70: 291 - 295 | E70: 35,000.00 | F70: 35,000.00 | G70: 35,000.00 | H70: 0.00
A71: иные выплаты текущего характера физическим лицам | B71: 2332 | C71: 853 | D71: 296 | E71: X | F71: X | G71: X | H71: X
A72: иные выплаты текущего характера организациям | B72: 2333 | C72: 853 | D72: 297 | E72: X | F72: X | G72: X | H72: X
A73: безвозмездные перечисления организациям и физическим лицам | B73: 2400 | C73: х | E73: X | F73: X | G73: X | H73: X
A74: из них: гранты, предоставляемые бюджетным учреждениям | B74: 2410 | C74: 613 | D74: 241 | E74: X | F74: X | G74: X | H74: X
A75: гранты, предоставляемые автономным учреждениям | B75: 2420 | C75: 623 | D75: 241 | E75: X | F75: X | G75: X | H75: X
A76: гранты, предоставляемые иным некоммерческим организациям (за исключением бюджетных и автономных учреждений) | B76: 2430 | C76: 634 | D76: 242 | E76: X | F76: X | G76: X | H76: X
A77: гранты, предоставляемые другим организациям и физическим лицам | B77: 2440 | C77: 810 | D77: 242 | E77: X | F77: X | G77: X | H77: X
A78: взносы в международные организации | B78: 2450 | C78: 862 | D78: 253 | E78: X | F78: X | G78: X | H78: X
A79: в том числе: перечисления международным организациям, всего | B79: 2451 | C79: 862 | D79: 253 | E79: X | F79: X | G79: X | H79: X
A80: иные выплаты текущего характера физическим лицам и организациям, всего | B80: 2452 | C80: 862 | D80: 297 | E80: X | F80: X | G80: X | H80: X
A81: платежи в целях обеспечения реализации соглашений с правительствами иностранных государств и международными организациями | B81: 2460 | C81: 863 | E81: X | F81: X | G81: X | H81: X
A82: в том числе: перечисления международным организациям, всего | B82: 2461 | C82: 863 | D82: 253 | E82: X | F82: X | G82: X | H82: X
A83: иные выплаты текущего характера физическим лицам и организациям, всего | B83: 2462 | C83: 863 | D83: 297 | E83: X | F83: X | G83: X | H83: X
A84: прочие выплаты (кроме выплат на закупку товаров, работ, услуг) | B84: 2500 | C84: х | E84: X | F84: X | G84: X | H84: X
A85: исполнение судебных актов Российской Федерации и мировых соглашений по возмещению вреда, причиненного в результате деятельности учреждения | B85: 2520 | C85: 831 | D85: 290 | E85: X | F85: X | G85: X | H85: X
A86: расходы на закупку товаров, работ, услуг, всего | B86: 2600 | C86: х | E86: 18,703,305.56 | F86: 15,167,472.72 | G86: 15,167,472.72 | H86: 0.00
A87: в том числе: закупку научно-исследовательских, опытно-конструкторских и технологических работ | B87: 2610 | C87: 241 | D87: 226 | E87: X | F87: X | G87: X | H87: X
A88: закупку товаров, работ, услуг в целях капитального ремонта государственного (муниципального) имущества | B88: 2630 | C88: 243 | E88: X | F88: X | G88: X | H88: X
A89: закупку товаров, работ, услуг в целях капитального ремонта государственного (муниципального) имущества | B89: 2631 | C89: 243 | E89: X | F89: X | G89: X | H89: X
A90: закупку товаров, работ, услуг в целях капитального ремонта государственного (муниципального) имущества | B90: 2631.1 | C90: 243 | D90: 225 | E90: X | F90: X | G90: X | H90: X
A91: закупку товаров, работ, услуг в целях капитального ремонта государственного (муниципального) имущества | B91: 2631.2 | C91: 243 | D91: 226 | E91: X | F91: X | G91: X | H91: X
A92: закупка товаров, работ, услуг для целей капитальных вложений | B92: 2632 | C92: 243 | D92: 347 | E92: X | F92: X | G92: X | H92: X
A93: закупка товаров, работ, услуг для целей капитального ремонта | B93: 2633 | C93: 243 | D93: 344 | E93: X | F93: X | G93: X | H93: X
A94: прочую закупку товаров, работ и услуг, всего | B94: 2640 | C94: 244 | E94: 15,837,690.38 | F94: 12,572,490.84 | G94: 12,572,490.84 | H94: 0.00
A95: в том числе: расходы, всего | B95: 2641 | C95: 244 | E95: 13,632,597.20 | F95: 10,866,397.66 | G95: 10,866,397.66 | H95: 0.00
A96: в том числе: услуги связи, всего | B96: 2641.01 | C96: 244 | D96: 221 | E96: 42,976.49 | F96: 41,352.95 | G96: 41,352.95 | H96: 0.00
A97: транспортные услуги, всего | B97: 2641.02 | C97: 244 | D97: 222 | E97: 100,000.00 | F97: 100,000.00 | G97: 100,000.00 | H97: 0.00
A98: коммунальные услуги (за исключением закупки энергетических ресурсов) | B98: 2641.03 | C98: 244 | D98: 223 | E98: 239,282.30 | F98: 239,282.30 | G98: 239,282.30 | H98: 0.00
A99: арендная плата за пользование имуществом, всего | B99: 2641.04 | C99: 244 | D99: 224 | E99: X | F99: X | G99: X | H99: X
A100: работы, услуги по содержанию имущества | B100: 2641.05 | C100: 244 | D100: 225 | E100: 3,684,280.69 | F100: 1,677,280.69 | G100: 1,677,280.69 | H100: 0.00
A101: прочие работы, услуги | B101: 2641.06 | C101: 244 | D101: 226 | E101: 9,566,057.72 | F101: 8,808,481.72 | G101: 8,808,481.72 | H101: 0.00
A102: страхование, всего | B102: 2641.07 | C102: 244 | D102: 227 | E102: X | F102: X | G102: X | H102: X
A103: в том числе: поступление нефинансовых активов, всего | B103: 2642 | C103: 244 | E103: 2,205,093.18 | F103: 1,706,093.18 | G103: 1,706,093.18 | H103: 0.00
A104: в том числе: увеличение стоимости основных средств, всего | B104: 2642.01 | C104: 244 | D104: 310 | E104: 756,000.00 | F104: 510,000.00 | G104: 510,000.00 | H104: 0.00
A105: увеличение стоимости нематериальных активов, всего | B105: 2642.02 | C105: 244 | D105: 320 | E105: X | F105: X | G105: X | H105: X
A106: увеличение стоимости непроизводственных активов, всего | B106: 2642.03 | C106: 244 | D106: 330 | E106: X | F106: X | G106: X | H106: X
A107: увеличение стоимости лекарственных препаратов и материалов, применяемых в медицинских целях, всего | B107: 2642.04 | C107: 244 | D107: 341 | E107: X | F107: X | G107: X | H107: X
A108: увеличение стоимости продуктов питания, всего | B108: 2642.05 | C108: 244 | D108: 342 | E108: X | F108: X | G108: X | H108: X
A109: увеличение стоимости горюче-смазочных материалов, всего | B109: 2642.06 | C109: 244 | D109: 343 | E109: X | F109: X | G109: X | H109: X
A110: увеличение стоимости строительных материалов, всего | B110: 2642.07 | C110: 244 | D110: 344 | E110: 100,000.00 | F110: 100,000.00 | G110: 100,000.00 | H110: 0.00
A111: увеличение стоимости мягкого инвентаря | B111: 2642.08 | C111: 244 | D111: 345 | E111: 230,000.00 | F111: 0.00 | G111: 0.00 | H111: 0.00
A112: увеличение стоимости прочих материальных запасов | B112: 2642.09 | C112: 244 | D112: 346 | E112: 1,034,093.18 | F112: 1,011,093.18 | G112: 1,011,093.18 | H112: 0.00
A113: увеличение стоимости материальных запасов для целей капитальных вложений, всего | B113: 2642.10 | C113: 244 | D113: 347 | E113: X | F113: X | G113: X | H113: X
A114: увеличение стоимости прочих материальных запасов однократного применения | B114: 2642.11 | C114: 244 | D114: 349 | E114: 85,000.00 | F114: 85,000.00 | G114: 85,000.00 | H114: 0.00
A115: увеличение стоимости неисключительных прав на результаты интеллектуальной деятельности с неопределенным сроком полезного использования | B115: 2642.12 | C115: 244 | D115: 353 | E115: X | F115: X | G115: X | H115: X
A116: закупка товаров, работ, услуг в целях создания, развития, эксплуатации и вывода из эксплуатации государственных информационных систем | B116: 2650 | C116: 246 | E116: X | F116: X | G116: X | H116: X
A117: закупка энергетических ресурсов | B117: 2660 | C117: 247 | D117: 223 | E117: 2,865,615.18 | F117: 2,594,981.88 | G117: 2,594,981.88 | H117: 0.00
A118: капитальные вложения в объекты государственной (муниципальной) собственности, всего | B118: 2700 | C118: 400 | E118: X | F118: X | G118: X | H118: X
A119: в том числе: приобретение объектов недвижимого имущества государственными (муниципальными) учреждениями | B119: 2710 | C119: 406 | E119: X | F119: X | G119: X | H119: X
A120: строительство (реконструкция) объектов недвижимого имущества государственными (муниципальными) учреждениями | B120: 2720 | C120: 407 | E120: X | F120: X | G120: X | H120: X
A121: Выплаты, уменьшающие доход, всего | B121: 3000 | C121: 100 | E121: X | F121: X | G121: X | H121: X
A122: в том числе: налог на прибыль | B122: 3010 | E122: X | F122: X | G122: X | H122: X
A123: налог на добавленную стоимость | B123: 3020 | E123: X | F123: X | G123: X | H123: X
A124: прочие налоги, уменьшающие доход | B124: 3030 | E124: X | F124: X | G124: X | H124: X
A125: Прочие выплаты, всего | B125: 4000 | C125: х | E125: 76,080.35 | F125: 0.00 | G125: 0.00 | H125: X
A126: из них: возврат в бюджет средств субсидии | B126: 4010 | C126: 610 | E126: 76,080.35 | F126: 0.00 | G126: 0.00 | H126: X
A127: возврат в бюджет средств госзадания | B127: 4020 | C127: 610 | E127: X | F127: X | G127: X | H127: X

Sheet Детализация по КФО
A2: Детализация по КФО
A4: Наименование показателя | B4: Код строки | C4: Код по бюджетной классификации Российской Федерации | D4: Аналитический код | E4: Сумма
E5: на 2024 г. текущий финансовый год | F5: в т.ч. субидия на финансовое обеспечение выполнения государственного задания | G5: в т.ч. субидии, предоставляемые в соответствии с абзацем вторым пунка 1 статьи 78.1 Бюджетного кодекса РФ | H5: в т.ч. поступления от оказания услуг (выполнения работ) на платной основе и от иной приносящей доход деятельности | I5: на 2025 г. первый год планового периода | J5: на 2026 г. второй год планового периода | K5: за переделами планового периода
A6: 1 | B6: 2 | C6: 3 | D6: 4 | E6: 5 | F6: 6 | G6: 7 | H6: 8 | I6: 9 | J6: 10 | K6: 11
A7: Остаток средств на начало текущего финансового года | B7: 0001 | C7: х | D7: х | E7: 6,341,371.30 | F7: 1,722,065.15 | G7: 76,080.35 | H7: 4,543,225.80 | I7: 0.00 | J7: 0.00 | K7: 0.00
A8: Остаток средств на конец текущего финансового года | B8: 0002 | C8: х | D8: х | E8: 0.00 | F8: 0.00 | G8: 0.00 | H8: 0.00 | I8: 0.00 | J8: 0.00 | K8: 0.00
A9: Доходы, всего: | B9: 1000 | E9: 99,038,535.98 | F9: 61,623,055.98 | G9: 13,415,480.00 | H9: 24,000,000.00 | I9: 85,623,055.98 | J9: 85,623,055.98 | K9: 0.00
A10: в том числе: доходы от собственности, всего | B10: 1100 | C10: 120 | E10: 0.00 | F10: X | G10: X | H10: 0.00 | I10: 0.00 | J10: 0.00 | K10: 0.00
A11: в том числе, аренда | B11: 1110 | C11: 120 | D11: 121 | E11: 0.00 | F11: X | G11: X | H11: 0.00 | I11: 0.00 | J11: 0.00 | K11: 0.00
A12: иные доходы от собственности | B12: 1120 | C12: 120 | D12: 129 | E12: 0.00 | F12: X | G12: X | H12: 0.00 | I12: 0.00 | J12: 0.00 | K12: 0.00
A13: доходы от оказания услуг, работ, компенсации затрат учреждений, всего | B13: 1200 | C13: 130 | E13: 85,623,055.98 | F13: 61,623,055.98 | G13: X | H13: 24,000,000.00 | I13: 85,623,055.98 | J13: 85,623,055.98 | K13: 0.00
A14: в том числе: субсидии на финансовое обеспечение выполнения государственного (муниципального) задания за счет средств бюджета публично-правового образования, создавшего учреждение | B14: 1210 | C14: 130 | D14: 131 | E14: 61,623,055.98 | F14: 61,623,055.98 | G14: X | H14: 0.00 | I14: 61,623,055.98 | J14: 61,623,055.98 | K14: 0.00
A15: доходы от возмещений Фондом пенсионного и социального страхования Российской Федерации расходов | B15: 1220 | C15: 130 | D15: 139 | E15: 0.00 | F15: X | G15: X | H15: 0.00 | I15: 0.00 | J15: 0.00 | K15: 0.00
A16: доходы от штрафов, пеней, иных сумм принудительного изъятия, всего | B16: 1300 | C16: 140 | E16: 0.00 | F16: X | G16: X | H16: 0.00 | I16: 0.00 | J16: 0.00 | K16: 0.00
A17: в том числе, неустойки | B17: 1310 | C17: 140 | D17: 141 | E17: 0.00 | F17: X | G17: X | H17: 0.00 | I17: 0.00 | J17: 0.00 | K17: 0.00
A18: безвозмездные денежные поступления, всего | B18: 1400 | C18: 150 | E18: 13,415,480.00 | F18: X | G18: 13,415,480.00 | H18: 0.00 | I18: 0.00 | J18: 0.00 | K18: 0.00
A19: в том числе: целевые субсидии | B19: 1410 | C19: 150 | E19: 13,415,480.00 | F19: X | G19: 13,415,480.00 | H19: 0.00 | I19: 0.00 | J19: 0.00 | K19: 0.00
A20: субсидии на осуществление капитальных вложений | B20: 1420 | C20: 150 | E20: 0.00 | F20: X | G20: X | H20: 0.00 | I20: 0.00 | J20: 0.00 | K20: 0.00
A21: безвозмездные поступления | B21: 1430 | C21: 150 | E21: 0.00 | F21: X | G21: X | H21: 0.00 | I21: 0.00 | J21: 0.00 | K21: 0.00
A22: пожертвования | B22: 1440 | C22: 150 | E22: 0.00 | F22: X | G22: X | H22: 0.00 | I22: 0.00 | J22: 0.00 | K22: 0.00
A23: прочие доходы, всего | B23: 1500 | C23: 180 | E23: 0.00 | F23: X | G23: X | H23: 0.00 | I23: 0.00 | J23: 0.00 | K23: 0.00
A24: иные доходы | B24: 1510 | C24: 180 | E24: 0.00 | F24: X | G24: X | H24: 0.00 | I24: 0.00 | J24: 0.00 | K24: 0.00
A25: доходы от операций с активами, всего | B25: 1900 | C25: х | E25: 0.00 | F25: X | G25: X | H25: 0.00 | I25: 0.00 | J25: 0.00 | K25: 0.00
A26: прочие поступления, всего | B26: 1980 | C26: х | E26: 0.00 | F26: X | G26: X | H26: 0.00 | I26: 0.00 | J26: 0.00 | K26: 0.00
A27: увеличение остатков денежных средств за счет возврата дебиторской задолженности прошлых лет | B27: 1981 | C27: 510 | E27: 0.00 | F27: X | G27: X | H27: 0.00 | I27: 0.00 | J27: 0.00 | K27: 0.00
A28: Расходы, всего | B28: 2000 | C28: х | E28: 105,303,826.93 | F28: 63,345,121.13 | G28: 13,415,480.00 | H28: 28,543,225.80 | I28: 85,623,055.98 | J28: 85,623,055.98 | K28: 0.00
A29: в том числе: на выплаты персоналу, всего | B29: 2100 | C29: х | E29: 85,570,521.37 | F29: 50,992,115.26 | G29: 13,185,480.00 | H29: 21,392,926.11 | I29: 69,675,583.26 | J29: 69,675,583.26 | K29: 0.00
A30: в том числе: фонд оплаты труда учреждений | B30: 2110 | C30: 111 | E30: 65,739,777.30 | F30: 39,226,939.52 | G30: 10,127,096.78 | H30: 16,385,741.00 | I30: 53,465,348.52 | J30: 53,465,348.52 | K30: 0.00
A31: в том числе: оплата труда | B31: 2111 | C31: 111 | D31: 211 | E31: 65,309,777.30 | F31: 38,846,939.52 | G31: 10,127,096.78 | H31: 16,335,741.00 | I31: 53,215,348.52 | J31: 53,215,348.52 | K31: 0.00
A32: в том числе: оплата труда Педагогических работников | B32: 2111.1 | C32: 111 | D32: 211 | E32: 50,171,073.99 | F32: 29,810,121.89 | G32: 9,320,207.38 | H32: 11,040,744.72 | I32: 40,850,866.61 | J32: 40,850,866.61 | K32: 0.00
A33: в том числе Педагогические работники ("Указные") | B33: 2111.1.1 | C33: 111 | D33: 211 | E33: 50,171,073.99 | F33: 29,810,121.89 | G33: 9,320,207.38 | H33: 11,040,744.72 | I33: 40,850,866.61 | J33: 40,850,866.61 | K33: 0.00
A34: оплата труда Прочих педагогических работников | B34: 2111.1.2 | C34: 111 | D34: 211 | E34: 0.00 | F34: X | G34: X | H34: 0.00 | I34: 0.00 | J34: 0.00 | K34: 0.00
A35: оплата труда Прочего персонала | B35: 2111.2 | C35: 111 | D35: 211 | E35: 15,138,703.31 | F35: 9,036,817.63 | G35: 806,889.40 | H35: 5,294,996.28 | I35: 12,364,481.91 | J35: 12,364,481.91 | K35: 0.00
A36: в том числе: Руководящие работники | B36: 2111.2.1 | C36: 111 | D36: 211 | E36: 10,861,142.80 | F36: 7,401,698.40 | G36: 806,889.40 | H36: 2,652,555.00 | I36: 9,351,698.40 | J36: 9,351,698.40 | K36: 0.00
A37: Административно-управленческий персонал | B37: 2111.2.2 | C37: 111 | D37: 211 | E37: 0.00 | F37: X | G37: X | H37: 0.00 | I37: 0.00 | J37: 0.00 | K37: 0.00
A38: в том числе: АУП "Указные" | B38: 2111.2.2.1 | C38: 111 | D38: 211 | E38: 0.00 | F38: X | G38: X | H38: 0.00 | I38: 0.00 | J38: 0.00 | K38: 0.00
A39: АУП прочие | B39: 2111.2.2.2 | C39: 111 | D39: 211 | E39: 0.00 | F39: X | G39: X | H39: 0.00 | I39: 0.00 | J39: 0.00 | K39: 0.00
A40: Учебно-вспомогательный персонал | B40: 2111.2.3 | C40: 111 | D40: 211 | E40: 3,031,259.68 | F40: 438,818.40 | G40: X | H40: 2,592,441.28 | I40: 1,862,482.68 | J40: 1,862,482.68 | K40: 0.00
A41: Младший обслуживающий персонал | B41: 2111.2.4 | C41: 111 | D41: 211 | E41: 1,246,300.83 | F41: 1,196,300.83 | G41: X | H41: 50,000.00 | I41: 1,150,300.83 | J41: 1,150,300.83 | K41: 0.00
A42: Работники культуры | B42: 2111.2.5 | C42: 111 | D42: 211 | E42: 0.00 | F42: X | G42: X | H42: 0.00 | I42: 0.00 | J42: 0.00 | K42: 0.00
A43: Социальные пособия и компенсация персоналу в денежной форме | B43: 2112 | C43: 111 | D43: 266 | E43: 430,000.00 | F43: 380,000.00 | G43: X | H43: 50,000.00 | I43: 250,000.00 | J43: 250,000.00 | K43: 0.00
A44: прочие выплаты персоналу, в том числе компенсационного характера, всего | B44: 2120 | C44: 112 | E44: 162,600.00 | F44: 33,400.00 | G44: X | H44: 129,200.00 | I44: 162,600.00 | J44: 162,600.00 | K44: 0.00
A45: в том числе: прочие несоциальные выплаты персоналу в денежной и натуральной формах, всего | B45: 2121 | C45: 112 | D45: 212 | E45: 12,400.00 | F45: 3,200.00 | G45: X | H45: 9,200.00 | I45: 12,400.00 | J45: 12,400.00 | K45: 0.00
A46: транспортные услуги, всего | B46: 2122 | C46: 112 | D46: 222 | E46: 0.00 | F46: X | G46: X | H46: 0.00 | I46: 0.00 | J46: 0.00 | K46: 0.00
A47: прочие работы, услуги, за исключением разработки проектной и сметной документации для ремонта объектов нефинансовых активов, всего | B47: 2123 | C47: 112 | D47: 226 | E47: 150,200.00 | F47: 30,200.00 | G47: X | H47: 120,000.00 | I47: 150,200.00 | J47: 150,200.00 | K47: 0.00
A48: социальное обеспечение населения, в том числе доставка социальных выплат, всего | B48: 2124 | C48: 112 | D48: 266 | E48: 0.00 | F48: X | G48: X | H48: 0.00 | I48: 0.00 | J48: 0.00 | K48: 0.00
A49: социальные компенсации персоналу в натуральной форме | B49: 2125 | C49: 112 | D49: 267 | E49: 0.00 | F49: X | G49: X | H49: 0.00 | I49: 0.00 | J49: 0.00 | K49: 0.00
A50: иные выплаты, за исключением фонда оплаты труда учреждения, для выполнения отдельных полномочий | B50: 2130 | C50: 113 | E50: 0.00 | F50: X | G50: X | H50: 0.00 | I50: 0.00 | J50: 0.00 | K50: 0.00
A51: в том числе: прочие несоциальные выплаты персоналу в денежной и натуральной формах, всего | B51: 2131 | C51: 113 | D51: 212 | E51: 0.00 | F51: X | G51: X | H51: 0.00 | I51: 0.00 | J51: 0.00 | K51: 0.00
A52: транспортные услуги, всего | B52: 2132 | C52: 113 | D52: 222 | E52: 0.00 | F52: X | G52: X | H52: 0.00 | I52: 0.00 | J52: 0.00 | K52: 0.00
A53: прочие работы, услуги, за исключением разработки проектной и сметной документации для ремонта объектов нефинансовых активов, всего | B53: 2133 | C53: 113 | D53: 226 | E53: 0.00 | F53: X | G53: X | H53: 0.00 | I53: 0.00 | J53: 0.00 | K53: 0.00
A54: социальное обеспечение населения, в том числе доставка социальных выплат, всего | B54: 2134 | C54: 113 | D54: 266 | E54: 0.00 | F54: X | G54: X | H54: 0.00 | I54: 0.00 | J54: 0.00 | K54: 0.00
A55: взносы по обязательному социальному страхованию на выплаты по оплате труда работников и иные выплаты работникам учреждений, всего | B55: 2140 | C55: 119 | E55: 19,668,144.07 | F55: 11,731,775.74 | G55: 3,058,383.22 | H55: 4,877,985.11 | I55: 16,047,634.74 | J55: 16,047,634.74 | K55: 0.00
A56: в том числе: на выплаты по оплате труда | B56: 2141 | C56: 119 | D56: 213 | E56: 19,668,144.07 | F56: 11,731,775.74 | G56: 3,058,383.22 | H56: 4,877,985.11 | I56: 16,047,634.74 | J56: 16,047,634.74 | K56: 0.00
A57: иные выплаты работникам | B57: 2142 | C57: 119 | E57: 0.00 | F57: X | G57: X | H57: 0.00 | I57: 0.00 | J57: 0.00 | K57: 0.00
A58: социальные и иные выплаты населению, всего | B58: 2200 | C58: 300 | E58: 250,000.00 | F58: 243,000.00 | G58: X | H58: 7,000.00 | I58: 0.00 | J58: 0.00 | K58: 0.00
A59: в том числе: социальные выплаты гражданам, кроме публичных нормативных социальных выплат | B59: 2210 | C59: 320 | D59: 260 | E59: 250,000.00 | F59: 243,000.00 | G59: X | H59: 7,000.00 | I59: 0.00 | J59: 0.00 | K59: 0.00
A60: из них: пособия, компенсации и иные социальные выплаты гражданам, кроме публичных нормативных обязательств | B60: 2211 | C60: 321 | D60: 260 | E60: 250,000.00 | F60: 243,000.00 | G60: X | H60: 7,000.00 | I60: 0.00 | J60: 0.00 | K60: 0.00
A61: выплата стипендий, осуществление иных расходов на социальную поддержку обучающихся за счет средств стипендиального фонда | B61: 2220 | C61: 340 | E61: 0.00 | F61: X | G61: X | H61: 0.00 | I61: 0.00 | J61: 0.00 | K61: 0.00
A62: выплата стипендий | B62: 2221 | C62: 340 | D62: 262 | E62: 0.00 | F62: X | G62: X | H62: 0.00 | I62: 0.00 | J62: 0.00 | K62: 0.00
A63: осуществление иных расходов на социальную поддержку обучающихся за счет средств стипендиального фонда | B63: 2222 | C63: 340 | D63: 296 | E63: 0.00 | F63: X | G63: X | H63: 0.00 | I63: 0.00 | J63: 0.00 | K63: 0.00
A64: на премирование физических лиц за достижения в области культуры, искусства, образования, науки и техники, а также на предоставление грантов с целью поддержки проектов в области науки, культуры и искусства | B64: 2230 | C64: 350 | D64: 296 | E64: 0.00 | F64: X | G64: X | H64: 0.00 | I64: 0.00 | J64: 0.00 | K64: 0.00
A65: иные выплаты населению | B65: 2240 | C65: 360 | D65: 262 | E65: 0.00 | F65: X | G65: X | H65: 0.00 | I65: 0.00 | J65: 0.00 | K65: 0.00
A66: уплата налогов, сборов и иных платежей, всего | B66: 2300 | C66: 850 | E66: 780,000.00 | F66: 750,000.00 | G66: X | H66: 30,000.00 | I66: 780,000.00 | J66: 780,000.00 | K66: 0.00
A67: из них: налог на имущество организаций и земельный налог | B67: 2310 | C67: 851 | D67: 291 | E67: 740,000.00 | F67: 740,000.00 | G67: X | H67: 0.00 | I67: 740,000.00 | J67: 740,000.00 | K67: 0.00
A68: иные налоги (включаемые в состав расходов) в бюджеты бюджетной системы Российской Федерации, а также государственная пошлина | B68: 2320 | C68: 852 | D68: 291 | E68: 5,000.00 | F68: 5,000.00 | G68: X | H68: 0.00 | I68: 5,000.00 | J68: 5,000.00 | K68: 0.00
A69: уплата штрафов (в том числе административных), пеней и иных платежей | B69: 2330 | C69: 853 | E69: 35,000.00 | F69: 5,000.00 | G69: X | H69: 30,000.00 | I69: 35,000.00 | J69: 35,000.00 | K69: 0.00
A70: уплата штрафов (в том числе административных), пеней | B70: 2331 | C70: 853 | D70: 291 - 295 | E70: 35,000.00 | F70: 5,000.00 | G70: X | H70: 30,000.00 | I70: 35,000.00 | J70: 35,000.00 | K70: 0.00
A71: иные выплаты текущего характера физическим лицам | B71: 2332 | C71: 853 | D71: 296 | E71: 0.00 | F71: X | G71: X | H71: 0.00 | I71: 0.00 | J71: 0.00 | K71: 0.00
A72: иные выплаты текущего характера организациям | B72: 2333 | C72: 853 | D72: 297 | E72: 0.00 | F72: X | G72: X | H72: 0.00 | I72: 0.00 | J72: 0.00 | K72: 0.00
A73: безвозмездные перечисления организациям и физическим лицам | B73: 2400 | C73: х | E73: 0.00 | F73: X | G73: X | H73: 0.00 | I73: 0.00 | J73: 0.00 | K73: 0.00
A74: из них: гранты, предоставляемые бюджетным учреждениям | B74: 2410 | C74: 613 | D74: 241 | E74: 0.00 | F74: X | G74: X | H74: 0.00 | I74: 0.00 | J74: 0.00 | K74: 0.00
A75: гранты, предоставляемые автономным учреждениям | B75: 2420 | C75: 623 | D75: 241 | E75: 0.00 | F75: X | G75: X | H75: 0.00 | I75: 0.00 | J75: 0.00 | K75: 0.00
A76: гранты, предоставляемые иным некоммерческим организациям (за исключением бюджетных и автономных учреждений) | B76: 2430 | C76: 634 | D76: 242 | E76: 0.00 | F76: X | G76: X | H76: 0.00 | I76: 0.00 | J76: 0.00 | K76: 0.00
A77: гранты, предоставляемые другим организациям и физическим лицам | B77: 2440 | C77: 810 | D77: 242 | E77: 0.00 | F77: X | G77: X | H77: 0.00 | I77: 0.00 | J77: 0.00 | K77: 0.00
A78: взносы в международные организации | B78: 2450 | C78: 862 | D78: 253 | E78: 0.00 | F78: X | G78: X | H78: 0.00 | I78: 0.00 | J78: 0.00 | K78: 0.00
A79: в том числе: перечисления международным организациям, всего | B79: 2451 | C79: 862 | D79: 253 | E79: 0.00 | F79: X | G79: X | H79: 0.00 | I79: 0.00 | J79: 0.00 | K79: 0.00
A80: иные выплаты текущего характера физическим лицам и организациям, всего | B80: 2452 | C80: 862 | D80: 297 | E80: 0.00 | F80: X | G80: X | H80: 0.00 | I80: 0.00 | J80: 0.00 | K80: 0.00
A81: платежи в целях обеспечения реализации соглашений с правительствами иностранных государств и международными организациями | B81: 2460 | C81: 863 | E81: 0.00 | F81: X | G81: X | H81: 0.00 | I81: 0.00 | J81: 0.00 | K81: 0.00
A82: в том числе: перечисления международным организациям, всего | B82: 2461 | C82: 863 | D82: 253 | E82: 0.00 | F82: X | G82: X | H82: 0.00 | I82: 0.00 | J82: 0.00 | K82: 0.00
A83: иные выплаты текущего характера физическим лицам и организациям, всего | B83: 2462 | C83: 863 | D83: 297 | E83: 0.00 | F83: X | G83: X | H83: 0.00 | I83: 0.00 | J83: 0.00 | K83: 0.00
A84: прочие выплаты (кроме выплат на закупку товаров, работ, услуг) | B84: 2500 | C84: х | E84: 0.00 | F84: X | G84: X | H84: 0.00 | I84: 0.00 | J84: 0.00 | K84: 0.00
A85: исполнение судебных актов Российской Федерации и мировых соглашений по возмещению вреда, причиненного в результате деятельности учреждения | B85: 2520 | C85: 831 | D85: 290 | E85: 0.00 | F85: X | G85: X | H85: 0.00 | I85: 0.00 | J85: 0.00 | K85: 0.00
A86: расходы на закупку товаров, работ, услуг, всего | B86: 2600 | C86: х | E86: 18,703,305.56 | F86: 11,360,005.87 | G86: 230,000.00 | H86: 7,113,299.69 | I86: 15,167,472.72 | J86: 15,167,472.72 | K86: 0.00
A87: в том числе: закупку научно-исследовательских, опытно-конструкторских и технологических работ | B87: 2610 | C87: 241 | D87: 226 | E87: 0.00 | F87: X | G87: X | H87: 0.00 | I87: 0.00 | J87: 0.00 | K87: 0.00
A88: закупку товаров, работ, услуг в целях капитального ремонта государственного (муниципального) имущества | B88: 2630 | C88: 243 | E88: 0.00 | F88: X | G88: X | H88: 0.00 | I88: 0.00 | J88: 0.00 | K88: 0.00
A89: закупку товаров, работ, услуг в целях капитального ремонта государственного (муниципального) имущества | B89: 2631 | C89: 243 | E89: 0.00 | F89: X | G89: X | H89: 0.00 | I89: 0.00 | J89: 0.00 | K89: 0.00
A90: закупку товаров, работ, услуг в целях капитального ремонта государственного (муниципального) имущества | B90: 2631.1 | C90: 243 | D90: 225 | E90: 0.00 | F90: X | G90: X | H90: 0.00 | I90: 0.00 | J90: 0.00 | K90: 0.00
A91: закупку товаров, работ, услуг в целях капитального ремонта государственного (муниципального) имущества | B91: 2631.2 | C91: 243 | D91: 226 | E91: 0.00 | F91: X | G91: X | H91: 0.00 | I91: 0.00 | J91: 0.00 | K91: 0.00
A92: закупка товаров, работ, услуг для целей капитальных вложений | B92: 2632 | C92: 243 | D92: 347 | E92: 0.00 | F92: X | G92: X | H92: 0.00 | I92: 0.00 | J92: 0.00 | K92: 0.00
A93: закупка товаров, работ, услуг для целей капитального ремонта | B93: 2633 | C93: 243 | D93: 344 | E93: 0.00 | F93: X | G93: X | H93: 0.00 | I93: 0.00 | J93: 0.00 | K93: 0.00
A94: прочую закупку товаров, работ и услуг, всего | B94: 2640 | C94: 244 | E94: 15,837,690.38 | F94: 8,973,650.38 | G94: 230,000.00 | H94: 6,634,040.00 | I94: 12,572,490.84 | J94: 12,572,490.84 | K94: 0.00
A95: в том числе: расходы, всего | B95: 2641 | C95: 244 | E95: 13,632,597.20 | F95: 8,399,597.20 | G95: X | H95: 5,233,000.00 | I95: 10,866,397.66 | J95: 10,866,397.66 | K95: 0.00
A96: в том числе: услуги связи, всего | B96: 2641.01 | C96: 244 | D96: 221 | E96: 42,976.49 | F96: 32,976.49 | G96: X | H96: 10,000.00 | I96: 41,352.95 | J96: 41,352.95 | K96: 0.00
A97: транспортные услуги, всего | B97: 2641.02 | C97: 244 | D97: 222 | E97: 100,000.00 | F97: X | G97: X | H97: 100,000.00 | I97: 100,000.00 | J97: 100,000.00 | K97: 0.00
A98: коммунальные услуги (за исключением закупки энергетических ресурсов) | B98: 2641.03 | C98: 244 | D98: 223 | E98: 239,282.30 | F98: 219,282.30 | G98: X | H98: 20,000.00 | I98: 239,282.30 | J98: 239,282.30 | K98: 0.00
A99: арендная плата за пользование имуществом, всего | B99: 2641.04 | C99: 244 | D99: 224 | E99: 0.00 | F99: X | G99: X | H99: 0.00 | I99: 0.00 | J99: 0.00 | K99: 0.00
A100: работы, услуги по содержанию имущества | B100: 2641.05 | C100: 244 | D100: 225 | E100: 3,684,280.69 | F100: 1,134,280.69 | G100: X | H100: 2,550,000.00 | I100: 1,677,280.69 | J100: 1,677,280.69 | K100: 0.00
A101: прочие работы, услуги | B101: 2641.06 | C101: 244 | D101: 226 | E101: 9,566,057.72 | F101: 7,013,057.72 | G101: X | H101: 2,553,000.00 | I101: 8,808,481.72 | J101: 8,808,481.72 | K101: 0.00
A102: страхование, всего | B102: 2641.07 | C102: 244 | D102: 227 | E102: 0.00 | F102: X | G102: X | H102: 0.00 | I102: 0.00 | J102: 0.00 | K102: 0.00
A103: в том числе: поступление нефинансовых активов, всего | B103: 2642 | C103: 244 | E103: 2,205,093.18 | F103: 574,053.18 | G103: 230,000.00 | H103: 1,401,040.00 | I103: 1,706,093.18 | J103: 1,706,093.18 | K103: 0.00
A104: в том числе: увеличение стоимости основных средств, всего | B104: 2642.01 | C104: 244 | D104: 310 | E104: 756,000.00 | F104: 246,000.00 | G104: X | H104: 510,000.00 | I104: 510,000.00 | J104: 510,000.00 | K104: 0.00
A105: увеличение стоимости нематериальных активов, всего | B105: 2642.02 | C105: 244 | D105: 320 | E105: 0.00 | F105: X | G105: X | H105: 0.00 | I105: 0.00 | J105: 0.00 | K105: 0.00
A106: увеличение стоимости непроизводственных активов, всего | B106: 2642.03 | C106: 244 | D106: 330 | E106: 0.00 | F106: X | G106: X | H106: 0.00 | I106: 0.00 | J106: 0.00 | K106: 0.00
A107: увеличение стоимости лекарственных препаратов и материалов, применяемых в медицинских целях, всего | B107: 2642.04 | C107: 244 | D107: 341 | E107: 0.00 | F107: X | G107: X | H107: 0.00 | I107: 0.00 | J107: 0.00 | K107: 0.00
A108: увеличение стоимости продуктов питания, всего | B108: 2642.05 | C108: 244 | D108: 342 | E108: 0.00 | F108: X | G108: X | H108: 0.00 | I108: 0.00 | J108: 0.00 | K108: 0.00
A109: увеличение стоимости горюче-смазочных материалов, всего | B109: 2642.06 | C109: 244 | D109: 343 | E109: 0.00 | F109: X | G109: X | H109: 0.00 | I109: 0.00 | J109: 0.00 | K109: 0.00
A110: увеличение стоимости строительных материалов, всего | B110: 2642.07 | C110: 244 | D110: 344 | E110: 100,000.00 | F110: X | G110: X | H110: 100,000.00 | I110: 100,000.00 | J110: 100,000.00 | K110: 0.00
A111: увеличение стоимости мягкого инвентаря | B111: 2642.08 | C111: 244 | D111: 345 | E111: 230,000.00 | F111: X | G111: 230,000.00 | H111: 0.00 | I111: 0.00 | J111: 0.00 | K111: 0.00
A112: увеличение стоимости прочих материальных запасов | B112: 2642.09 | C112: 244 | D112: 346 | E112: 1,034,093.18 | F112: 293,053.18 | G112: X | H112: 741,040.00 | I112: 1,011,093.18 | J112: 1,011,093.18 | K112: 0.00
A113: увеличение стоимости материальных запасов для целей капитальных вложений, всего | B113: 2642.10 | C113: 244 | D113: 347 | E113: 0.00 | F113: X | G113: X | H113: 0.00 | I113: 0.00 | J113: 0.00 | K113: 0.00
A114: увеличение стоимости прочих материальных запасов однократного применения | B114: 2642.11 | C114: 244 | D114: 349 | E114: 85,000.00 | F114: 35,000.00 | G114: X | H114: 50,000.00 | I114: 85,000.00 | J114: 85,000.00 | K114: 0.00
A115: увеличение стоимости неисключительных прав на результаты интеллектуальной деятельности с неопределенным сроком полезного использования | B115: 2642.12 | C115: 244 | D115: 353 | E115: 0.00 | F115: X | G115: X | H115: 0.00 | I115: 0.00 | J115: 0.00 | K115: 0.00
A116: закупка товаров, работ, услуг в целях создания, развития, эксплуатации и вывода из эксплуатации государственных информационных систем | B116: 2650 | C116: 246 | E116: 0.00 | F116: X | G116: X | H116: 0.00 | I116: 0.00 | J116: 0.00 | K116: 0.00
A117: закупка энергетических ресурсов | B117: 2660 | C117: 247 | D117: 223 | E117: 2,865,615.18 | F117: 2,386,355.49 | G117: X | H117: 479,259.69 | I117: 2,594,981.88 | J117: 2,594,981.88 | K117: 0.00
A118: капитальные вложения в объекты государственной (муниципальной) собственности, всего | B118: 2700 | C118: 400 | E118: 0.00 | F118: X | G118: X | H118: 0.00 | I118: 0.00 | J118: 0.00 | K118: 0.00
A119: в том числе: приобретение объектов недвижимого имущества государственными (муниципальными) учреждениями | B119: 2710 | C119: 406 | E119: 0.00 | F119: X | G119: X | H119: 0.00 | I119: 0.00 | J119: 0.00 | K119: 0.00
A120: строительство (реконструкция) объектов недвижимого имущества государственными (муниципальными) учреждениями | B120: 2720 | C120: 407 | E120: 0.00 | F120: X | G120: X | H120: 0.00 | I120: 0.00 | J120: 0.00 | K120: 0.00
A121: Выплаты, уменьшающие доход, всего | B121: 3000 | C121: 100 | E121: 0.00 | F121: X | G121: X | H121: 0.00 | I121: 0.00 | J121: 0.00 | K121: 0.00
A122: в том числе: налог на прибыль | B122: 3010 | E122: 0.00 | F122: X | G122: X | H122: 0.00 | I122: 0.00 | J122: 0.00 | K122: 0.00
A123: налог на добавленную стоимость | B123: 3020 | E123: 0.00 | F123: X | G123: X | H123: 0.00 | I123: 0.00 | J123: 0.00 | K123: 0.00
A124: прочие налоги, уменьшающие доход | B124: 3030 | E124: 0.00 | F124: X | G124: X | H124: 0.00 | I124: 0.00 | J124: 0.00 | K124: 0.00
A125: Прочие выплаты, всего | B125: 4000 | C125: х | E125: 76,080.35 | F125: X | G125: 76,080.35 | H125: 0.00 | I125: 0.00 | J125: 0.00 | K125: 0.00
A126: из них: возврат в бюджет средств субсидии | B126: 4010 | C126: 610 | E126: 76,080.35 | F126: X | G126: 76,080.35 | H126: 0.00 | I126: 0.00 | J126: 0.00 | K126: 0.00
A127: возврат в бюджет средств госзадания | B127: 4020 | C127: 610 | E127: 0.00 | F127: X | G127: X | H127: 0.00 | I127: 0.00 | J127: 0.00 | K127: 0.00

Sheet Раздел 2
A2: Раздел 2. Сведения по выплатам на закупки товаров, работ, услуг
A4: № п/п | B4: Наименование показателя | C4: Код строки | D4: Год начала закупки | E4: Код по бюджетной классификации Российской Федерации | F4: Уникальный код | G4: Сумма
G5: на 2024 г. (текущий финансовый год) | H5: на 2025 г. (первый год планового периода) | I5: на 2026 г. (второй год планового периода) | J5: за пределами планового периода
A6: 1 | B6: 2 | C6: 3 | D6: 4 | E6: 5 | F6: 6 | G6: 7 | H6: 8 | I6: 9 | J6: 10
A7: 1 | B7: Выплаты на закупку товаров, работ, услуг, всего: | C7: 26000 | D7: X | G7: =G8+G9+G11+G12+G15+G16+G18+G19+G20+G22+G23+G25+G26 -> 18,703,305.56 | H7: =H8+H9+H11+H12+H15+H16+H18+H19+H20+H22+H23+H25+H26 -> 15,167,472.72 | I7: =I8+I9+I11+I12+I15+I16+I18+I19+I20+I22+I23+I25+I26 -> 15,167,472.72 | J7: x
A8: 1.1 | B8: в том числе: по контрактам (договорам), заключенным до начала текущего финансового года без применения норм Федерального закона № 44-ФЗ и Федерального закона № 223-ФЗ | C8: 26100 | D8: X | G8: 0.00 | H8: 0.00 | I8: 0.00 | J8: x
A9: 1.2 | B9: по контрактам (договорам), планируемым к заключению в соответствующем финансовом году без применения норм Федерального закона N 44-ФЗ и Федерального закона N 223-ФЗ | C9: 26200 | D9: X | G9: 0.00 | H9: 0.00 | I9: 0.00 | J9: x
A10: 1.3 | B10: по контрактам (договорам), заключенным до начала текущего финансового года с учетом требований Федерального закона N 44-ФЗ и Федерального закона N 223-ФЗ | C10: 26300 | D10: X | G10: 6,771,908.90 | H10: 3,810,561.94 | I10: 3,810,561.94 | J10: x
A11: 1.3.1 | B11: в том числе: в соответствии с Федеральным законом № 44-ФЗ | C11: 26310 | D11: X | G11: 0.00 | H11: 0.00 | I11: 0.00 | J11: x
A12: 1.3.2 | B12: в соответствии с Федеральным законом N 223-ФЗ | C12: 26320 | D12: X | G12: 6,771,908.90 | H12: 3,810,561.94 | I12: 3,810,561.94 | J12: x
A13: 1.4 | B13: по контрактам (договорам), планируемым к заключению в соответствующем финансовом году с учетом требований Федерального закона N 44-ФЗ и Федерального закона N 223-ФЗ | C13: 26400 | D13: X | G13: =G15+G16+G18+G19+G20+G22+G23+G25+G26 -> 11,931,396.66 | H13: =H15+H16+H18+H19+H20+H22+H23+H25+H26 -> 11,356,910.78 | I13: =I15+I16+I18+I19+I20+I22+I23+I25+I26 -> 11,356,910.78 | J13: x
A14: 1.4.1 | B14: в том числе: за счет субсидий, предоставляемых на финансовое обеспечение выполнения государственного (муниципального) задания | C14: 26410 | D14: X | G14: =G15+G16 -> 5,322,290.06 | H14: =H15+H16 -> 6,375,370.78 | I14: =I15+I16 -> 6,375,370.78 | J14: x
A15: 1.4.1.1 | B15: в том числе: в соответствии с Федеральным законом № 44-ФЗ | C15: 26411 | D15: X | G15: 0.00 | H15: 0.00 | I15: 0.00 | J15: x
A16: 1.4.1.2 | B16: в соответствии с Федеральным законом N 223-ФЗ | C16: 26412 | D16: X | G16: 5,322,290.06 | H16: 6,375,370.78 | I16: 6,375,370.78 | J16: x
A17: 1.4.2 | B17: за счет субсидий, предоставляемых в соответствии с абзацем вторым пункта 1 статьи 78.1 Бюджетного кодекса Российской Федерации | C17: 26420 | D17: X | G17: =G18+G19 -> 230,000.00 | H17: =H18+H19 -> 0.00 | I17: =I18+I19 -> 0.00 | J17: x
A18: 1.4.2.1 | B18: в том числе: в соответствии с Федеральным законом № 44-ФЗ | C18: 26421 | D18: X | G18: 0.00 | H18: 0.00 | I18: 0.00 | J18: x
A19: 1.4.2.2 | B19: в соответствии с Федеральным законом N 223-ФЗ | C19: 26422 | D19: X | G19: 230,000.00 | H19: 0.00 | I19: 0.00 | J19: x
A20: 1.4.3 | B20: за счет субсидий, предоставляемых на осуществление капитальных вложений | C20: 26430 | D20: X | G20: 0.00 | H20: 0.00 | I20: 0.00 | J20: x
A21: 1.4.4 | B21: за счет средств обязательного медицинского страхования | C21: 26440 | D21: X | G21: =G22+G23 -> 0.00 | H21: =H22+H23 -> 0.00 | I21: =I22+I23 -> 0.00 | J21: x
A22: 1.4.4.1 | B22: в том числе: в соответствии с Федеральным законом № 44-ФЗ | C22: 26441 | D22: X | G22: 0.00 | H22: 0.00 | I22: 0.00 | J22: x
A23: 1.4.4.2 | B23: в соответствии с Федеральным законом N 223-ФЗ | C23: 26442 | D23: X | G23: 0.00 | H23: 0.00 | I23: 0.00 | J23: x
A24: 1.4.5 | B24: за счет прочих источников финансового обеспечения | C24: 26450 | D24: X | G24: =G25+G26 -> 6,379,106.60 | H24: =H25+H26 -> 4,981,540.00 | I24: =I25+I26 -> 4,981,540.00 | J24: x
A25: 1.4.5.1 | B25: в том числе: в соответствии с Федеральным законом № 44-ФЗ | C25: 26451 | D25: X | G25: 0.00 | H25: 0.00 | I25: 0.00 | J25: x
A26: 1.4.5.2 | B26: в соответствии с Федеральным законом N 223-ФЗ | C26: 26452 | D26: X | G26: 6,379,106.60 | H26: 4,981,540.00 | I26: 4,981,540.00 | J26: x
A27: 2. | B27: Итого по контрактам, планируемым к заключению в соответствующем финансовом году в соответствии с Федеральным законом N 44-ФЗ, по соответствующему году закупки | C27: 26500 | D27: X | G27: =G28+G29+G30 -> 0.00 | H27: =H28+H29+H30 -> 0.00 | I27: =I28+I29+I30 -> 0.00 | J27: x
A28: 2.1 | B28: в том числе по году начала закупки: | C28: 26510 | D28: 2024 | G28: 0.00 | H28: 0.00 | I28: 0.00 | J28: x
A29: 2.2 | B29: в том числе по году начала закупки: | C29: 26520 | D29: 2025 | G29: 0.00 | H29: 0.00 | I29: 0.00 | J29: x
A30: 2.3 | B30: в том числе по году начала закупки: | C30: 26530 | D30: 2026 | G30: 0.00 | H30: 0.00 | I30: 0.00 | J30: x
A31: 3. | B31: Итого по договорам, планируемым к заключению в соответствующем финансовом году в соответствии с Федеральным законом N 223-ФЗ, по соответствующему году закупки | C31: 26600 | D31: X | G31: =G32+G33+G34 -> 11,931,396.66 | H31: =H32+H33+H34 -> 11,356,910.78 | I31: =I32+I33+I34 -> 11,356,910.78 | J31: x
A32: 3.1 | B32: в том числе по году начала закупки: | C32: 26610 | D32: 2024 | G32: 11,931,396.66 | H32: 0.00 | I32: 0.00 | J32: x
A33: 3.2 | B33: в том числе по году начала закупки: | C33: 26620 | D33: 2025 | G33: 0.00 | H33: 11,356,910.78 | I33: 0.00 | J33: x
A34: 3.3 | B34: в том числе по году начала закупки: | C34: 26630 | D34: 2026 | G34: 0.00 | H34: 0.00 | I34: 11,356,910.78 | J34: x
A36: Руководитель учреждения (уполномоченное лицо учреждения)
C37: (должность) | E37: (подпись) | F37: (расшифровка подписи)
A39: Исполнитель
C40: (должность) | E40: (фамилия, инициалы) | F40: (телефон)
A41: "______" _________________ 20__ г.
A43: СОГЛАСОВАНО
A44: Заместитель министра образования Московской области
A45: (наименование должности уполномоченного лица органа-учредителя)
A48: (подпись) | C48: (расшифровка подписи)
A49: "______" _________________ 20__ г.
A50: М.П.

Sheet Обоснования (111)
A2: Код видов расходов | C2: 111
A3: Источник финансового обеспечения | C3: субсидии на выполнение государственного (муниципального) задания
A4: 1.1. Расчеты (обоснования) расходов на оплату труда (211)
A6: № п/п | B6: Должность, группа должностей | C6: Установленная численность, единиц | D6: Среднемесячный размер оплаты труда одного работника, руб | H6: Фонд оплаты труда в год
D7: Всего | E7: в том числе:
E8: по должностному окладу | F8: по выплатам компенсационного характера | G8: по выплатам стимулирующего характера
A9: 1 | B9: 2 | C9: 3 | D9: 4 | E9: 5 | F9: 6 | G9: 7 | H9: 8
A10: 1 | B10: [Не заполнено], [Руководящий персонал], [Директор], | C10: 1.00 | D10: 323,317.60 | E10: 57,492.00 | F10: 11,498.40 | G10: 254,327.20 | H10: 3,879,811.20
A11: 2 | B11: [Не заполнено], [Руководящий персонал], [Заместитель директора по УВР], | C11: 2.00 | D11: 64,375.80 | E11: 51,024.25 | F11: 5,174.30 | G11: 8,177.25 | H11: 1,545,019.20
A12: 5 | B12: [Не заполнено], [Руководящий персонал], [Заместитель директора по АХЧ], | C12: 1.00 | D12: 60,913.00 | E12: 45,994.00 | F12: 0.00 | G12: 14,919.00 | H12: 730,956.00
A13: 6 | B13: [Не заполнено], [Руководящий персонал], [Заместитель директора по ФЭД], | C13: 1.00 | D13: 69,060.00 | E13: 45,994.00 | F13: 0.00 | G13: 23,066.00 | H13: 828,720.00
A14: 7 | B14: [Не заполнено], [Руководящий персонал], [Начальник отдела кадров], | C14: 1.00 | D14: 34,766.00 | E14: 19,490.00 | F14: 0.00 | G14: 15,276.00 | H14: 417,192.00
A15: 9 | B15: [Не заполнено], [Педагогические работники ("указные")], [Учитель], | C15: 45.61 | D15: 51,863.73 | E15: 23,809.69 | F15: 13,768.93 | G15: 14,285.11 | H15: 28,386,058.55
A16: 10 | B16: [Не заполнено], [Педагогичские работники ("указные")], [Педагог-психолог], | C16: 1.00 | D16: 18,642.12 | E16: 16,346.00 | F16: 2,296.12 | G16: 0.00 | H16: 223,705.44
A17: 11 | B17: [Не заполнено], [Педагогичские работники ("указные")], [Педагог дополнительного образования], | C17: 1.00 | D17: 24,475.00 | E17: 24,475.00 | F17: 0.00 | G17: 0.00 | H17: 293,700.00
A18: 12 | B18: [Не заполнено], [Педагогичские работники ("указные")], [Педагог-организатор], [гз] | C18: 2.50 | D18: 26,128.34 | E18: 23,408.00 | F18: 0.00 | G18: 2,720.34 | H18: 783,850.20
A19: 18 | B19: [Не заполнено], [Учебно-вспомогательный персонал], [Ведущий специалист по закупкам], | C19: 1.00 | D19: 16,428.00 | E19: 16,428.00 | F19: 0.00 | G19: 0.00 | H19: 197,136.00
A20: 19 | B20: [Не заполнено], [Учебно-вспомогательный персонал], [Ведущий экономист], | C20: 1.00 | D20: 20,140.20 | E20: 15,595.00 | F20: 3,405.00 | G20: 1,140.20 | H20: 241,682.40
A21: 20 | B21: [Не заполнено], [МОП], [Уборщик служебных помещений], | C21: 9.36 | D21: 18,772.61 | E21: 18,772.61 | F21: 0.00 | G21: 0.00 | H21: 439,279.07
A22: 20 | B22: [Не заполнено], [МОП], [Уборщик служебных помещений], | C22: 8.00 | D22: 12,000.00 | E22: 12,000.00 | F22: 0.00 | G22: 0.00 | H22: 96,000.00
A23: 21 | B23: [Не заполнено], [МОП], [Рабочий по комплексному обслуживанию зданий], | C23: 1.00 | D23: 22,618.15 | E23: 21,000.00 | F23: 0.00 | G23: 1,618.15 | H23: 271,417.75
A24: 22 | B24: [Не заполнено], [МОП], [Дворник], | C24: 2.00 | D24: 16,233.50 | E24: 16,233.50 | F24: 0.00 | G24: 0.00 | H24: 389,604.00
A25: 24 | B25: [Не заполнено], [Прочий педагогический персонал], [Советник директора по воспитанию и взаимодействию с детскими общественными объединениями], | C25: 1.00 | D25: 10,233.98 | E25: 10,233.98 | F25: 0.00 | G25: 0.00 | H25: 122,807.71
A26: Итого: | C26: x | D26: =SUBTOTAL(9,D10:D25) -> 789,968.02 | E26: x | F26: x | G26: x | H26: =SUBTOTAL(9,H10:H25) -> 38,846,939.52
A28: Код видов расходов | C28: 111
A29: Источник финансового обеспечения | C29: приносящая доход деятельность (собственные доходы учреждения)
A30: 1.1. Расчеты (обоснования) расходов на оплату труда (211)
A32: № п/п | B32: Должность, группа должностей | C32: Установленная численность, единиц | D32: Среднемесячный размер оплаты труда одного работника, руб | H32: Фонд оплаты труда в год
D33: Всего | E33: в том числе:
E34: по должностному окладу | F34: по выплатам компенсационного характера | G34: по выплатам стимулирующего характера
A35: 1 | B35: 2 | C35: 3 | D35: 4 | E35: 5 | F35: 6 | G35: 7 | H35: 8
A36: 1 | B36: [Не заполнено], [Руководящий персонал], [Директор], | C36: 1.00 | D36: 76,475.98 | E36: 0.00 | F36: 0.00 | G36: 76,475.98 | H36: 917,711.81
A37: 5 | B37: [Не заполнено], [Руководящий персонал], [Заместитель директора по АХЧ], | C37: 1.00 | D37: 19,515.42 | E37: 0.00 | F37: 0.00 | G37: 19,515.42 | H37: 234,185.00
A38: 5 | B38: [Не заполнено], [Руководящий персонал], [Заместитель директора по АХЧ], | C38: 1.00 | D38: 16,666.67 | E38: 0.00 | F38: 0.00 | G38: 16,666.67 | H38: 200,000.00
A39: 6 | B39: [Не заполнено], [Руководящий персонал], [Заместитель директора по ФЭД], | C39: 1.00 | D39: 19,515.42 | E39: 0.00 | F39: 0.00 | G39: 19,515.42 | H39: 234,185.00
A40: 6 | B40: [Не заполнено], [Руководящий персонал], [Заместитель директора по ФЭД], | C40: 1.00 | D40: 27,666.67 | E40: 0.00 | F40: 0.00 | G40: 27,666.67 | H40: 332,000.00
A41: 7 | B41: [Не заполнено], [Руководящий персонал], [Начальник отдела кадров], | C41: 1.00 | D41: 19,515.42 | E41: 0.00 | F41: 0.00 | G41: 19,515.42 | H41: 234,185.00
A42: 7 | B42: [Не заполнено], [Руководящий персонал], [Начальник отдела кадров], | C42: 1.00 | D42: 41,690.68 | E42: 0.00 | F42: 0.00 | G42: 41,690.68 | H42: 500,288.19
A43: 11 | B43: [Не заполнено], [Педагогичские работники ("указные")], [Педагог дополнительного образования], | C43: 6.37 | D43: 144,436.74 | E43: 23,348.61 | F43: 0.00 | G43: 121,088.13 | H43: 11,040,744.72
A44: 18 | B44: [Не заполнено], [Учебно-вспомогательный персонал], [Ведущий специалист по закупкам], | C44: 1.00 | D44: 24,349.52 | E44: 0.00 | F44: 0.00 | G44: 24,349.52 | H44: 292,194.24
A45: 18 | B45: [Не заполнено], [Учебно-вспомогательный персонал], [Ведущий специалист по закупкам], | C45: 1.00 | D45: 37,500.00 | E45: 0.00 | F45: 0.00 | G45: 37,500.00 | H45: 450,000.00
A46: 19 | B46: [Не заполнено], [Учебно-вспомогательный персонал], [Ведущий экономист], | C46: 1.00 | D46: 24,349.52 | E46: 0.00 | F46: 0.00 | G46: 24,349.52 | H46: 292,194.28
A47: 19 | B47: [Не заполнено], [Учебно-вспомогательный персонал], [Ведущий экономист], | C47: 1.00 | D47: 37,500.00 | E47: 0.00 | F47: 0.00 | G47: 37,500.00 | H47: 450,000.00
A48: 20 | B48: [Не заполнено], [МОП], [Уборщик служебных помещений], | C48: 0.40 | D48: 6,250.00 | E48: 6,250.00 | F48: 0.00 | G48: 0.00 | H48: 30,000.00
A49: 22 | B49: [Не заполнено], [МОП], [Дворник], | C49: 1.00 | D49: 1,666.67 | E49: 0.00 | F49: 0.00 | G49: 1,666.67 | H49: 20,000.00
A50: 23 | B50: [Не заполнено], [Учебно-вспомогательный персонал], [Администратор], | C50: 2.00 | D50: 24,349.52 | E50: 0.00 | F50: 0.00 | G50: 24,349.52 | H50: 584,388.48
A51: 23 | B51: [Не заполнено], [Учебно-вспомогательный персонал], [Администратор], | C51: 2.00 | D51: 21,819.35 | E51: 15,525.00 | F51: 0.00 | G51: 6,294.35 | H51: 523,664.28
A52: Итого: | C52: x | D52: =SUBTOTAL(9,D36:D51) -> 543,267.57 | E52: x | F52: x | G52: x | H52: =SUBTOTAL(9,H36:H51) -> 16,335,741.00
A54: Код видов расходов | C54: 111
A55: Источник финансового обеспечения | C55: субсидии на иные цели
A56: 1.1. Расчеты (обоснования) расходов на оплату труда (211)
A58: № п/п | B58: Должность, группа должностей | C58: Установленная численность, единиц | D58: Среднемесячный размер оплаты труда одного работника, руб | H58: Фонд оплаты труда в год
D59: Всего | E59: в том числе:
E60: по должностному окладу | F60: по выплатам компенсационного характера | G60: по выплатам стимулирующего характера
A61: 1 | B61: 2 | C61: 3 | D61: 4 | E61: 5 | F61: 6 | G61: 7 | H61: 8
A62: 1 | B62: [Не заполнено], [Руководящий персонал], [Директор], | C62: 1.00 | D62: 36,666.67 | E62: 0.00 | F62: 0.00 | G62: 36,666.67 | H62: 440,000.00
A63: 2 | B63: [Не заполнено], [Руководящий персонал], [Заместитель директора по УВР], | C63: 1.00 | D63: 30,574.12 | E63: 0.00 | F63: 0.00 | G63: 30,574.12 | H63: 366,889.40
A64: 9 | B64: [Не заполнено], [Педагогические работники ("указные")], [Учитель], | C64: 14.00 | D64: 5,000.00 | E64: 0.00 | F64: 5,000.00 | G64: 0.00 | H64: 840,000.00
A65: 9 | B65: [Не заполнено], [Педагогические работники ("указные")], [Учитель], | C65: 36.00 | D65: 18,885.53 | E65: 0.00 | F65: 0.00 | G65: 18,885.53 | H65: 8,158,548.39
A66: 24 | B66: [Не заполнено], [Прочий педагогический персонал], [Советник директора по воспитанию и взаимодействию с детскими общественными объединениями], | C66: 1.00 | D66: 26,804.92 | E66: 0.00 | F66: 0.00 | G66: 26,804.92 | H66: 321,658.99
A67: Итого: | C67: x | D67: =SUBTOTAL(9,D62:D66) -> 117,931.23 | E67: x | F67: x | G67: x | H67: =SUBTOTAL(9,H62:H66) -> 10,127,096.78

Sheet Обоснования (100,300,850)
A2: Код видов расходов | C2: 112
A3: Источник финансового обеспечения | C3: приносящая доход деятельность (собственные доходы учреждения)
A5: 1.2. Расчеты (обоснования) выплат персоналу при направлении в служебные командировки (212;226)
A7: № п/п | B7: Наименование расходов | D7: Средний размер выплаты на одного работника в день, руб | E7: Количество работников, чел | F7: Количество дней | G7: Сумма, руб (гр. 3 х гр.4 х гр.5)
A8: 1 | B8: 2 | D8: 3 | E8: 4 | F8: 5 | G8: 6
A9: 1 | B9: [Проезд к месту командировки и обратно], [Оплата командировочных расходов] | D9: 120,000.00 | E9: 1.00 | F9: 1.00 | G9: 120,000.00
A10: 1 | B10: [Проезд к месту командировки и обратно], [Оплата командировочных расходов] | D10: 100.00 | E10: 20.00 | F10: 4.60 | G10: 9,200.00
A11: Итого: | G11: 129,200.00
A13: Код видов расходов | C13: 112
A14: Источник финансового обеспечения | C14: субсидии на выполнение государственного (муниципального) задания
A16: 1.2. Расчеты (обоснования) выплат персоналу при направлении в служебные командировки (212;226)
A18: № п/п | B18: Наименование расходов | D18: Средний размер выплаты на одного работника в день, руб | E18: Количество работников, чел | F18: Количество дней | G18: Сумма, руб (гр. 3 х гр.4 х гр.5)
A19: 1 | B19: 2 | D19: 3 | E19: 4 | F19: 5 | G19: 6
A20: 1 | B20: [Проезд к месту командировки и обратно], [Оплата командировочных расходов] | D20: 100.00 | E20: 10.00 | F20: 3.20 | G20: 3,200.00
A21: 1 | B21: [Проезд к месту командировки и обратно], [Оплата командировочных расходов] | D21: 30,200.00 | E21: 1.00 | F21: 1.00 | G21: 30,200.00
A22: Итого: | G22: 33,400.00
A24: Код видов расходов | C24: 111
A25: Источник финансового обеспечения | C25: приносящая доход деятельность (собственные доходы учреждения)
A27: 1.3. Расчеты (обоснования) социальных выплат персоналу (266)
A29: № п/п | B29: Наименование расходов | D29: Численность работников, получающих пособие | E29: Количество выплат в год на одного работника | F29: Размер выплаты (пособия) в месяц, руб | G29: Сумма, руб (гр. 3 х гр.4 х гр.5)
A30: 1 | B30: 2 | D30: 3 | E30: 4 | F30: 5 | G30: 6
A31: 1 | B31: [Пособие за первые три дня временной нетрудоспособности (КОСГУ 266)] | D31: 50.00 | E31: 4.00 | F31: 250.00 | G31: 50,000.00
A32: Итого: | G32: 50,000.00
A34: Код видов расходов | C34: 111
A35: Источник финансового обеспечения | C35: субсидии на выполнение государственного (муниципального) задания
A37: 1.3. Расчеты (обоснования) социальных выплат персоналу (266)
A39: № п/п | B39: Наименование расходов | D39: Численность работников, получающих пособие | E39: Количество выплат в год на одного работника | F39: Размер выплаты (пособия) в месяц, руб | G39: Сумма, руб (гр. 3 х гр.4 х гр.5)
A40: 1 | B40: 2 | D40: 3 | E40: 4 | F40: 5 | G40: 6
A41: 1 | B41: [Пособие за первые три дня временной нетрудоспособности (КОСГУ 266)] | D41: 4.00 | E41: 2.00 | F41: 22,500.00 | G41: 180,000.00
A42: 1 | B42: [Пособие за первые три дня временной нетрудоспособности (КОСГУ 266)] | D42: 50.00 | E42: 1.00 | F42: 4,000.00 | G42: 200,000.00
A43: Итого: | G43: 380,000.00
A45: Код видов расходов | C45: 321
A46: Источник финансового обеспечения | C46: субсидии на выполнение государственного (муниципального) задания
A48: 2. Расчеты (обоснования) расходов на социальные и иные выплаты населению (264)
A50: № п/п | B50: Наименование показателя | E50: Размер одной выплаты, руб | F50: Количество выплат в год | G50: Общая сумма выплат, руб (гр.3 х гр.4)
A51: 1 | B51: 2 | E51: 3 | F51: 4 | G51: 5
A52: 1 | B52: [Расходы на социальные выплаты гражданам (в денежной форме) (320)], [Выплаты бывшим работника по сокращению штатного расписания] | E52: 24,300.00 | F52: 2.00 | G52: 243,000.00
A53: Итого: | G53: 243,000.00
A55: Код видов расходов | C55: 321
A56: Источник финансового обеспечения | C56: приносящая доход деятельность (собственные доходы учреждения)
A58: 2. Расчеты (обоснования) расходов на социальные и иные выплаты населению (264)
A60: № п/п | B60: Наименование показателя | E60: Размер одной выплаты, руб | F60: Количество выплат в год | G60: Общая сумма выплат, руб (гр.3 х гр.4)
A61: 1 | B61: 2 | E61: 3 | F61: 4 | G61: 5
A62: 1 | B62: [Расходы на социальные выплаты гражданам (в денежной форме) (320)], [Выплаты бывшим работника по сокращению штатного расписания] | E62: 3,500.00 | F62: 2.00 | G62: 7,000.00
A63: Итого: | G63: 7,000.00
A65: Код видов расходов | C65: 852
A66: Источник финансового обеспечения | C66: субсидии на выполнение государственного (муниципального) задания
A68: 3. Расчеты (обоснования) расходов на оплату налогов, сборов и иных платежей (291)
A70: № п/п | B70: Наименование расходов | E70: Налоговая база, руб | F70: Ставка налога, % | G70: Сумма исчисленного налога, подлежащего уплате, руб (гр.3 х гр.4/100)
A71: 1 | B71: 2 | E71: 3 | F71: 4 | G71: 5
A72: 3 | B72: [Прочие налоги и сборы], [Прочие налоги и сборы] | E72: 5,000.00 | F72: 100.00 | G72: 5,000.00
A73: Итого: | G73: 5,000.00
A75: Код видов расходов | C75: 853
A76: Источник финансового обеспечения | C76: субсидии на выполнение государственного (муниципального) задания
A78: 3. Расчеты (обоснования) расходов на оплату налогов, сборов и иных платежей (291)
A80: № п/п | B80: Наименование расходов | E80: Налоговая база, руб | F80: Ставка налога, % | G80: Сумма исчисленного налога, подлежащего уплате, руб (гр.3 х гр.4/100)
A81: 1 | B81: 2 | E81: 3 | F81: 4 | G81: 5
A82: 3 | B82: [Прочие налоги и сборы], [Прочие налоги и сборы] | E82: 5,000.00 | F82: 100.00 | G82: 5,000.00
A83: Итого: | G83: 5,000.00
A85: Код видов расходов | C85: 851
A86: Источник финансового обеспечения | C86: субсидии на выполнение государственного (муниципального) задания
A88: 3. Расчеты (обоснования) расходов на оплату налогов, сборов и иных платежей (291)
A90: № п/п | B90: Наименование расходов | E90: Налоговая база, руб | F90: Ставка налога, % | G90: Сумма исчисленного налога, подлежащего уплате, руб (гр.3 х гр.4/100)
A91: 1 | B91: 2 | E91: 3 | F91: 4 | G91: 5
A92: 1 | B92: [Налог на имущество], [Налог на имущество] | E92: 210,000.00 | F92: 100.00 | G92: 210,000.00
A93: 2 | B93: [Земельный налог], [Земельный налог] | E93: 530,000.00 | F93: 100.00 | G93: 530,000.00
A94: Итого: | G94: 740,000.00
A96: Код видов расходов | C96: 853
A97: Источник финансового обеспечения | C97: приносящая доход деятельность (собственные доходы учреждения)
A99: 3. Расчеты (обоснования) расходов на оплату налогов, сборов и иных платежей (292;293;295)
A101: № п/п | B101: Наименование расходов | E101: Налоговая база, руб | F101: Ставка налога, % | G101: Сумма исчисленного налога, подлежащего уплате, руб (гр.3 х гр.4/100)
A102: 1 | B102: 2 | E102: 3 | F102: 4 | G102: 5
A103: 3 | B103: [Прочие налоги и сборы], [Прочие налоги и сборы] | E103: 1.00 | F103: 10,000.00 | G103: 10,000.00
A104: 3 | B104: [Прочие налоги и сборы], [Прочие налоги и сборы] | E104: 1.00 | F104: 10,000.00 | G104: 10,000.00
A105: 3 | B105: [Прочие налоги и сборы], [Прочие налоги и сборы] | E105: 1.00 | F105: 10,000.00 | G105: 10,000.00
A106: Итого: | G106: 30,000.00
A108: Код видов расходов
A109: Источник финансового обеспечения
A111: 4. Расчеты (обоснования) расходов на безвозмездные перечисления организациям
A113: № п/п | B113: Наименование показателя | E113: Размер одной выплаты, руб | F113: Количество выплат в год | G113: Общая сумма выплат, руб (гр.3 х гр.4)
A114: X | B114: X | E114: X | F114: X | G114: X
A116: Код видов расходов
A117: Источник финансового обеспечения
A119: 5. Расчеты (обоснования) прочих расходов (кроме расходов на закупку товаров, работ, услуг)
A121: № п/п | B121: Наименование показателя | E121: Размер одной выплаты, руб | F121: Количество выплат в год | G121: Общая сумма выплат, руб (гр.3 х гр.4)
A122: X | B122: X | E122: X | F122: X | G122: X

Sheet Обоснования (119)
A2: Код видов расходов | C2: 119
A3: Источник финансового обеспечения | C3: субсидии на выполнение государственного (муниципального) задания
A5: 7.1. Расчет расходов на уплату взносов на обязательное социальное страхование (213)
A7: Наименование показателя | E7: Код строки | F7: Размер базы для начисления страховых взносов | G7: Cумма взноса
A8: 1 | E8: 2 | F8: 3 | G8: 4
A9: Страховые взносы на обязательное пенсионное страхование, на обязательное социальное страхование на случай временной нетрудоспособности и в связи с материнством, на обязательное медицинское страхование, всего | E9: 0100 | F9: X | G9: =G10+G11+G12+G14 -> 11,654,081.86
A10: в том числе: в пределах установленной единой предельной величины базы для исчисления страховых взносов по тарифу 30,0 % | E10: 0110 | F10: 38,846,939.52 | G10: 11,654,081.86
A11: свыше установленной единой предельной величины базы для исчисления страховых взносов по тарифу 15,1 % | E11: 0120
A12: с применением пониженных тарифов страховых взносов для отдельных категорий плательщиков, всего | E12: 0130 | F12: X
A13: в том числе: по тарифу | E13: 0131
A14: с применением дополнительных тарифов страховых взносов для отдельных категорий плательщиков, всего | E14: 0140 | F14: X
A15: в том числе: по тарифу | E15: 0141
A16: Страховые взносы на обязательное социальное страхование от несчастных случаев на производстве и профессиональных заболеваний по установленному тарифу, всего | E16: 0200 | F16: X | G16: =G17+G18 -> 77,693.88
A17: в том числе: обязательное социальное страхование от несчастных случаев на производстве и профессиональных заболеваний по тарифу 0,2% | E17: 0210 | F17: 38,846,939.52 | G17: 77,693.88
A18: обязательное социальное страхование от несчастных случаев на производстве и профессиональных заболеваний по тарифу | E18: 0220
A19: Уточнение расчета по страховым взносам на обязательное социальное страхование, всего | E19: 0300 | F19: X | G19: =G20+G21 -> 0.00
A20: в том числе: корректировка округления | E20: 0310
A21: корректировка в связи с регрессом по страховым взносам | E21: 0320
A22: ИТОГО | E22: X | F22: X | G22: =G9+G16+G19 -> 11,731,775.74
A24: Код видов расходов | C24: 119
A25: Источник финансового обеспечения | C25: субсидии на иные цели
A27: 7.1. Расчет расходов на уплату взносов на обязательное социальное страхование (213)
A29: Наименование показателя | E29: Код строки | F29: Размер базы для начисления страховых взносов | G29: Cумма взноса
A30: 1 | E30: 2 | F30: 3 | G30: 4
A31: Страховые взносы на обязательное пенсионное страхование, на обязательное социальное страхование на случай временной нетрудоспособности и в связи с материнством, на обязательное медицинское страхование, всего | E31: 0100 | F31: X | G31: =G32+G33+G34+G36 -> 3,038,129.02
A32: в том числе: в пределах установленной единой предельной величины базы для исчисления страховых взносов по тарифу 30,0 % | E32: 0110 | F32: 10,127,096.67 | G32: 3,038,129.00
A33: свыше установленной единой предельной величины базы для исчисления страховых взносов по тарифу 15,1 % | E33: 0120 | F33: 0.10 | G33: 0.02
A34: с применением пониженных тарифов страховых взносов для отдельных категорий плательщиков, всего | E34: 0130 | F34: X
A35: в том числе: по тарифу | E35: 0131
A36: с применением дополнительных тарифов страховых взносов для отдельных категорий плательщиков, всего | E36: 0140 | F36: X
A37: в том числе: по тарифу | E37: 0141
A38: Страховые взносы на обязательное социальное страхование от несчастных случаев на производстве и профессиональных заболеваний по установленному тарифу, всего | E38: 0200 | F38: X | G38: =G39+G40 -> 20,254.20
A39: в том числе: обязательное социальное страхование от несчастных случаев на производстве и профессиональных заболеваний по тарифу 0,2% | E39: 0210 | F39: 10,127,096.78 | G39: 20,254.20
A40: обязательное социальное страхование от несчастных случаев на производстве и профессиональных заболеваний по тарифу | E40: 0220
A41: Уточнение расчета по страховым взносам на обязательное социальное страхование, всего | E41: 0300 | F41: X | G41: =G42+G43 -> 0.00
A42: в том числе: корректировка округления | E42: 0310
A43: корректировка в связи с регрессом по страховым взносам | E43: 0320
A44: ИТОГО | E44: X | F44: X | G44: =G31+G38+G41 -> 3,058,383.22
A46: Код видов расходов | C46: 119
A47: Источник финансового обеспечения | C47: приносящая доход деятельность (собственные доходы учреждения)
A49: 7.1. Расчет расходов на уплату взносов на обязательное социальное страхование (213)
A51: Наименование показателя | E51: Код строки | F51: Размер базы для начисления страховых взносов | G51: Cумма взноса
A52: 1 | E52: 2 | F52: 3 | G52: 4
A53: Страховые взносы на обязательное пенсионное страхование, на обязательное социальное страхование на случай временной нетрудоспособности и в связи с материнством, на обязательное медицинское страхование, всего | E53: 0100 | F53: X | G53: =G54+G55+G56+G58 -> 4,845,313.49
A54: в том числе: в пределах установленной единой предельной величины базы для исчисления страховых взносов по тарифу 30,0 % | E54: 0110 | F54: 15,963,869.79 | G54: 4,789,160.94
A55: свыше установленной единой предельной величины базы для исчисления страховых взносов по тарифу 15,1 % | E55: 0120 | F55: 371,871.21 | G55: 56,152.55
A56: с применением пониженных тарифов страховых взносов для отдельных категорий плательщиков, всего | E56: 0130 | F56: X
A57: в том числе: по тарифу | E57: 0131
A58: с применением дополнительных тарифов страховых взносов для отдельных категорий плательщиков, всего | E58: 0140 | F58: X
A59: в том числе: по тарифу | E59: 0141
A60: Страховые взносы на обязательное социальное страхование от несчастных случаев на производстве и профессиональных заболеваний по установленному тарифу, всего | E60: 0200 | F60: X | G60: =G61+G62 -> 32,671.48
A61: в том числе: обязательное социальное страхование от несчастных случаев на производстве и профессиональных заболеваний по тарифу 0,2% | E61: 0210 | F61: 16,335,741.00 | G61: 32,671.48
A62: обязательное социальное страхование от несчастных случаев на производстве и профессиональных заболеваний по тарифу | E62: 0220
A63: Уточнение расчета по страховым взносам на обязательное социальное страхование, всего | E63: 0300 | F63: X | G63: =G64+G65 -> 0.14
A64: в том числе: корректировка округления | E64: 0310 | F64: 0.14 | G64: 0.14
A65: корректировка в связи с регрессом по страховым взносам | E65: 0320
A66: ИТОГО | E66: X | F66: X | G66: =G53+G60+G63 -> 4,877,985.11

Sheet Обоснования (242,244,247)
A2: Код видов расходов | C2: 244
A3: Источник финансового обеспечения | C3: приносящая доход деятельность (собственные доходы учреждения)
A5: 6. Расчеты (обоснования) расходов на закупки товаров, работ, услуг (221)
A7: № п/п | B7: Наименование расходов | D7: Год (планируемый год) размещения закупки | E7: Количество | F7: Цена за единицу | G7: Сумма, руб (гр. 4 х гр.5)
A8: 1 | B8: 2 | D8: 3 | E8: 4 | F8: 5 | G8: 6
A9: 63 | B9: [Расходы на закупки товаров, работ, услуг] [услуги стационарной телефонной связи] [221] [3 тел.номера, по 1 мес.] | D9: 2024 | E9: 1.00 | F9: 10,000.00 | G9: 10,000.00
A10: Итого: | G10: =SUM(G9:G9) -> 10,000.00
A12: Код видов расходов | C12: 244
A13: Источник финансового обеспечения | C13: приносящая доход деятельность (собственные доходы учреждения)
A15: 6. Расчеты (обоснования) расходов на закупки товаров, работ, услуг (222)
A17: № п/п | B17: Наименование расходов | D17: Год (планируемый год) размещения закупки | E17: Количество | F17: Цена за единицу | G17: Сумма, руб (гр. 4 х гр.5)
A18: 1 | B18: 2 | D18: 3 | E18: 4 | F18: 5 | G18: 6
A19: 91 | B19: [Расходы на закупки товаров, работ, услуг] [Заказ автобусов на выездные мероприятия обучающихся, усл.ед] [222] [кол-во договоров] | D19: 2024 | E19: 2.00 | F19: 50,000.00 | G19: 100,000.00
A20: Итого: | G20: =SUM(G19:G19) -> 100,000.00
A22: Код видов расходов | C22: 244
A23: Источник финансового обеспечения | C23: приносящая доход деятельность (собственные доходы учреждения)
A25: 6. Расчеты (обоснования) расходов на закупки товаров, работ, услуг (223)
A27: № п/п | B27: Наименование расходов | D27: Год (планируемый год) размещения закупки | E27: Количество | F27: Цена за единицу | G27: Сумма, руб (гр. 4 х гр.5)
A28: 1 | B28: 2 | D28: 3 | E28: 4 | F28: 5 | G28: 6
A29: 5 | B29: [Расходы на закупки товаров, работ, услуг] [Оказание услуг по вывозу мусора] [223] [Плата за негативное воздействие на инженерные сети, мес.] | D29: 2024 | E29: 1.00 | F29: 12,266.60 | G29: 12,266.60
A30: 224 | B30: [Расходы на закупки товаров, работ, услуг] [Оказание услуг водоснабжения и водоотведения] [223] [договор] | D30: 2023 | E30: 1.00 | F30: 7,733.40 | G30: 7,733.40
A31: Итого: | G31: =SUM(G29:G30) -> 20,000.00
A33: Код видов расходов | C33: 244
A34: Источник финансового обеспечения | C34: приносящая доход деятельность (собственные доходы учреждения)
A36: 6. Расчеты (обоснования) расходов на закупки товаров, работ, услуг (225)
A38: № п/п | B38: Наименование расходов | D38: Год (планируемый год) размещения закупки | E38: Количество | F38: Цена за единицу | G38: Сумма, руб (гр. 4 х гр.5)
A39: 1 | B39: 2 | D39: 3 | E39: 4 | F39: 5 | G39: 6
A40: 11 | B40: [Расходы на закупки товаров, работ, услуг] [Выполнение ремонтных работ текущего характера в здании и на крыше лицея] [225] [кв.м] | D40: 2024 | E40: 1.00 | F40: 500,000.00 | G40: 500,000.00
A41: 79 | B41: [Расходы на закупки товаров, работ, услуг] [Прочие работы по содержанию НИ] [225] [усл.ед(количество договоров)] | D41: 2024 | E41: 1.00 | F41: 300,000.00 | G41: 300,000.00
A42: 85 | B42: [Расходы на закупки товаров, работ, услуг] [Работы согласно предписаниям РПН,ГПН и других контролирующих органов] [225] [усл.ед.(кол-во договоров)] | D42: 2024 | E42: 1.00 | F42: 100,000.00 | G42: 100,000.00
A43: 193 | B43: [Расходы на закупки товаров, работ, услуг] [Ремонтные работы текущего характера за счет остатка средств 2023 года] [225] [договор] | D43: 2024 | E43: 4.00 | F43: 375,000.00 | G43: 1,500,000.00
A44: 194 | B44: [Расходы на закупки товаров, работ, услуг] [благоустройство территории (обрезка кустарников) за счет остатка средств 2023 года] [225] [догввор] | D44: 2024 | E44: 1.00 | F44: 90,000.00 | G44: 90,000.00
A45: 228 | B45: [Расходы на закупки товаров, работ, услуг] [благоустройство территории (обрезка кустарников) за счет остатка средств 2023 года] [225] [догввор] | D45: 2024 | E45: 1.00 | F45: 60,000.00 | G45: 60,000.00
A46: Итого: | G46: =SUM(G40:G45) -> 2,550,000.00
A48: Код видов расходов | C48: 244
A49: Источник финансового обеспечения | C49: приносящая доход деятельность (собственные доходы учреждения)
A51: 6. Расчеты (обоснования) расходов на закупки товаров, работ, услуг (226)
A53: № п/п | B53: Наименование расходов | D53: Год (планируемый год) размещения закупки | E53: Количество | F53: Цена за единицу | G53: Сумма, руб (гр. 4 х гр.5)
A54: 1 | B54: 2 | D54: 3 | E54: 4 | F54: 5 | G54: 6
A55: 12 | B55: [Расходы на закупки товаров, работ, услуг] [Прочие работы услуги] [226] [усл.ед (кол-во договоров)] | D55: 2024 | E55: 4.00 | F55: 50,000.00 | G55: 200,000.00
A56: 35 | B56: [Расходы на закупки товаров, работ, услуг] [Оказание дополнительных образовательных услуг учащимся ГАОУ МО ЛНИП] [226] [кол-во договоров] | D56: 2024 | E56: 1.00 | F56: 1,500,000.00 | G56: 1,500,000.00
A57: 36 | B57: [Расходы на закупки товаров, работ, услуг] [Передача неисключительных прав на использование (простых неисключительных лицензии) на программ для ЭВМ] [226] [кол-во договоров на ПО] | D57: 2024 | E57: 5.00 | F57: 82,000.00 | G57: 410,000.00
A58: 51 | B58: [Расходы на закупки товаров, работ, услуг] [Обучение специалистов системы образования (семинары,конференции,совещания,курсы пов квалификац., подготовки и переподготовки специалистов)] [226] [кол-во чел.] | D58: 2024 | E58: 4.00 | F58: 25,000.00 | G58: 100,000.00
A59: 195 | B59: [Расходы на закупки товаров, работ, услуг] [Передача неисключительных прав на использование программ для ЭВМ за счет остатка средств 2023 года] [226] [договор] | D59: 2024 | E59: 1.00 | F59: 100,000.00 | G59: 100,000.00
A60: 196 | B60: [Расходы на закупки товаров, работ, услуг] [Обучение специалистов системы образования за счет остатка средств 2023 года] [226] [договор] | D60: 2024 | E60: 4.00 | F60: 25,000.00 | G60: 100,000.00
A61: 197 | B61: [Расходы на закупки товаров, работ, услуг] [Окраска ограждения за счет остатка 2023 года] [226] [договор] | D61: 2024 | E61: 2.00 | F61: 71,500.00 | G61: 143,000.00
A62: Итого: | G62: =SUM(G55:G61) -> 2,553,000.00
A64: Код видов расходов | C64: 244
A65: Источник финансового обеспечения | C65: приносящая доход деятельность (собственные доходы учреждения)
A67: 6. Расчеты (обоснования) расходов на закупки товаров, работ, услуг (310)
A69: № п/п | B69: Наименование расходов | D69: Год (планируемый год) размещения закупки | E69: Количество | F69: Цена за единицу | G69: Сумма, руб (гр. 4 х гр.5)
A70: 1 | B70: 2 | D70: 3 | E70: 4 | F70: 5 | G70: 6
A71: 68 | B71: [Расходы на закупки товаров, работ, услуг] [Приобретение компьютерной и офисной техники] [310] [ед.] | D71: 2024 | E71: 4.00 | F71: 25,000.00 | G71: 100,000.00
A72: 80 | B72: [Расходы на закупки товаров, работ, услуг] [Первичные средства пожаротушения, СИЗОД] [310] | D72: 2024 | E72: 10.00 | F72: 3,000.00 | G72: 30,000.00
A73: 86 | B73: [Расходы на закупки товаров, работ, услуг] [Приобретение мебели, прочих ОС] [310] [ед] | D73: 2024 | E73: 10.00 | F73: 28,000.00 | G73: 280,000.00
A74: 186 | B74: [Расходы на закупки товаров, работ, услуг] [закупка учебников] [310] [шт.] | D74: 2024 | E74: 1.00 | F74: 100,000.00 | G74: 100,000.00
A75: Итого: | G75: =SUM(G71:G74) -> 510,000.00
A77: Код видов расходов | C77: 244
A78: Источник финансового обеспечения | C78: приносящая доход деятельность (собственные доходы учреждения)
A80: 6. Расчеты (обоснования) расходов на закупки товаров, работ, услуг (344)
A82: № п/п | B82: Наименование расходов | D82: Год (планируемый год) размещения закупки | E82: Количество | F82: Цена за единицу | G82: Сумма, руб (гр. 4 х гр.5)
A83: 1 | B83: 2 | D83: 3 | E83: 4 | F83: 5 | G83: 6
A84: 93 | B84: [Расходы на закупки товаров, работ, услуг] [Приобретение строительных материалов] [344] [Строительные материалы, ед.] | D84: 2024 | E84: 50.00 | F84: 2,000.00 | G84: 100,000.00
A85: Итого: | G85: =SUM(G84:G84) -> 100,000.00
A87: Код видов расходов | C87: 244
A88: Источник финансового обеспечения | C88: приносящая доход деятельность (собственные доходы учреждения)
A90: 6. Расчеты (обоснования) расходов на закупки товаров, работ, услуг ()
A92: № п/п | B92: Наименование расходов | D92: Год (планируемый год) размещения закупки | E92: Количество | F92: Цена за единицу | G92: Сумма, руб (гр. 4 х гр.5)
A93: 1 | B93: 2 | D93: 3 | E93: 4 | F93: 5 | G93: 6
A94: Итого:
A96: Код видов расходов | C96: 244
A97: Источник финансового обеспечения | C97: приносящая доход деятельность (собственные доходы учреждения)
A99: 6. Расчеты (обоснования) расходов на закупки товаров, работ, услуг (346)
A101: № п/п | B101: Наименование расходов | D101: Год (планируемый год) размещения закупки | E101: Количество | F101: Цена за единицу | G101: Сумма, руб (гр. 4 х гр.5)
A102: 1 | B102: 2 | D102: 3 | E102: 4 | F102: 5 | G102: 6
A103: 17 | B103: [Расходы на закупки товаров, работ, услуг] [Поставка питьевой бутилированной воды] [346] [договоры] | D103: 2024 | E103: 1.00 | F103: 233,840.00 | G103: 233,840.00
A104: 19 | B104: [Расходы на закупки товаров, работ, услуг] [Поставка расходных материалов (картриджи, запчасти) для компьютерной и офисной техники, шт.] [346] [Поставка расходных материалов (картриджи, запчасти) для компьютерной и офисной техники, шт.] | D104: 2024 | E104: 1.00 | F104: 150,000.00 | G104: 150,000.00
A105: 44 | B105: [Расходы на закупки товаров, работ, услуг] [Поставка канцелярских товаров] [346] [Поставка канцелярских товаров, шт.] | D105: 2024 | E105: 1.00 | F105: 50,000.00 | G105: 50,000.00
A106: 45 | B106: [Расходы на закупки товаров, работ, услуг] [Поставка хозяйственных товаров] [346] [шт.] | D106: 2024 | E106: 1.00 | F106: 60,000.00 | G106: 60,000.00
A107: 225 | B107: [Расходы на закупки товаров, работ, услуг] [Поставка питьевой бутилированной воды] [346] [договоры] | D107: 2023 | E107: 1.00 | F107: 116,160.00 | G107: 116,160.00
A108: 226 | B108: [Расходы на закупки товаров, работ, услуг] [Поставка бумаги] [346] [Поставка бумаги, пачки] | D108: 2023 | E108: 1.00 | F108: 131,040.00 | G108: 131,040.00
A109: Итого: | G109: =SUM(G103:G108) -> 741,040.00
A111: Код видов расходов | C111: 244
A112: Источник финансового обеспечения | C112: приносящая доход деятельность (собственные доходы учреждения)
A114: 6. Расчеты (обоснования) расходов на закупки товаров, работ, услуг (349)
A116: № п/п | B116: Наименование расходов | D116: Год (планируемый год) размещения закупки | E116: Количество | F116: Цена за единицу | G116: Сумма, руб (гр. 4 х гр.5)
A117: 1 | B117: 2 | D117: 3 | E117: 4 | F117: 5 | G117: 6
A118: 43 | B118: [Расходы на закупки товаров, работ, услуг] [изготовление и поставка защищенной полиграфической продукции (аттестаты, вкладыши)] [349] | D118: 2024 | E118: 1.00 | F118: 50,000.00 | G118: 50,000.00
A119: Итого: | G119: =SUM(G118:G118) -> 50,000.00
A121: Код видов расходов | C121: 244
A122: Источник финансового обеспечения | C122: субсидии на выполнение государственного (муниципального) задания
A124: 6. Расчеты (обоснования) расходов на закупки товаров, работ, услуг (221)
A126: № п/п | B126: Наименование расходов | D126: Год (планируемый год) размещения закупки | E126: Количество | F126: Цена за единицу | G126: Сумма, руб (гр. 4 х гр.5)
A127: 1 | B127: 2 | D127: 3 | E127: 4 | F127: 5 | G127: 6
A128: 198 | B128: [Расходы на закупки товаров, работ, услуг] [Кредиторская задолженность за декабрь 2023 по договору с ПАО "Ростелеком" за счет остатка 2023 года] [221] [месяц] | D128: 2023 | E128: 1.00 | F128: 1,623.54 | G128: 1,623.54
A129: 209 | B129: [Расходы на закупки товаров, работ, услуг] [Услуги связи] [221] [месяц] | D129: 2023 | E129: 36.00 | F129: 870.92 | G129: 31,352.95
A130: Итого: | G130: =SUM(G128:G129) -> 32,976.49
A132: Код видов расходов | C132: 244
A133: Источник финансового обеспечения | C133: субсидии на выполнение государственного (муниципального) задания
A135: 6. Расчеты (обоснования) расходов на закупки товаров, работ, услуг (223)
A137: № п/п | B137: Наименование расходов | D137: Год (планируемый год) размещения закупки | E137: Количество | F137: Цена за единицу | G137: Сумма, руб (гр. 4 х гр.5)
A138: 1 | B138: 2 | D138: 3 | E138: 4 | F138: 5 | G138: 6
A139: 2 | B139: [Расходы на закупки товаров, работ, услуг] [Оказание услуг по обращению с твердыми коммунальными отходами] [223] [мес.] | D139: 2024 | E139: 1.00 | F139: 130,348.20 | G139: 130,348.20
A140: 214 | B140: [Расходы на закупки товаров, работ, услуг] [Оказание услуг холодного водоснабжения и водоотведения] [223] [договор] | D140: 2023 | E140: 1.00 | F140: 88,934.10 | G140: 88,934.10
A141: Итого: | G141: =SUM(G139:G140) -> 219,282.30
A143: Код видов расходов | C143: 244
A144: Источник финансового обеспечения | C144: субсидии на выполнение государственного (муниципального) задания
A146: 6. Расчеты (обоснования) расходов на закупки товаров, работ, услуг (225)
A148: № п/п | B148: Наименование расходов | D148: Год (планируемый год) размещения закупки | E148: Количество | F148: Цена за единицу | G148: Сумма, руб (гр. 4 х гр.5)
A149: 1 | B149: 2 | D149: 3 | E149: 4 | F149: 5 | G149: 6
A150: 23 | B150: [Расходы на закупки товаров, работ, услуг] [Заправка и ремонт огнетушителей] [225] [шт.] | D150: 2024 | E150: 1.00 | F150: 15,000.00 | G150: 15,000.00
A151: 24 | B151: [Расходы на закупки товаров, работ, услуг] [оказание услуг по замерам сопротивления электроизоляции] [225] [разово, усл.ед] | D151: 2024 | E151: 1.00 | F151: 30,000.00 | G151: 30,000.00
A152: 27 | B152: [Расходы на закупки товаров, работ, услуг] [На оказание услуг по ремонту и очистке систем вентиляции и вентиляционного оборудования] [225] [разово, усл.ед] | D152: 2024 | E152: 1.00 | F152: 30,000.00 | G152: 30,000.00
A153: 28 | B153: [Расходы на закупки товаров, работ, услуг] [Оказание услуг по оказание услуг по проверки внутреннего водопровода на водоотдачу и перекатка пожарных рукавов на новое ребро] [225] [разово, 1 усл.ед] | D153: 2024 | E153: 1.00 | F153: 30,000.00 | G153: 30,000.00
A154: 54 | B154: [Расходы на закупки товаров, работ, услуг] [опрессовка системы отопления] [225] [разово, усл.ед] | D154: 2024 | E154: 1.00 | F154: 55,000.00 | G154: 55,000.00
A155: 201 | B155: [Расходы на закупки товаров, работ, услуг] [Заключение договоров на содержание имущества ремонтные работы текущего характера за счет остатка 2023 года] [225] [договор] | D155: 2024 | E155: 1.00 | F155: 250,000.00 | G155: 250,000.00
A156: 202 | B156: [Расходы на закупки товаров, работ, услуг] [Заключение договоров на содержание имущества за счет остатка 2023 года] [225] [договор] | D156: 2024 | E156: 1.00 | F156: 107,000.00 | G156: 107,000.00
A157: 215 | B157: [Расходы на закупки товаров, работ, услуг] [оказание услуг по очистке от снега и наледи кровли площадью 132 кв.м] [225] [договор] | D157: 2023 | E157: 1.00 | F157: 49,988.69 | G157: 49,988.69
A158: 216 | B158: [Расходы на закупки товаров, работ, услуг] [оказание услуг по дератизации, дезинсекции и дезинфекции] [225] [договор] | D158: 2023 | E158: 1.00 | F158: 17,000.00 | G158: 17,000.00
A159: 217 | B159: [Расходы на закупки товаров, работ, услуг] [Оказание услуг по устранению технологических сбоев электросетей, электрооборудования, сантехнического оборудования, внутренних инженерных сетей (тепловых, водоснабжения, канализированные)] [225] [договор] | D159: 2023 | E159: 1.00 | F159: 350,000.00 | G159: 350,000.00
A160: 218 | B160: [Расходы на закупки товаров, работ, услуг] [оказание услуг по техническому обслуживанию системы тревожной сигнализации] [225] [месяц] | D160: 2023 | E160: 12.00 | F160: 541.00 | G160: 6,492.00
A161: 219 | B161: [Расходы на закупки товаров, работ, услуг] [Оказание услуг по техническому обслуживанию АУПС и системы оповещения людей при пожаре] [225] [месяц] | D161: 2023 | E161: 12.00 | F161: 4,950.00 | G161: 59,400.00
A162: 220 | B162: [Расходы на закупки товаров, работ, услуг] [Оказание услуг по техническому обслуживанию системы видеонаблюдения] [225] [месяц] | D162: 2023 | E162: 12.00 | F162: 3,200.00 | G162: 38,400.00
A163: 221 | B163: [Расходы на закупки товаров, работ, услуг] [Оказание услуг по ТО системы охранной сигнализации] [225] [месяц] | D163: 2023 | E163: 12.00 | F163: 8,000.00 | G163: 96,000.00
A164: Итого: | G164: =SUM(G150:G163) -> 1,134,280.69
A166: Код видов расходов | C166: 244
A167: Источник финансового обеспечения | C167: субсидии на выполнение государственного (муниципального) задания
A169: 6. Расчеты (обоснования) расходов на закупки товаров, работ, услуг (226)
A171: № п/п | B171: Наименование расходов | D171: Год (планируемый год) размещения закупки | E171: Количество | F171: Цена за единицу | G171: Сумма, руб (гр. 4 х гр.5)
A172: 1 | B172: 2 | D172: 3 | E172: 4 | F172: 5 | G172: 6
A173: 13 | B173: [Расходы на закупки товаров, работ, услуг] [на оказание охранных услуг] [226] [договор] | D173: 2023 | E173: 1.00 | F173: 1,472,725.44 | G173: 1,472,725.44
A174: 14 | B174: [Расходы на закупки товаров, работ, услуг] [Оказание услуг по организации горячего питания отдельным категориям обучающихся] [226] [договор] | D174: 2023 | E174: 1.00 | F174: 1,293,886.00 | G174: 1,293,886.00
A175: 34 | B175: [Расходы на закупки товаров, работ, услуг] [Проведение экспертной оценки уровня профессиональной компетентности учителей на подтверждение квалификационной категории] [226] [чел.] | D175: 2024 | E175: 1.00 | F175: 30,000.00 | G175: 30,000.00
A176: 39 | B176: [Расходы на закупки товаров, работ, услуг] [Оказание услуг специальной оценки условий труда] [226] [кол-во рабочих мест] | D176: 2024 | E176: 1.00 | F176: 30,000.00 | G176: 30,000.00
A177: 40 | B177: [Расходы на закупки товаров, работ, услуг] [Аутсорсинг по уборке помещений лицея] [226] [договор] | D177: 2024 | E177: 1.00 | F177: 2,410,888.68 | G177: 2,410,888.68
A178: 51 | B178: [Расходы на закупки товаров, работ, услуг] [Обучение специалистов системы образования (семинары,конференции,совещания,курсы пов квалификац., подготовки и переподготовки специалистов)] [226] [оказание платных образовательных услуг, кол-во договоров] | D178: 2024 | E178: 1.00 | F178: 50,000.00 | G178: 50,000.00
A179: 55 | B179: [Расходы на закупки товаров, работ, услуг] [Медосмотр сотрудников] [226] [чел.] | D179: 2024 | E179: 1.00 | F179: 250,000.00 | G179: 250,000.00
A180: 62 | B180: [Расходы на закупки товаров, работ, услуг] [Обслуживание защищенного канала связи] [226] [договор] | D180: 2024 | E180: 1.00 | F180: 30,000.00 | G180: 30,000.00
A181: 203 | B181: [Расходы на закупки товаров, работ, услуг] [Приобретение лицензионных неисключительных прав на ПО за счет остатка 2023 года] [226] | D181: 2024 | E181: 1.00 | F181: 100,000.00 | G181: 100,000.00
A182: 204 | B182: [Расходы на закупки товаров, работ, услуг] [кредиторская задолженность по договору на оказание охранных услуг за декабрь 2023за счет остатка 2023 года] [226] [месяц] | D182: 2023 | E182: 1.00 | F182: 114,576.00 | G182: 114,576.00
A183: 205 | B183: [Расходы на закупки товаров, работ, услуг] [Заключение договоров на обучение работников за счет остатка 2023 года] [226] | D183: 2024 | E183: 2.00 | F183: 50,000.00 | G183: 100,000.00
A184: 206 | B184: [Расходы на закупки товаров, работ, услуг] [Заключение договоров на оказание прочих работ/услуг за счет остатка 2023 года] [226] | D184: 2024 | E184: 4.00 | F184: 25,000.00 | G184: 100,000.00
A185: 222 | B185: [Расходы на закупки товаров, работ, услуг] [Оказание услуг по организации горячего питания отдельным категориям обучающихся] [226] [договор] | D185: 2024 | E185: 1.00 | F185: 1,000,000.00 | G185: 1,000,000.00
A186: 223 | B186: [Расходы на закупки товаров, работ, услуг] [Оказание охранных услуг путем реагирования мобильными нарядами на срабатывание КТС] [226] [месяц] | D186: 2023 | E186: 12.00 | F186: 2,581.80 | G186: 30,981.60
A187: Итого: | G187: =SUM(G173:G186) -> 7,013,057.72
A189: Код видов расходов | C189: 244
A190: Источник финансового обеспечения | C190: субсидии на выполнение государственного (муниципального) задания
A192: 6. Расчеты (обоснования) расходов на закупки товаров, работ, услуг (310)
A194: № п/п | B194: Наименование расходов | D194: Год (планируемый год) размещения закупки | E194: Количество | F194: Цена за единицу | G194: Сумма, руб (гр. 4 х гр.5)
A195: 1 | B195: 2 | D195: 3 | E195: 4 | F195: 5 | G195: 6
A196: 207 | B196: [Расходы на закупки товаров, работ, услуг] [Приобретение мебели для учебного кабинета за счет остатка 2023 года] [310] | D196: 2024 | E196: 10.00 | F196: 24,600.00 | G196: 246,000.00
A197: Итого: | G197: =SUM(G196:G196) -> 246,000.00
A199: Код видов расходов | C199: 244
A200: Источник финансового обеспечения | C200: субсидии на выполнение государственного (муниципального) задания
A202: 6. Расчеты (обоснования) расходов на закупки товаров, работ, услуг (346)
A204: № п/п | B204: Наименование расходов | D204: Год (планируемый год) размещения закупки | E204: Количество | F204: Цена за единицу | G204: Сумма, руб (гр. 4 х гр.5)
A205: 1 | B205: 2 | D205: 3 | E205: 4 | F205: 5 | G205: 6
A206: 18 | B206: [Расходы на закупки товаров, работ, услуг] [Поставка бумаги] [346] [Поставка бумаги, пачки] | D206: 2024 | E206: 1.00 | F206: 80,000.00 | G206: 80,000.00
A207: 19 | B207: [Расходы на закупки товаров, работ, услуг] [Поставка расходных материалов (картриджи, запчасти) для компьютерной и офисной техники, шт.] [346] [Поставка расходных материалов (картриджи, запчасти) для компьютерной и офисной техники, шт.] | D207: 2024 | E207: 1.00 | F207: 50,053.18 | G207: 50,053.18
A208: 44 | B208: [Расходы на закупки товаров, работ, услуг] [Поставка канцелярских товаров] [346] [Поставка канцелярских товаров,шт.] | D208: 2024 | E208: 100.00 | F208: 600.00 | G208: 60,000.00
A209: 45 | B209: [Расходы на закупки товаров, работ, услуг] [Поставка хозяйственных товаров] [346] [Поставка хозяйственных товаров, ед.] | D209: 2024 | E209: 1.00 | F209: 80,000.00 | G209: 80,000.00
A210: 208 | B210: [Расходы на закупки товаров, работ, услуг] [Приобретение твердых обложек для аттестатов за счет остатка 2023 года] [346] | D210: 2024 | E210: 50.00 | F210: 460.00 | G210: 23,000.00
A211: Итого: | G211: =SUM(G206:G210) -> 293,053.18
A213: Код видов расходов | C213: 244
A214: Источник финансового обеспечения | C214: субсидии на выполнение государственного (муниципального) задания
A216: 6. Расчеты (обоснования) расходов на закупки товаров, работ, услуг (349)
A218: № п/п | B218: Наименование расходов | D218: Год (планируемый год) размещения закупки | E218: Количество | F218: Цена за единицу | G218: Сумма, руб (гр. 4 х гр.5)
A219: 1 | B219: 2 | D219: 3 | E219: 4 | F219: 5 | G219: 6
A220: 43 | B220: [Расходы на закупки товаров, работ, услуг] [изготовление и поставка защищенной полиграфической продукции (аттестаты, вкладыши)] [349] [изготовление и поставка защищенной полиграфической продукции (аттестаты, вкладыши), шт] | D220: 2024 | E220: 1.00 | F220: 20,000.00 | G220: 20,000.00
A221: 59 | B221: [Расходы на закупки товаров, работ, услуг] [Прочая наградная продукция] [349] [Прочая наградная продукция (грамоты, сувениры), шт.] | D221: 2024 | E221: 1.00 | F221: 15,000.00 | G221: 15,000.00
A222: Итого: | G222: =SUM(G220:G221) -> 35,000.00
A224: Код видов расходов | C224: 244
A225: Источник финансового обеспечения | C225: субсидии на иные цели
A227: 6. Расчеты (обоснования) расходов на закупки товаров, работ, услуг ()
A229: № п/п | B229: Наименование расходов | D229: Год (планируемый год) размещения закупки | E229: Количество | F229: Цена за единицу | G229: Сумма, руб (гр. 4 х гр.5)
A230: 1 | B230: 2 | D230: 3 | E230: 4 | F230: 5 | G230: 6
A231: Итого:
A233: Код видов расходов | C233: 244
A234: Источник финансового обеспечения | C234: субсидии на иные цели
A236: 6. Расчеты (обоснования) расходов на закупки товаров, работ, услуг (345)
A238: № п/п | B238: Наименование расходов | D238: Год (планируемый год) размещения закупки | E238: Количество | F238: Цена за единицу | G238: Сумма, руб (гр. 4 х гр.5)
A239: 1 | B239: 2 | D239: 3 | E239: 4 | F239: 5 | G239: 6
A240: 227 | B240: [Расходы на закупки товаров, работ, услуг] [Приобретение ГДЗК, Распоряжение МОМО от 31.01.2024 № Р-112] [345] | D240: 2024 | E240: 74.00 | F240: 3,108.11 | G240: 230,000.00
A241: Итого: | G241: =SUM(G240:G240) -> 230,000.00
A243: Код видов расходов | C243: 247
A244: Источник финансового обеспечения | C244: приносящая доход деятельность (собственные доходы учреждения)
A246: 6. Расчеты (обоснования) расходов на закупки товаров, работ, услуг (223)
A248: № п/п | B248: Наименование расходов | D248: Год (планируемый год) размещения закупки | E248: Количество | F248: Цена за единицу | G248: Сумма, руб (гр. 4 х гр.5)
A249: 1 | B249: 2 | D249: 3 | E249: 4 | F249: 5 | G249: 6
A250: 191 | B250: [Расходы на закупки товаров, работ, услуг] [кредиторская задолженность за декабрь 2023 за счет остатка средств 2023 года] [кредиторская задолженность за декабрь 2023 за счет остатка средств 2023 года] [223] [мес] | D250: 2023 | E250: 1.00 | F250: 672.27 | G250: 672.27
A251: 192 | B251: [Расходы на закупки товаров, работ, услуг] [кредиторская задолженность за декабрь 2023 за счет остатка средств 2023 года] [кредиторская задолженность за декабрь 2023 за счет остатка средств 2023 года] [223] [мес] | D251: 2023 | E251: 1.00 | F251: 138,087.42 | G251: 138,087.42
A252: 211 | B252: [Расходы на закупки товаров, работ, услуг] [Услуги электроснабжения (внебюджет)] [223] [договор] | D252: 2023 | E252: 1.00 | F252: 40,500.00 | G252: 40,500.00
A253: 213 | B253: [Расходы на закупки товаров, работ, услуг] [Оказание услуг теплоснабжения(внебюджет)] [223] | D253: 2023 | E253: 1.00 | F253: 300,000.00 | G253: 300,000.00
A254: Итого: | G254: =SUM(G250:G253) -> 479,259.69
A256: Код видов расходов | C256: 247
A257: Источник финансового обеспечения | C257: субсидии на выполнение государственного (муниципального) задания
A259: 6. Расчеты (обоснования) расходов на закупки товаров, работ, услуг (223)
A261: № п/п | B261: Наименование расходов | D261: Год (планируемый год) размещения закупки | E261: Количество | F261: Цена за единицу | G261: Сумма, руб (гр. 4 х гр.5)
A262: 1 | B262: 2 | D262: 3 | E262: 4 | F262: 5 | G262: 6
A263: 199 | B263: [Расходы на закупки товаров, работ, услуг] [Кредиторская задолженность за декабрь 2023 по договорам ОА "Мосэнергосбыт" за счет остатка 2023 года] [223] [месяц] | D263: 2023 | E263: 1.00 | F263: 33,449.13 | G263: 33,449.13
... 4 more rows

Sheet Обоснования доходов
A2: 1. Обоснование (расчет) плановых показателей поступлений по статье 120 «Доходы от собственности» аналитической группы подвида доходов бюджетов
A4: 1.1. Расчет доходов от использования имущества, находящегося в государственной собственности и переданного в аренду
A6: № п/п | B6: Код по бюджетной классификации Российской Федерации | C6: Наименование доходов | D6: на 2024 год (на текущий финансовый год) | G6: на 2025 год (на первый год планового периода) | J6: на 2026 год (на второй год планового периода)
D7: Планируемый объем (ед.) | E7: Средний тариф (плата) за единицу (руб.) | F7: Доход (руб.), (гр.4 x гр. 5) | G7: Планируемый объем (ед.) | H7: Средний тариф (плата) за единицу (руб.) | I7: Доход (руб.), (гр.7 x гр. 8) | J7: Планируемый объем (ед.) | K7: Средний тариф (плата) за единицу (руб.) | L7: Доход (руб.), (гр.10 x гр. 11)
A8: 1 | B8: 2 | C8: 3 | D8: 4 | E8: 5 | F8: 6 | G8: 7 | H8: 8 | I8: 9 | J8: 10 | K8: 11 | L8: 12
A9: X | B9: X | C9: X | D9: X | E9: X | F9: X | G9: X | H9: X | I9: X | J9: X | K9: X | L9: X
A11: 2. Обоснование (расчет) плановых показателей поступлений по статье 130 «Доходы от оказания платных услуг (работ), компенсаций затрат» аналитической группы подвида доходов бюджетов
A13: 2.1. Расчет доходов от оказания услуг, выполнения работ, реализации готовой продукции на платной основе
A15: № п/п | B15: Код по бюджетной классификации Российской Федерации | C15: Наименование доходов | D15: на 2024 год (на текущий финансовый год) | G15: на 2025 год (на первый год планового периода) | J15: на 2026 год (на второй год планового периода)
D16: Планируемый объем (ед.) | E16: Средний тариф (плата) за единицу (руб.) | F16: Доход (руб.), (гр.4 x гр. 5) | G16: Планируемый объем (ед.) | H16: Средний тариф (плата) за единицу (руб.) | I16: Доход (руб.), (гр.7 x гр. 8) | J16: Планируемый объем (ед.) | K16: Средний тариф (плата) за единицу (руб.) | L16: Доход (руб.), (гр.10 x гр. 11)
A17: 1 | B17: 2 | C17: 3 | D17: 4 | E17: 5 | F17: 6 | G17: 7 | H17: 8 | I17: 9 | J17: 10 | K17: 11 | L17: 12
A18: 1 | B18: 130 | C18: Кружковая олимпиадная подготовка учащихся ЛНИП с сентября по май (8 мес), чел. | D18: 72.00 | E18: 11,172.33 | F18: 804,408.00 | G18: 72.00 | H18: 11,172.33 | I18: 804,408.00 | J18: 72.00 | K18: 11,172.33 | L18: 804,408.00
A19: 2 | B19: 130 | C19: Оказание дополнительных платных образовательных услуг для учащихся 5-9 классов с октября по апрель (7 мес.), чел. | D19: 759.00 | E19: 27,216.00 | F19: 20,656,944.00 | G19: 759.00 | H19: 27,216.00 | I19: 20,656,944.00 | J19: 759.00 | K19: 27,216.00 | L19: 20,656,944.00
A20: 3 | B20: 130 | C20: Оказание дополнительных платных образовательных услуг для учащихся 10-11 классов с октября по апрель (7 мес.), чел. | D20: 73.00 | E20: 34,776.00 | F20: 2,538,648.00 | G20: 73.00 | H20: 34,776.00 | I20: 2,538,648.00 | J20: 73.00 | K20: 34,776.00 | L20: 2,538,648.00
A21: Итого: | D21: X | E21: X | F21: =SUM(F18:F20) -> 24,000,000.00 | G21: X | H21: X | I21: =SUM(I18:I20) -> 24,000,000.00 | J21: X | K21: X | L21: =SUM(L18:L20) -> 24,000,000.00
A23: 2.2. Расчет доходов от оказания услуг (выполнения работ) в рамках установленного государственного задания
A25: № п/п | B25: Код по бюджетной классификации Российской Федерации | C25: Наименование доходов | D25: на 2024 год (на текущий финансовый год) | G25: на 2025 год (на первый год планового периода) | J25: на 2026 год (на второй год планового периода)
D26: Планируемый объем (ед.) | E26: Средний тариф (плата) за единицу (руб.) | F26: Доход (руб.), (гр.4 x гр. 5) | G26: Планируемый объем (ед.) | H26: Средний тариф (плата) за единицу (руб.) | I26: Доход (руб.), (гр.7 x гр. 8) | J26: Планируемый объем (ед.) | K26: Средний тариф (плата) за единицу (руб.) | L26: Доход (руб.), (гр.10 x гр. 11)
A27: 1 | B27: 2 | C27: 3 | D27: 4 | E27: 5 | F27: 6 | G27: 7 | H27: 8 | I27: 9 | J27: 10 | K27: 11 | L27: 12
A28: 1 | B28: 130 | C28: Реализация дополнительных общеразвивающих программ | D28: 7,751.95 | E28: 595.56 | F28: 4,616,716.44 | G28: 7,751.95 | H28: 595.56 | I28: 4,616,716.44 | J28: 7,751.95 | K28: 595.56 | L28: 4,616,716.44
A29: 2 | B29: 130 | C29: Реализация основных общеобразовательных программ основного общего образования | D29: 212.00 | E29: 262,422.60 | F29: 55,633,591.57 | G29: 212.00 | H29: 262,422.60 | I29: 55,633,591.57 | J29: 212.00 | K29: 262,422.60 | L29: 55,633,591.57
A30: 3 | B30: 130 | C30: Реализация основных общеобразовательных программ среднего общего образования | D30: 148.33 | E30: 9,254.69 | F30: 1,372,747.97 | G30: 148.33 | H30: 9,254.69 | I30: 1,372,747.97 | J30: 148.33 | K30: 9,254.69 | L30: 1,372,747.97
A31: Итого: | D31: X | E31: X | F31: =SUM(F28:F30) -> 61,623,055.98 | G31: X | H31: X | I31: =SUM(I28:I30) -> 61,623,055.98 | J31: X | K31: X | L31: =SUM(L28:L30) -> 61,623,055.98
A33: 2.3. Расчет доходов от оказания услуг в рамках обязательного медицинского страхования
A35: № п/п | B35: Код по бюджетной классификации Российской Федерации | C35: Наименование доходов | D35: на 2024 год (на текущий финансовый год) | G35: на 2025 год (на первый год планового периода) | J35: на 2026 год (на второй год планового периода)
D36: Планируемый объем (ед.) | E36: Средний тариф (плата) за единицу (руб.) | F36: Доход (руб.), (гр.4 x гр. 5) | G36: Планируемый объем (ед.) | H36: Средний тариф (плата) за единицу (руб.) | I36: Доход (руб.), (гр.7 x гр. 8) | J36: Планируемый объем (ед.) | K36: Средний тариф (плата) за единицу (руб.) | L36: Доход (руб.), (гр.10 x гр. 11)
A37: 1 | B37: 2 | C37: 3 | D37: 4 | E37: 5 | F37: 6 | G37: 7 | H37: 8 | I37: 9 | J37: 10 | K37: 11 | L37: 12
A38: X | B38: X | C38: X | D38: X | E38: X | F38: X | G38: X | H38: X | I38: X | J38: X | K38: X | L38: X
A40: 3. Обоснование (расчет) плановых показателей поступлений по статье 140 «Штрафы, пени, неустойки, возмещения ущерба» аналитической группы подвида доходов бюджетов
A42: 3.1. Расчет доходов от штрафов, пеней, неустойки, возмещения ущерба
A44: № п/п | B44: Код по бюджетной классификации Российской Федерации | C44: Наименование доходов | D44: на 2024 год (на текущий финансовый год) | E44: на 2025 год (на первый год планового периода) | F44: на 2026 год (на второй год планового периода)
D45: Планируемый размер поступлений (руб.) | E45: Планируемый размер поступлений (руб.) | F45: Планируемый размер поступлений (руб.)
A46: 1 | B46: 2 | C46: 3 | D46: 4 | E46: 5 | F46: 6
A47: X | B47: X | C47: X | D47: X | E47: X | F47: X
A49: 4. Обоснование (расчет) плановых показателей поступлений по статье 150 «Безвозмездные денежные поступления» аналитической группы подвида доходов бюджетов
A51: 4.1. Расчет доходов от безвозмездных денежных поступлений
A53: № п/п | B53: Код по бюджетной классификации Российской Федерации | C53: Наименование доходов | D53: на 2024 год (на текущий финансовый год) | E53: на 2025 год (на первый год планового периода) | F53: на 2026 год (на второй год планового периода)
D54: Планируемый размер поступлений (руб.) | E54: Планируемый размер поступлений (руб.) | F54: Планируемый размер поступлений (руб.)
A55: 1 | B55: 2 | C55: 3 | D55: 4 | E55: 5 | F55: 6
A56: 1 | B56: 150 | C56: Субсидия на иные цели на выплату денежного вознаграждения за классное руководство из средств Федерального бюджета | D56: 1,093,680.00 | E56: 0.00 | F56: 0.00
A57: 2 | B57: 150 | C57: Грант общеобразовательным организациям Московской области с высоким уровнем достижений работы педагогического коллектива по образованию и воспитанию | D57: 11,673,000.00 | E57: 0.00 | F57: 0.00
A58: 3 | B58: 150 | C58: Распоряжение Министерства образования Московской области от 01.02.2024 № Р-121 на проведение мероприятий по обеспечению деятельности советника директора по воспитанию и взаимодействию с детскими общественными объединениями (код субсидии 014.24.99.003) | D58: 418,800.00 | E58: 0.00 | F58: 0.00
A59: 4 | B59: 150 | C59: Распоряжение Министерства образования Московской области от 31.01.2024 № Р-112 на проведение мероприятий по обеспечению пожарной безопасности в 2024 году ( код субсидии 014.24.37037) | D59: 230,000.00 | E59: 0.00 | F59: 0.00
A60: Итого: | D60: =SUM(D56:D59) -> 13,415,480.00 | E60: =SUM(E56:E59) -> 0.00 | F60: =SUM(F56:F59) -> 0.00
A62: 5. Обоснование (расчет) плановых показателей поступлений по статье 180 «Прочие доходы» аналитической группы подвида доходов бюджетов
A64: 5.1. Расчет прочих доходов
A66: № п/п | B66: Код по бюджетной классификации Российской Федерации | C66: Наименование доходов | D66: на 2024 год (на текущий финансовый год) | E66: на 2025 год (на первый год планового периода) | F66: на 2026 год (на второй год планового периода)
D67: Планируемый размер поступлений (руб.) | E67: Планируемый размер поступлений (руб.) | F67: Планируемый размер поступлений (руб.)
A68: 1 | B68: 2 | C68: 3 | D68: 4 | E68: 5 | F68: 6
A69: X | B69: X | C69: X | D69: X | E69: X | F69: X
A71: 5.2 Расчет выплат, уменьшающих доход
A73: № п/п | B73: Код по бюджетной классификации Российской Федерации | C73: Наименование доходов | D73: на 2024 год (на текущий финансовый год) | G73: на 2025 год (на первый год планового периода) | J73: на 2026 год (на второй год планового периода)
D74: Налоговая база (руб.) | E74: Ставка налога (%) | F74: Сумма исчисленного налога, подлежа-щего уплате (руб.) (гр. 4 x гр. 5 / 100) | G74: Налоговая база (руб.) | H74: Ставка налога (%) | I74: Сумма исчисленного налога, подлежа-щего уплате (руб.) (гр. 7 x гр. 8 / 100) | J74: Налоговая база (руб.) | K74: Ставка налога (%) | L74: Сумма исчисленного налога, подлежа-щего уплате (руб.) (гр. 10 x гр. 11 / 100)
A75: 1 | B75: 2 | C75: 3 | D75: 4 | E75: 5 | F75: 6 | G75: 7 | H75: 8 | I75: 9 | J75: 10 | K75: 11 | L75: 12
A76: X | B76: X | C76: X | D76: X | E76: X | F76: X | G76: X | H76: X | I76: X | J76: X | K76: X | L76: X

Sheet Справочно
A2: Показатели по поступлениям и выплатам учреждения на 2024 год и плановый период 2025 - 2026 годов (Таблица 2)
A4: Наименование показателя | B4: Код строки | C4: Код по бюджетной классификации Российской Федерации | D4: Объем финансового обеспечения, рублей (с точностью до двух знаков после запятой - 0,00)
D5: 2024 финансовый год | O5: плановый период
D6: Всего | E6: в том числе: | O6: 2025 года | P6: 2026 года
E7: Субсидия на финансовое обеспечение выполнения государственного задания | G7: Субсидии, предоставляемые в соответствии с абз. 2 п. 1 статьи 78.1 БК РФ(иные субсидии) | I7: Субсидии на осуществление капитальных вложений | J7: Средства обязательного медицинского страхования | L7: Поступления от оказания услуг (выполнения работ) на платной основе и от иной приносящей доход деятельности | O7: Всего | P7: Всего
E8: Всего | F8: в т.ч. на просроченную кредиторскую задолженность | G8: Всего | H8: в т.ч. на просроченную кредиторскую задолженность | J8: Всего | K8: в т.ч. на просроченную кредиторскую задолженность | L8: Всего | M8: Из них гранты | N8: в т.ч. на просроченную кредиторскую задолженность
A9: 1 | B9: 2 | C9: 3 | D9: 4 | E9: 5 | F9: 6 | G9: 7 | H9: 8 | I9: 9 | J9: 10 | K9: 11 | L9: 12 | M9: 13 | N9: 14 | O9: 15 | P9: 16
A10: Остаток средств на начало текущего финансового года | B10: 0001 | C10: х | D10: 6,341,371.30 | E10: 1,722,065.15 | F10: X | G10: 76,080.35 | H10: X | I10: X | J10: X | K10: X | L10: 4,543,225.80 | M10: X | N10: X | O10: 0.00 | P10: 0.00
A11: Остаток средств на конец текущего финансового года | B11: 0002 | C11: х | D11: 0.00 | E11: 0.00 | F11: X | G11: 0.00 | H11: X | I11: X | J11: X | K11: X | L11: 0.00 | M11: X | N11: X | O11: 0.00 | P11: 0.00
A12: Доходы, всего: | B12: 1000 | D12: 99,038,535.98 | E12: 61,623,055.98 | F12: X | G12: 13,415,480.00 | H12: X | I12: X | J12: X | K12: X | L12: 24,000,000.00 | M12: X | N12: X | O12: 85,623,055.98 | P12: 85,623,055.98
A13: в том числе: доходы от собственности, всего | B13: 1100 | C13: 120 | D13: 0.00 | E13: X | F13: X | G13: X | H13: X | I13: X | J13: X | K13: X | L13: X | M13: X | N13: X | O13: 0.00 | P13: 0.00
A14: в том числе, аренда | B14: 1110 | C14: 120 | D14: 0.00 | E14: X | F14: X | G14: X | H14: X | I14: X | J14: X | K14: X | L14: X | M14: X | N14: X | O14: 0.00 | P14: 0.00
A15: иные доходы от собственности | B15: 1120 | C15: 120 | D15: 0.00 | E15: X | F15: X | G15: X | H15: X | I15: X | J15: X | K15: X | L15: X | M15: X | N15: X | O15: 0.00 | P15: 0.00
A16: доходы от оказания услуг, работ, компенсации затрат учреждений, всего | B16: 1200 | C16: 130 | D16: 85,623,055.98 | E16: 61,623,055.98 | F16: X | G16: X | H16: X | I16: X | J16: X | K16: X | L16: 24,000,000.00 | M16: X | N16: X | O16: 85,623,055.98 | P16: 85,623,055.98
A17: в том числе: субсидии на финансовое обеспечение выполнения государственного (муниципального) задания за счет средств бюджета публично-правового образования, создавшего учреждение | B17: 1210 | C17: 130 | D17: 61,623,055.98 | E17: 61,623,055.98 | F17: X | G17: X | H17: X | I17: X | J17: X | K17: X | L17: X | M17: X | N17: X | O17: 61,623,055.98 | P17: 61,623,055.98
A18: доходы от возмещений Фондом пенсионного и социального страхования Российской Федерации расходов | B18: 1220 | C18: 130 | D18: 0.00 | E18: X | F18: X | G18: X | H18: X | I18: X | J18: X | K18: X | L18: X | M18: X | N18: X | O18: 0.00 | P18: 0.00
A19: доходы от штрафов, пеней, иных сумм принудительного изъятия, всего | B19: 1300 | C19: 140 | D19: 0.00 | E19: X | F19: X | G19: X | H19: X | I19: X | J19: X | K19: X | L19: X | M19: X | N19: X | O19: 0.00 | P19: 0.00
A20: в том числе, неустойки | B20: 1310 | C20: 140 | D20: 0.00 | E20: X | F20: X | G20: X | H20: X | I20: X | J20: X | K20: X | L20: X | M20: X | N20: X | O20: 0.00 | P20: 0.00
A21: безвозмездные денежные поступления, всего | B21: 1400 | C21: 150 | D21: 13,415,480.00 | E21: X | F21: X | G21: 13,415,480.00 | H21: X | I21: X | J21: X | K21: X | L21: X | M21: X | N21: X | O21: 0.00 | P21: 0.00
A22: в том числе: целевые субсидии | B22: 1410 | C22: 150 | D22: 13,415,480.00 | E22: X | F22: X | G22: 13,415,480.00 | H22: X | I22: X | J22: X | K22: X | L22: X | M22: X | N22: X | O22: 0.00 | P22: 0.00
A23: субсидии на осуществление капитальных вложений | B23: 1420 | C23: 150 | D23: 0.00 | E23: X | F23: X | G23: X | H23: X | I23: X | J23: X | K23: X | L23: X | M23: X | N23: X | O23: 0.00 | P23: 0.00
A24: безвозмездные поступления | B24: 1430 | C24: 150 | D24: 0.00 | E24: X | F24: X | G24: X | H24: X | I24: X | J24: X | K24: X | L24: X | M24: X | N24: X | O24: 0.00 | P24: 0.00
A25: пожертвования | B25: 1440 | C25: 150 | D25: 0.00 | E25: X | F25: X | G25: X | H25: X | I25: X | J25: X | K25: X | L25: X | M25: X | N25: X | O25: 0.00 | P25: 0.00
A26: прочие доходы, всего | B26: 1500 | C26: 180 | D26: 0.00 | E26: X | F26: X | G26: X | H26: X | I26: X | J26: X | K26: X | L26: X | M26: X | N26: X | O26: 0.00 | P26: 0.00
A27: иные доходы | B27: 1510 | C27: 180 | D27: 0.00 | E27: X | F27: X | G27: X | H27: X | I27: X | J27: X | K27: X | L27: X | M27: X | N27: X | O27: 0.00 | P27: 0.00
A28: доходы от операций с активами, всего | B28: 1900 | C28: х | D28: 0.00 | E28: X | F28: X | G28: X | H28: X | I28: X | J28: X | K28: X | L28: X | M28: X | N28: X | O28: 0.00 | P28: 0.00
A29: прочие поступления, всего | B29: 1980 | C29: х | D29: 0.00 | E29: X | F29: X | G29: X | H29: X | I29: X | J29: X | K29: X | L29: X | M29: X | N29: X | O29: 0.00 | P29: 0.00
A30: увеличение остатков денежных средств за счет возврата дебиторской задолженности прошлых лет | B30: 1981 | C30: 510 | D30: 0.00 | E30: X | F30: X | G30: X | H30: X | I30: X | J30: X | K30: X | L30: X | M30: X | N30: X | O30: 0.00 | P30: 0.00
A31: Расходы, всего | B31: 2000 | C31: х | D31: 105,303,826.93 | E31: 63,345,121.13 | F31: X | G31: 13,415,480.00 | H31: X | I31: X | J31: X | K31: X | L31: 28,543,225.80 | M31: X | N31: X | O31: 85,623,055.98 | P31: 85,623,055.98
A32: в том числе: на выплаты персоналу, всего | B32: 2100 | C32: х | D32: 85,570,521.37 | E32: 50,992,115.26 | F32: X | G32: 13,185,480.00 | H32: X | I32: X | J32: X | K32: X | L32: 21,392,926.11 | M32: X | N32: X | O32: 69,675,583.26 | P32: 69,675,583.26
A33: в том числе: фонд оплаты труда учреждений | B33: 2110 | C33: 111 | D33: 65,739,777.30 | E33: 39,226,939.52 | F33: X | G33: 10,127,096.78 | H33: X | I33: X | J33: X | K33: X | L33: 16,385,741.00 | M33: X | N33: X | O33: 53,465,348.52 | P33: 53,465,348.52
A34: в том числе: оплата труда | B34: 2111 | C34: 111 | D34: 65,309,777.30 | E34: 38,846,939.52 | F34: X | G34: 10,127,096.78 | H34: X | I34: X | J34: X | K34: X | L34: 16,335,741.00 | M34: X | N34: X | O34: 53,215,348.52 | P34: 53,215,348.52
A35: в том числе: оплата труда Педагогических работников | B35: 2111.1 | C35: 111 | D35: 50,171,073.99 | E35: 29,810,121.89 | F35: X | G35: 9,320,207.38 | H35: X | I35: X | J35: X | K35: X | L35: 11,040,744.72 | M35: X | N35: X | O35: 40,850,866.61 | P35: 40,850,866.61
A36: в том числе Педагогические работники ("Указные") | B36: 2111.1.1 | C36: 111 | D36: 50,171,073.99 | E36: 29,810,121.89 | F36: X | G36: 9,320,207.38 | H36: X | I36: X | J36: X | K36: X | L36: 11,040,744.72 | M36: X | N36: X | O36: 40,850,866.61 | P36: 40,850,866.61
A37: оплата труда Прочих педагогических работников | B37: 2111.1.2 | C37: 111 | D37: 0.00 | E37: X | F37: X | G37: X | H37: X | I37: X | J37: X | K37: X | L37: X | M37: X | N37: X | O37: 0.00 | P37: 0.00
A38: оплата труда Прочего персонала | B38: 2111.2 | C38: 111 | D38: 15,138,703.31 | E38: 9,036,817.63 | F38: X | G38: 806,889.40 | H38: X | I38: X | J38: X | K38: X | L38: 5,294,996.28 | M38: X | N38: X | O38: 12,364,481.91 | P38: 12,364,481.91
A39: в том числе: Руководящие работники | B39: 2111.2.1 | C39: 111 | D39: 10,861,142.80 | E39: 7,401,698.40 | F39: X | G39: 806,889.40 | H39: X | I39: X | J39: X | K39: X | L39: 2,652,555.00 | M39: X | N39: X | O39: 9,351,698.40 | P39: 9,351,698.40
A40: Административно-управленческий персонал | B40: 2111.2.2 | C40: 111 | D40: 0.00 | E40: X | F40: X | G40: X | H40: X | I40: X | J40: X | K40: X | L40: X | M40: X | N40: X | O40: 0.00 | P40: 0.00
A41: в том числе: АУП "Указные" | B41: 2111.2.2.1 | C41: 111 | D41: 0.00 | E41: X | F41: X | G41: X | H41: X | I41: X | J41: X | K41: X | L41: X | M41: X | N41: X | O41: 0.00 | P41: 0.00
A42: АУП прочие | B42: 2111.2.2.2 | C42: 111 | D42: 0.00 | E42: X | F42: X | G42: X | H42: X | I42: X | J42: X | K42: X | L42: X | M42: X | N42: X | O42: 0.00 | P42: 0.00
A43: Учебно-вспомогательный персонал | B43: 2111.2.3 | C43: 111 | D43: 3,031,259.68 | E43: 438,818.40 | F43: X | G43: X | H43: X | I43: X | J43: X | K43: X | L43: 2,592,441.28 | M43: X | N43: X | O43: 1,862,482.68 | P43: 1,862,482.68
A44: Младший обслуживающий персонал | B44: 2111.2.4 | C44: 111 | D44: 1,246,300.83 | E44: 1,196,300.83 | F44: X | G44: X | H44: X | I44: X | J44: X | K44: X | L44: 50,000.00 | M44: X | N44: X | O44: 1,150,300.83 | P44: 1,150,300.83
A45: Работники культуры | B45: 2111.2.5 | C45: 111 | D45: 0.00 | E45: X | F45: X | G45: X | H45: X | I45: X | J45: X | K45: X | L45: X | M45: X | N45: X | O45: 0.00 | P45: 0.00
A46: Социальные пособия и компенсация персоналу в денежной форме | B46: 2112 | C46: 111 | D46: 430,000.00 | E46: 380,000.00 | F46: X | G46: X | H46: X | I46: X | J46: X | K46: X | L46: 50,000.00 | M46: X | N46: X | O46: 250,000.00 | P46: 250,000.00
A47: прочие выплаты персоналу, в том числе компенсационного характера, всего | B47: 2120 | C47: 112 | D47: 162,600.00 | E47: 33,400.00 | F47: X | G47: X | H47: X | I47: X | J47: X | K47: X | L47: 129,200.00 | M47: X | N47: X | O47: 162,600.00 | P47: 162,600.00
A48: в том числе: прочие несоциальные выплаты персоналу в денежной и натуральной формах, всего | B48: 2121 | C48: 112 | D48: 12,400.00 | E48: 3,200.00 | F48: X | G48: X | H48: X | I48: X | J48: X | K48: X | L48: 9,200.00 | M48: X | N48: X | O48: 12,400.00 | P48: 12,400.00
A49: транспортные услуги, всего | B49: 2122 | C49: 112 | D49: 0.00 | E49: X | F49: X | G49: X | H49: X | I49: X | J49: X | K49: X | L49: X | M49: X | N49: X | O49: 0.00 | P49: 0.00
A50: прочие работы, услуги, за исключением разработки проектной и сметной документации для ремонта объектов нефинансовых активов, всего | B50: 2123 | C50: 112 | D50: 150,200.00 | E50: 30,200.00 | F50: X | G50: X | H50: X | I50: X | J50: X | K50: X | L50: 120,000.00 | M50: X | N50: X | O50: 150,200.00 | P50: 150,200.00
A51: социальное обеспечение населения, в том числе доставка социальных выплат, всего | B51: 2124 | C51: 112 | D51: 0.00 | E51: X | F51: X | G51: X | H51: X | I51: X | J51: X | K51: X | L51: X | M51: X | N51: X | O51: 0.00 | P51: 0.00
A52: социальные компенсации персоналу в натуральной форме | B52: 2125 | C52: 112 | D52: 0.00 | E52: X | F52: X | G52: X | H52: X | I52: X | J52: X | K52: X | L52: X | M52: X | N52: X | O52: 0.00 | P52: 0.00
A53: иные выплаты, за исключением фонда оплаты труда учреждения, для выполнения отдельных полномочий | B53: 2130 | C53: 113 | D53: 0.00 | E53: X | F53: X | G53: X | H53: X | I53: X | J53: X | K53: X | L53: X | M53: X | N53: X | O53: 0.00 | P53: 0.00
A54: в том числе: прочие несоциальные выплаты персоналу в денежной и натуральной формах, всего | B54: 2131 | C54: 113 | D54: 0.00 | E54: X | F54: X | G54: X | H54: X | I54: X | J54: X | K54: X | L54: X | M54: X | N54: X | O54: 0.00 | P54: 0.00
A55: транспортные услуги, всего | B55: 2132 | C55: 113 | D55: 0.00 | E55: X | F55: X | G55: X | H55: X | I55: X | J55: X | K55: X | L55: X | M55: X | N55: X | O55: 0.00 | P55: 0.00
A56: прочие работы, услуги, за исключением разработки проектной и сметной документации для ремонта объектов нефинансовых активов, всего | B56: 2133 | C56: 113 | D56: 0.00 | E56: X | F56: X | G56: X | H56: X | I56: X | J56: X | K56: X | L56: X | M56: X | N56: X | O56: 0.00 | P56: 0.00
A57: социальное обеспечение населения, в том числе доставка социальных выплат, всего | B57: 2134 | C57: 113 | D57: 0.00 | E57: X | F57: X | G57: X | H57: X | I57: X | J57: X | K57: X | L57: X | M57: X | N57: X | O57: 0.00 | P57: 0.00
A58: взносы по обязательному социальному страхованию на выплаты по оплате труда работников и иные выплаты работникам учреждений, всего | B58: 2140 | C58: 119 | D58: 19,668,144.07 | E58: 11,731,775.74 | F58: X | G58: 3,058,383.22 | H58: X | I58: X | J58: X | K58: X | L58: 4,877,985.11 | M58: X | N58: X | O58: 16,047,634.74 | P58: 16,047,634.74
A59: в том числе: на выплаты по оплате труда | B59: 2141 | C59: 119 | D59: 19,668,144.07 | E59: 11,731,775.74 | F59: X | G59: 3,058,383.22 | H59: X | I59: X | J59: X | K59: X | L59: 4,877,985.11 | M59: X | N59: X | O59: 16,047,634.74 | P59: 16,047,634.74
A60: иные выплаты работникам | B60: 2142 | C60: 119 | D60: 0.00 | E60: X | F60: X | G60: X | H60: X | I60: X | J60: X | K60: X | L60: X | M60: X | N60: X | O60: 0.00 | P60: 0.00
A61: социальные и иные выплаты населению, всего | B61: 2200 | C61: 300 | D61: 250,000.00 | E61: 243,000.00 | F61: X | G61: X | H61: X | I61: X | J61: X | K61: X | L61: 7,000.00 | M61: X | N61: X | O61: 0.00 | P61: 0.00
A62: в том числе: социальные выплаты гражданам, кроме публичных нормативных социальных выплат | B62: 2210 | C62: 320 | D62: 250,000.00 | E62: 243,000.00 | F62: X | G62: X | H62: X | I62: X | J62: X | K62: X | L62: 7,000.00 | M62: X | N62: X | O62: 0.00 | P62: 0.00
A63: из них: пособия, компенсации и иные социальные выплаты гражданам, кроме публичных нормативных обязательств | B63: 2211 | C63: 321 | D63: 250,000.00 | E63: 243,000.00 | F63: X | G63: X | H63: X | I63: X | J63: X | K63: X | L63: 7,000.00 | M63: X | N63: X | O63: 0.00 | P63: 0.00
A64: выплата стипендий, осуществление иных расходов на социальную поддержку обучающихся за счет средств стипендиального фонда | B64: 2220 | C64: 340 | D64: 0.00 | E64: X | F64: X | G64: X | H64: X | I64: X | J64: X | K64: X | L64: X | M64: X | N64: X | O64: 0.00 | P64: 0.00
A65: выплата стипендий | B65: 2221 | C65: 340 | D65: 0.00 | E65: X | F65: X | G65: X | H65: X | I65: X | J65: X | K65: X | L65: X | M65: X | N65: X | O65: 0.00 | P65: 0.00
A66: осуществление иных расходов на социальную поддержку обучающихся за счет средств стипендиального фонда | B66: 2222 | C66: 340 | D66: 0.00 | E66: X | F66: X | G66: X | H66: X | I66: X | J66: X | K66: X | L66: X | M66: X | N66: X | O66: 0.00 | P66: 0.00
A67: на премирование физических лиц за достижения в области культуры, искусства, образования, науки и техники, а также на предоставление грантов с целью поддержки проектов в области науки, культуры и искусства | B67: 2230 | C67: 350 | D67: 0.00 | E67: X | F67: X | G67: X | H67: X | I67: X | J67: X | K67: X | L67: X | M67: X | N67: X | O67: 0.00 | P67: 0.00
A68: иные выплаты населению | B68: 2240 | C68: 360 | D68: 0.00 | E68: X | F68: X | G68: X | H68: X | I68: X | J68: X | K68: X | L68: X | M68: X | N68: X | O68: 0.00 | P68: 0.00
A69: уплата налогов, сборов и иных платежей, всего | B69: 2300 | C69: 850 | D69: 780,000.00 | E69: 750,000.00 | F69: X | G69: X | H69: X | I69: X | J69: X | K69: X | L69: 30,000.00 | M69: X | N69: X | O69: 780,000.00 | P69: 780,000.00
A70: из них: налог на имущество организаций и земельный налог | B70: 2310 | C70: 851 | D70: 740,000.00 | E70: 740,000.00 | F70: X | G70: X | H70: X | I70: X | J70: X | K70: X | L70: X | M70: X | N70: X | O70: 740,000.00 | P70: 740,000.00
A71: иные налоги (включаемые в состав расходов) в бюджеты бюджетной системы Российской Федерации, а также государственная пошлина | B71: 2320 | C71: 852 | D71: 5,000.00 | E71: 5,000.00 | F71: X | G71: X | H71: X | I71: X | J71: X | K71: X | L71: X | M71: X | N71: X | O71: 5,000.00 | P71: 5,000.00
A72: уплата штрафов (в том числе административных), пеней и иных платежей | B72: 2330 | C72: 853 | D72: 35,000.00 | E72: 5,000.00 | F72: X | G72: X | H72: X | I72: X | J72: X | K72: X | L72: 30,000.00 | M72: X | N72: X | O72: 35,000.00 | P72: 35,000.00
A73: уплата штрафов (в том числе административных), пеней | B73: 2331 | C73: 853 | D73: 35,000.00 | E73: 5,000.00 | F73: X | G73: X | H73: X | I73: X | J73: X | K73: X | L73: 30,000.00 | M73: X | N73: X | O73: 35,000.00 | P73: 35,000.00
A74: иные выплаты текущего характера физическим лицам | B74: 2332 | C74: 853 | D74: 0.00 | E74: X | F74: X | G74: X | H74: X | I74: X | J74: X | K74: X | L74: X | M74: X | N74: X | O74: 0.00 | P74: 0.00
A75: иные выплаты текущего характера организациям | B75: 2333 | C75: 853 | D75: 0.00 | E75: X | F75: X | G75: X | H75: X | I75: X | J75: X | K75: X | L75: X | M75: X | N75: X | O75: 0.00 | P75: 0.00
A76: безвозмездные перечисления организациям и физическим лицам | B76: 2400 | C76: х | D76: 0.00 | E76: X | F76: X | G76: X | H76: X | I76: X | J76: X | K76: X | L76: X | M76: X | N76: X | O76: 0.00 | P76: 0.00
A77: из них: гранты, предоставляемые бюджетным учреждениям | B77: 2410 | C77: 613 | D77: 0.00 | E77: X | F77: X | G77: X | H77: X | I77: X | J77: X | K77: X | L77: X | M77: X | N77: X | O77: 0.00 | P77: 0.00
A78: гранты, предоставляемые автономным учреждениям | B78: 2420 | C78: 623 | D78: 0.00 | E78: X | F78: X | G78: X | H78: X | I78: X | J78: X | K78: X | L78: X | M78: X | N78: X | O78: 0.00 | P78: 0.00
A79: гранты, предоставляемые иным некоммерческим организациям (за исключением бюджетных и автономных учреждений) | B79: 2430 | C79: 634 | D79: 0.00 | E79: X | F79: X | G79: X | H79: X | I79: X | J79: X | K79: X | L79: X | M79: X | N79: X | O79: 0.00 | P79: 0.00
A80: гранты, предоставляемые другим организациям и физическим лицам | B80: 2440 | C80: 810 | D80: 0.00 | E80: X | F80: X | G80: X | H80: X | I80: X | J80: X | K80: X | L80: X | M80: X | N80: X | O80: 0.00 | P80: 0.00
A81: взносы в международные организации | B81: 2450 | C81: 862 | D81: 0.00 | E81: X | F81: X | G81: X | H81: X | I81: X | J81: X | K81: X | L81: X | M81: X | N81: X | O81: 0.00 | P81: 0.00
A82: в том числе: перечисления международным организациям, всего | B82: 2451 | C82: 862 | D82: 0.00 | E82: X | F82: X | G82: X | H82: X | I82: X | J82: X | K82: X | L82: X | M82: X | N82: X | O82: 0.00 | P82: 0.00
A83: иные выплаты текущего характера физическим лицам и организациям, всего | B83: 2452 | C83: 862 | D83: 0.00 | E83: X | F83: X | G83: X | H83: X | I83: X | J83: X | K83: X | L83: X | M83: X | N83: X | O83: 0.00 | P83: 0.00
A84: платежи в целях обеспечения реализации соглашений с правительствами иностранных государств и международными организациями | B84: 2460 | C84: 863 | D84: 0.00 | E84: X | F84: X | G84: X | H84: X | I84: X | J84: X | K84: X | L84: X | M84: X | N84: X | O84: 0.00 | P84: 0.00
A85: в том числе: перечисления международным организациям, всего | B85: 2461 | C85: 863 | D85: 0.00 | E85: X | F85: X | G85: X | H85: X | I85: X | J85: X | K85: X | L85: X | M85: X | N85: X | O85: 0.00 | P85: 0.00
A86: иные выплаты текущего характера физическим лицам и организациям, всего | B86: 2462 | C86: 863 | D86: 0.00 | E86: X | F86: X | G86: X | H86: X | I86: X | J86: X | K86: X | L86: X | M86: X | N86: X | O86: 0.00 | P86: 0.00
A87: прочие выплаты (кроме выплат на закупку товаров, работ, услуг) | B87: 2500 | C87: х | D87: 0.00 | E87: X | F87: X | G87: X | H87: X | I87: X | J87: X | K87: X | L87: X | M87: X | N87: X | O87: 0.00 | P87: 0.00
A88: исполнение судебных актов Российской Федерации и мировых соглашений по возмещению вреда, причиненного в результате деятельности учреждения | B88: 2520 | C88: 831 | D88: 0.00 | E88: X | F88: X | G88: X | H88: X | I88: X | J88: X | K88: X | L88: X | M88: X | N88: X | O88: 0.00 | P88: 0.00
A89: расходы на закупку товаров, работ, услуг, всего | B89: 2600 | C89: х | D89: 18,703,305.56 | E89: 11,360,005.87 | F89: X | G89: 230,000.00 | H89: X | I89: X | J89: X | K89: X | L89: 7,113,299.69 | M89: X | N89: X | O89: 15,167,472.72 | P89: 15,167,472.72
A90: в том числе: закупку научно-исследовательских, опытно-конструкторских и технологических работ | B90: 2610 | C90: 241 | D90: 0.00 | E90: X | F90: X | G90: X | H90: X | I90: X | J90: X | K90: X | L90: X | M90: X | N90: X | O90: 0.00 | P90: 0.00
A91: закупку товаров, работ, услуг в целях капитального ремонта государственного (муниципального) имущества | B91: 2630 | C91: 243 | D91: 0.00 | E91: X | F91: X | G91: X | H91: X | I91: X | J91: X | K91: X | L91: X | M91: X | N91: X | O91: 0.00 | P91: 0.00
A92: закупку товаров, работ, услуг в целях капитального ремонта государственного (муниципального) имущества | B92: 2631 | C92: 243 | D92: 0.00 | E92: X | F92: X | G92: X | H92: X | I92: X | J92: X | K92: X | L92: X | M92: X | N92: X | O92: 0.00 | P92: 0.00
A93: закупку товаров, работ, услуг в целях капитального ремонта государственного (муниципального) имущества | B93: 2631.1 | C93: 243 | D93: 0.00 | E93: X | F93: X | G93: X | H93: X | I93: X | J93: X | K93: X | L93: X | M93: X | N93: X | O93: 0.00 | P93: 0.00
A94: закупку товаров, работ, услуг в целях капитального ремонта государственного (муниципального) имущества | B94: 2631.2 | C94: 243 | D94: 0.00 | E94: X | F94: X | G94: X | H94: X | I94: X | J94: X | K94: X | L94: X | M94: X | N94: X | O94: 0.00 | P94: 0.00
A95: закупка товаров, работ, услуг для целей капитальных вложений | B95: 2632 | C95: 243 | D95: 0.00 | E95: X | F95: X | G95: X | H95: X | I95: X | J95: X | K95: X | L95: X | M95: X | N95: X | O95: 0.00 | P95: 0.00
A96: закупка товаров, работ, услуг для целей капитального ремонта | B96: 2633 | C96: 243 | D96: 0.00 | E96: X | F96: X | G96: X | H96: X | I96: X | J96: X | K96: X | L96: X | M96: X | N96: X | O96: 0.00 | P96: 0.00
A97: прочую закупку товаров, работ и услуг, всего | B97: 2640 | C97: 244 | D97: 15,837,690.38 | E97: 8,973,650.38 | F97: X | G97: 230,000.00 | H97: X | I97: X | J97: X | K97: X | L97: 6,634,040.00 | M97: X | N97: X | O97: 12,572,490.84 | P97: 12,572,490.84
A98: в том числе: расходы, всего | B98: 2641 | C98: 244 | D98: 13,632,597.20 | E98: 8,399,597.20 | F98: X | G98: X | H98: X | I98: X | J98: X | K98: X | L98: 5,233,000.00 | M98: X | N98: X | O98: 10,866,397.66 | P98: 10,866,397.66
A99: в том числе: услуги связи, всего | B99: 2641.01 | C99: 244 | D99: 42,976.49 | E99: 32,976.49 | F99: X | G99: X | H99: X | I99: X | J99: X | K99: X | L99: 10,000.00 | M99: X | N99: X | O99: 41,352.95 | P99: 41,352.95
A100: транспортные услуги, всего | B100: 2641.02 | C100: 244 | D100: 100,000.00 | E100: X | F100: X | G100: X | H100: X | I100: X | J100: X | K100: X | L100: 100,000.00 | M100: X | N100: X | O100: 100,000.00 | P100: 100,000.00
A101: коммунальные услуги (за исключением закупки энергетических ресурсов) | B101: 2641.03 | C101: 244 | D101: 239,282.30 | E101: 219,282.30 | F101: X | G101: X | H101: X | I101: X | J101: X | K101: X | L101: 20,000.00 | M101: X | N101: X | O101: 239,282.30 | P101: 239,282.30
A102: арендная плата за пользование имуществом, всего | B102: 2641.04 | C102: 244 | D102: 0.00 | E102: X | F102: X | G102: X | H102: X | I102: X | J102: X | K102: X | L102: X | M102: X | N102: X | O102: 0.00 | P102: 0.00
A103: работы, услуги по содержанию имущества | B103: 2641.05 | C103: 244 | D103: 3,684,280.69 | E103: 1,134,280.69 | F103: X | G103: X | H103: X | I103: X | J103: X | K103: X | L103: 2,550,000.00 | M103: X | N103: X | O103: 1,677,280.69 | P103: 1,677,280.69
A104: прочие работы, услуги | B104: 2641.06 | C104: 244 | D104: 9,566,057.72 | E104: 7,013,057.72 | F104: X | G104: X | H104: X | I104: X | J104: X | K104: X | L104: 2,553,000.00 | M104: X | N104: X | O104: 8,808,481.72 | P104: 8,808,481.72
A105: страхование, всего | B105: 2641.07 | C105: 244 | D105: 0.00 | E105: X | F105: X | G105: X | H105: X | I105: X | J105: X | K105: X | L105: X | M105: X | N105: X | O105: 0.00 | P105: 0.00
A106: в том числе: поступление нефинансовых активов, всего | B106: 2642 | C106: 244 | D106: 2,205,093.18 | E106: 574,053.18 | F106: X | G106: 230,000.00 | H106: X | I106: X | J106: X | K106: X | L106: 1,401,040.00 | M106: X | N106: X | O106: 1,706,093.18 | P106: 1,706,093.18
A107: в том числе: увеличение стоимости основных средств, всего | B107: 2642.01 | C107: 244 | D107: 756,000.00 | E107: 246,000.00 | F107: X | G107: X | H107: X | I107: X | J107: X | K107: X | L107: 510,000.00 | M107: X | N107: X | O107: 510,000.00 | P107: 510,000.00
A108: увеличение стоимости нематериальных активов, всего | B108: 2642.02 | C108: 244 | D108: 0.00 | E108: X | F108: X | G108: X | H108: X | I108: X | J108: X | K108: X | L108: X | M108: X | N108: X | O108: 0.00 | P108: 0.00
A109: увеличение стоимости непроизводственных активов, всего | B109: 2642.03 | C109: 244 | D109: 0.00 | E109: X | F109: X | G109: X | H109: X | I109: X | J109: X | K109: X | L109: X | M109: X | N109: X | O109: 0.00 | P109: 0.00
A110: увеличение стоимости лекарственных препаратов и материалов, применяемых в медицинских целях, всего | B110: 2642.04 | C110: 244 | D110: 0.00 | E110: X | F110: X | G110: X | H110: X | I110: X | J110: X | K110: X | L110: X | M110: X | N110: X | O110: 0.00 | P110: 0.00
A111: увеличение стоимости продуктов питания, всего | B111: 2642.05 | C111: 244 | D111: 0.00 | E111: X | F111: X | G111: X | H111: X | I111: X | J111: X | K111: X | L111: X | M111: X | N111: X | O111: 0.00 | P111: 0.00
A112: увеличение стоимости горюче-смазочных материалов, всего | B112: 2642.06 | C112: 244 | D112: 0.00 | E112: X | F112: X | G112: X | H112: X | I112: X | J112: X | K112: X | L112: X | M112: X | N112: X | O112: 0.00 | P112: 0.00
A113: увеличение стоимости строительных материалов, всего | B113: 2642.07 | C113: 244 | D113: 100,000.00 | E113: X | F113: X | G113: X | H113: X | I113: X | J113: X | K113: X | L113: 100,000.00 | M113: X | N113: X | O113: 100,000.00 | P113: 100,000.00
A114: увеличение стоимости мягкого инвентаря | B114: 2642.08 | C114: 244 | D114: 230,000.00 | E114: X | F114: X | G114: 230,000.00 | H114: X | I114: X | J114: X | K114: X | L114: X | M114: X | N114: X | O114: 0.00 | P114: 0.00
A115: увеличение стоимости прочих материальных запасов | B115: 2642.09 | C115: 244 | D115: 1,034,093.18 | E115: 293,053.18 | F115: X | G115: X | H115: X | I115: X | J115: X | K115: X | L115: 741,040.00 | M115: X | N115: X | O115: 1,011,093.18 | P115: 1,011,093.18
A116: увеличение стоимости материальных запасов для целей капитальных вложений, всего | B116: 2642.10 | C116: 244 | D116: 0.00 | E116: X | F116: X | G116: X | H116: X | I116: X | J116: X | K116: X | L116: X | M116: X | N116: X | O116: 0.00 | P116: 0.00
A117: увеличение стоимости прочих материальных запасов однократного применения | B117: 2642.11 | C117: 244 | D117: 85,000.00 | E117: 35,000.00 | F117: X | G117: X | H117: X | I117: X | J117: X | K117: X | L117: 50,000.00 | M117: X | N117: X | O117: 85,000.00 | P117: 85,000.00
A118: увеличение стоимости неисключительных прав на результаты интеллектуальной деятельности с неопределенным сроком полезного использования | B118: 2642.12 | C118: 244 | D118: 0.00 | E118: X | F118: X | G118: X | H118: X | I118: X | J118: X | K118: X | L118: X | M118: X | N118: X | O118: 0.00 | P118: 0.00
A119: закупка товаров, работ, услуг в целях создания, развития, эксплуатации и вывода из эксплуатации государственных информационных систем | B119: 2650 | C119: 246 | D119: 0.00 | E119: X | F119: X | G119: X | H119: X | I119: X | J119: X | K119: X | L119: X | M119: X | N119: X | O119: 0.00 | P119: 0.00
A120: закупка энергетических ресурсов | B120: 2660 | C120: 247 | D120: 2,865,615.18 | E120: 2,386,355.49 | F120: X | G120: X | H120: X | I120: X | J120: X | K120: X | L120: 479,259.69 | M120: X | N120: X | O120: 2,594,981.88 | P120: 2,594,981.88
A121: капитальные вложения в объекты государственной (муниципальной) собственности, всего | B121: 2700 | C121: 400 | D121: 0.00 | E121: X | F121: X | G121: X | H121: X | I121: X | J121: X | K121: X | L121: X | M121: X | N121: X | O121: 0.00 | P121: 0.00
A122: в том числе: приобретение объектов недвижимого имущества государственными (муниципальными) учреждениями | B122: 2710 | C122: 406 | D122: 0.00 | E122: X | F122: X | G122: X | H122: X | I122: X | J122: X | K122: X | L122: X | M122: X | N122: X | O122: 0.00 | P122: 0.00
A123: строительство (реконструкция) объектов недвижимого имущества государственными (муниципальными) учреждениями | B123: 2720 | C123: 407 | D123: 0.00 | E123: X | F123: X | G123: X | H123: X | I123: X | J123: X | K123: X | L123: X | M123: X | N123: X | O123: 0.00 | P123: 0.00
A124: Выплаты, уменьшающие доход, всего | B124: 3000 | C124: 100 | D124: 0.00 | E124: X | F124: X | G124: X | H124: X | I124: X | J124: X | K124: X | L124: X | M124: X | N124: X | O124: 0.00 | P124: 0.00
A125: в том числе: налог на прибыль | B125: 3010 | D125: 0.00 | E125: X | F125: X | G125: X | H125: X | I125: X | J125: X | K125: X | L125: X | M125: X | N125: X | O125: 0.00 | P125: 0.00
A126: налог на добавленную стоимость | B126: 3020 | D126: 0.00 | E126: X | F126: X | G126: X | H126: X | I126: X | J126: X | K126: X | L126: X | M126: X | N126: X | O126: 0.00 | P126: 0.00
A127: прочие налоги, уменьшающие доход | B127: 3030 | D127: 0.00 | E127: X | F127: X | G127: X | H127: X | I127: X | J127: X | K127: X | L127: X | M127: X | N127: X | O127: 0.00 | P127: 0.00
A128: Прочие выплаты, всего | B128: 4000 | C128: х | D128: 76,080.35 | E128: X | F128: X | G128: 76,080.35 | H128: X | I128: X | J128: X | K128: X | L128: X | M128: X | N128: X | O128: 0.00 | P128: 0.00
A129: из них: возврат в бюджет средств субсидии | B129: 4010 | C129: 610 | D129: 76,080.35 | E129: X | F129: X | G129: 76,080.35 | H129: X | I129: X | J129: X | K129: X | L129: X | M129: X | N129: X | O129: 0.00 | P129: 0.00
A130: возврат в бюджет средств госзадания | B130: 4020 | C130: 610 | D130: 0.00 | E130: X | F130: X | G130: X | H130: X | I130: X | J130: X | K130: X | L130: X | M130: X | N130: X | O130: 0.00 | P130: 0.00

Sheet Анализ ФОТ
A1: Анализ ФОТ
A2: Группа персонала | B2: Средняя численность | C2: Фон оплаты труда (лимит) | D2: Фон оплаты труда (план) | E2: Отклонение
A3: Педагогические работники ("указные") | B3: 38.00 | C3: 0.00 | D3: 37,384,606.94 | E3: =C3-D3 -> -37,384,606.94
A4: Учитель | B4: 38.00 | C4: 0.00 | D4: 37,384,606.94 | E4: -37,384,606.94
A5: Педагогичские работники ("указные") | B5: 1.00 | C5: 0.00 | D5: 12,342,000.36 | E5: -12,342,000.36
A6: Педагог-психолог | B6: 1.00 | C6: 0.00 | D6: 223,705.44 | E6: -223,705.44
A7: Педагог дополнительного образования | C7: 0.00 | D7: 11,334,444.72 | E7: -11,334,444.72
A8: Педагог-организатор | C8: 0.00 | D8: 783,850.20 | E8: -783,850.20
A9: Руководящий персонал | B9: 6.00 | C9: 0.00 | D9: 10,861,142.80 | E9: -10,861,142.80
A10: Директор | B10: 1.00 | C10: 0.00 | D10: 5,237,523.01 | E10: -5,237,523.01
A11: Заместитель директора по УВР | B11: 2.00 | C11: 0.00 | D11: 1,911,908.60 | E11: -1,911,908.60
A12: Заместитель директора по безопасности | C12: 0.00 | D12: 0.00 | E12: 0.00
A13: Заместитель директора по АХЧ | B13: 1.00 | C13: 0.00 | D13: 1,165,141.00 | E13: -1,165,141.00
A14: Заместитель директора по ФЭД | B14: 1.00 | C14: 0.00 | D14: 1,394,905.00 | E14: -1,394,905.00
A15: Начальник отдела кадров | B15: 1.00 | C15: 0.00 | D15: 1,151,665.19 | E15: -1,151,665.19
A16: Заведующий библиотекой | C16: 0.00 | D16: 0.00 | E16: 0.00
A17: МОП | B17: 9.00 | C17: 0.00 | D17: 1,246,300.82 | E17: -1,246,300.82
A18: Уборщик служебных помещений | B18: 7.00 | C18: 0.00 | D18: 565,279.07 | E18: -565,279.07
A19: Рабочий по комплексному обслуживанию зданий | B19: 1.00 | C19: 0.00 | D19: 271,417.75 | E19: -271,417.75
A20: Дворник | B20: 1.00 | C20: 0.00 | D20: 409,604.00 | E20: -409,604.00
A21: Учебно-вспомогательный персонал | B21: 4.00 | C21: 0.00 | D21: 3,031,259.68 | E21: -3,031,259.68
A22: Лаборант | C22: 0.00 | D22: 0.00 | E22: 0.00
A23: Секретарь | B23: 0.00 | C23: 0.00 | D23: 0.00 | E23: 0.00
A24: Документовед | C24: 0.00 | D24: 0.00 | E24: 0.00
A25: Ведущий инженер | C25: 0.00 | D25: 0.00 | E25: 0.00
A26: Ведущий специалист по охране труда | C26: 0.00 | D26: 0.00 | E26: 0.00
A27: Ведущий специалист по закупкам | B27: 1.00 | C27: 0.00 | D27: 939,330.24 | E27: -939,330.24
A28: Ведущий экономист | B28: 1.00 | C28: 0.00 | D28: 983,876.68 | E28: -983,876.68
A29: Администратор | B29: 2.00 | C29: 0.00 | D29: 1,108,052.76 | E29: -1,108,052.76
A30: Прочий педагогический персонал | B30: 0.00 | C30: 0.00 | D30: 444,466.70 | E30: -444,466.70
A31: Советник директора по воспитанию и взаимодействию с детскими общественными объединениями | B31: 0.00 | C31: 0.00 | D31: 444,466.70 | E31: -444,466.70

Sheet Лист согласования
A2: Лист согласования к ПФХД № 2 от 05.02.2024
A4: Согласование инициировано: 31.01.2024 18:22
A5: № | B5: ФИО | C5: Статус | D5: Замечания/Комментарии
A6: 1 | B6: Лёвшин Алексей Иванович (Распорядитель) | C6: Формирование, 23.01.2024 10:36 | D6: Остаток средств учреждения на за 2023 год на 01.01.2024 (на основании форм отчетности)
A7: 2 | B7: Гурбанова Юлия Витальевна (Учреждение) | C7: На доработке, 31.01.2024 17:31
A8: 3 | B8: Гурбанова Юлия Витальевна (Учреждение) | C8: Согласование, 31.01.2024 18:22
A9: 4 | B9: Лёвшин Алексей Иванович (Распорядитель) | C9: На проверке, 01.02.2024 16:15
A10: 5 | B10: Лёвшин Алексей Иванович (Распорядитель) | C10: На доработке, 01.02.2024 16:23 | D10: Письмо учреждения не соответствуют вносимым изменениям
A11: 6 | B11: Гурбанова Юлия Витальевна (Учреждение) | C11: На доработке, 02.02.2024 15:14
A12: 7 | B12: Гурбанова Юлия Витальевна (Учреждение) | C12: Согласование, 02.02.2024 16:51
A13: 8 | B13: Лёвшин Алексей Иванович (Распорядитель) | C13: На проверке, 05.02.2024 10:10
A14: 9 | B14: Лёвшин Алексей Иванович (Распорядитель) | C14: На доработке, 05.02.2024 10:16 | D14: Несоответствие письма учреждения и вносимым изменениям в План ФХД
A15: 10 | B15: Гурбанова Юлия Витальевна (Учреждение) | C15: Согласование, 05.02.2024 11:06
A16: 11 | B16: Лёвшин Алексей Иванович (Распорядитель) | C16: На проверке, 05.02.2024 13:58 | D16: Уточнить обоснование расходов за сет средств остатка
A17: 12 | B17: Лёвшин Алексей Иванович (Распорядитель) | C17: На доработке, 05.02.2024 14:25 | D17: Уточнить обоснование расходов за сет средств остатка
A18: 13 | B18: Гурбанова Юлия Витальевна (Учреждение) | C18: Согласование, 05.02.2024 17:14
A19: 14 | B19: Лёвшин Алексей Иванович (Распорядитель) | C19: На проверке, 06.02.2024 11:55 | D19: Уточнить обоснование расходов за сет средств остатка
A20: 15 | B20: Лёвшин Алексей Иванович (Распорядитель) | C20: Проверен, 06.02.2024 12:05
A21: 16 | B21: Рыковская Татьяна Леонидовна (Распорядитель) | C21: Проверен, 06.02.2024 16:02
A22: 17 | B22: Лёвшин Алексей Иванович (Распорядитель) | C22: Проверен, 06.02.2024 16:11
A23: 18 | B23: Гриценко Александр Александрович (Распорядитель) | C23: Проверен, 06.02.2024 17:22
A24: 19 | B24: Никитина Ольга Борисовна (Распорядитель) | C24: Утвержден, 06.02.2024 17:54
A25: 20 | B25: Гурбанова Юлия Витальевна (Учреждение) | C25: Подписано ЭЦП, 06.02.2024 17:59

Sheet Протокол изменений
A1: Приложение к плану финансово-хозяйственной деятельности
A2: Перечень изменений к плану финансово-хозяйственной деятельности государственного учреждения на 05.02.2024
A4: Вид финансового обеспечения: | D4: Субсидия на финансовое обеспечение выполнения государственного задания
A5: Статья КОСГУ | B5: Расширение КОСГУ | C5: Направление | D5: Наименование статьи затрат | E5: Тип выплаты (план/остаток) | F5: Планируемые выплаты, руб.
F6: Утверждено | G6: Уточнено | H6: Изменение (+/-) | I6: Обоснование
A7: 211 | B7: 7 | C7: Реализация основных общеобразовательных программ среднего общего образования (Очная) | D7: з/п младшего обслуживающего персонала (КВР 111) | E7: Остаток | F7: 0.00 | G7: 39,490.26 | H7: 39,490.26 | I7: выплата компенсации за неиспользуемый отпуск при увольнении при сокращении штатного расписания (ст.178 ТК РФ) за счет остатка средств 2023 года
A8: 211 | B8: 7 | C8: Реализация основных общеобразовательных программ основного общего образования (Очная) | D8: з/п младшего обслуживающего персонала (КВР 111) | E8: Остаток | F8: 0.00 | G8: 53,526.91 | H8: 53,526.91 | I8: выплата компенсации за неиспользуемый отпуск при увольнении при сокращении штатного расписания (ст.178 ТК РФ) за счет остатка средств 2023 года
A9: 211 | B9: 7 | C9: Реализация дополнительных общеразвивающих программ (42.Г42.0) | D9: з/п младшего обслуживающего персонала (КВР 111) | E9: Остаток | F9: 0.00 | G9: 2,982.83 | H9: 2,982.83 | I9: выплата компенсации за неиспользуемый отпуск при увольнении при сокращении штатного расписания (ст.178 ТК РФ) за счет остатка средств 2023 года
A10: 213 | B10: 7 | C10: Реализация основных общеобразовательных программ среднего общего образования (Очная) | D10: Начисления на оплату труда младшего обслуживающего персонала (КВР 119) | E10: Остаток | F10: 0.00 | G10: 11,926.06 | H10: 11,926.06 | I10: взносы в СФР за счет остатка 2023 года
A11: 213 | B11: 7 | C11: Реализация дополнительных общеразвивающих программ (42.Г42.0) | D11: Начисления на оплату труда младшего обслуживающего персонала (КВР 119) | E11: Остаток | F11: 0.00 | G11: 900.81 | H11: 900.81 | I11: взносы в СФР за счет остатка 2023 года
A12: 213 | B12: 7 | C12: Реализация основных общеобразовательных программ основного общего образования (Очная) | D12: Начисления на оплату труда младшего обслуживающего персонала (КВР 119) | E12: Остаток | F12: 0.00 | G12: 16,165.13 | H12: 16,165.13 | I12: взносы в СФР за счет остатка 2023 года
A13: 221 | B13: 1 | C13: Реализация основных общеобразовательных программ основного общего образования (Очная) | D13: Стационарная связь (КВР 244) | E13: Остаток | F13: 0.00 | G13: 905.24 | H13: 905.24 | I13: Кредиторская задолженность за декабрь 2023 по договору с ПАО "Ростелеком" за счет остатка 2023 года
A14: 221 | B14: 1 | C14: Реализация основных общеобразовательных программ среднего общего образования (Очная) | D14: Стационарная связь (КВР 244) | E14: Остаток | F14: 0.00 | G14: 667.85 | H14: 667.85 | I14: Кредиторская задолженность за декабрь 2023 по договору с ПАО "Ростелеком" за счет остатка 2023 года
A15: 221 | B15: 1 | C15: Реализация дополнительных общеразвивающих программ (42.Г42.0) | D15: Стационарная связь (КВР 244) | E15: Остаток | F15: 0.00 | G15: 50.45 | H15: 50.45 | I15: Кредиторская задолженность за декабрь 2023 по договору с ПАО "Ростелеком" за счет остатка 2023 года
A16: 223 | B16: 2 | C16: Реализация основных общеобразовательных программ основного общего образования (Очная) | D16: Электроэнергия (247 КВР) | E16: Остаток | F16: 0.00 | G16: 18,650.30 | H16: 18,650.30 | I16: Кредиторская задолженность за декабрь 2023 по договору ОА "Мосэнергосбыт" за счет остатка 2023 года
A17: 223 | B17: 2 | C17: Реализация дополнительных общеразвивающих программ (42.Г42.0) | D17: Электроэнергия (247 КВР) | E17: Остаток | F17: 0.00 | G17: 1,039.30 | H17: 1,039.30 | I17: Кредиторская задолженность за декабрь 2023 по договору ОА "Мосэнергосбыт" за счет остатка 2023 года
A18: 223 | B18: 2 | C18: Реализация основных общеобразовательных программ среднего общего образования (Очная) | D18: Электроэнергия (247 КВР) | E18: Остаток | F18: 0.00 | G18: 13,759.53 | H18: 13,759.53 | I18: Кредиторская задолженность за декабрь 2023 по договору ОА "Мосэнергосбыт" за счет остатка 2023 года
A19: 223 | B19: 3 | C19: Реализация основных общеобразовательных программ основного общего образования (Очная) | D19: Теплоэнергия (247 КВР) | E19: Остаток | F19: 0.00 | G19: 54,878.73 | H19: 54,878.73 | I19: Кредиторская задолженность за декабрь 2023 по договору ОА "Теплосеть" за счет остатка 2023 года
A20: 223 | B20: 3 | C20: Реализация дополнительных общеразвивающих программ (42.Г42.0) | D20: Теплоэнергия (247 КВР) | E20: Остаток | F20: 0.00 | G20: 3,058.17 | H20: 3,058.17 | I20: Кредиторская задолженность за декабрь 2023 по договору АО "Теплосеть" за счет остатка 2023 года
A21: 223 | B21: 3 | C21: Реализация основных общеобразовательных программ среднего общего образования (Очная) | D21: Теплоэнергия (247 КВР) | E21: Остаток | F21: 0.00 | G21: 40,487.58 | H21: 40,487.58 | I21: Кредиторская задолженность за декабрь 2023 по договору ОА "Теплосеть" за счет остатка 2023 года
A22: 225 | B22: 2 | C22: Реализация основных общеобразовательных программ среднего общего образования (Очная) | D22: Проведение текущего ремонта (КВР 244) | E22: Остаток | F22: 0.00 | G22: 102,839.20 | H22: 102,839.20 | I22: Заключение договоров на содержание имущества (ремонтные работы текущего характера) за счет остатка 2023 года
A23: 225 | B23: 2 | C23: Реализация основных общеобразовательных программ основного общего образования (Очная) | D23: Проведение текущего ремонта (КВР 244) | E23: Остаток | F23: 0.00 | G23: 139,393.00 | H23: 139,393.00 | I23: Заключение договоров на содержание имущества (ремонтные работы текущего характера) за счет остатка 2023 года
A24: 225 | B24: 2 | C24: Реализация дополнительных общеразвивающих программ (42.Г42.0) | D24: Проведение текущего ремонта (КВР 244) | E24: Остаток | F24: 0.00 | G24: 7,767.80 | H24: 7,767.80 | I24: Заключение договоров на содержание имущества (ремонтные работы текущего характера) за счет остатка 2023 года
A25: 225 | B25: 24 | C25: Реализация основных общеобразовательных программ основного общего образования (Очная) | D25: Работы, услуги по содержанию имущества (КВР 244) | E25: Остаток | F25: 0.00 | G25: 59,660.20 | H25: 59,660.20 | I25: Заключение договоров на содержание имущества (ремонтные работы текущего характера) за счет остатка 2023 года
A26: 225 | B26: 24 | C26: Реализация основных общеобразовательных программ среднего общего образования (Очная) | D26: Работы, услуги по содержанию имущества (КВР 244) | E26: Остаток | F26: 0.00 | G26: 44,015.18 | H26: 44,015.18 | I26: Заключение договоров на содержание имущества (ремонтные работы текущего характера) за счет остатка 2023 года
A27: 225 | B27: 24 | C27: Реализация дополнительных общеразвивающих программ (42.Г42.0) | D27: Работы, услуги по содержанию имущества (КВР 244) | E27: Остаток | F27: 0.00 | G27: 3,324.62 | H27: 3,324.62 | I27: Заключение договоров на содержание имущества за счет остатка 2023 года
A28: 226 | B28: 2 | C28: Реализация основных общеобразовательных программ основного общего образования (Очная) | D28: Оплата охранных услуг (по договорам физической охраны: ЧОПы и др.) (КВР 244) | E28: Остаток | F28: 0.00 | G28: 63,884.37 | H28: 63,884.37 | I28: кредиторская задолженность за декабрь 2023 года по договору на оказание охранных услуг за счет остатка 2023 года
A29: 226 | B29: 2 | C29: Реализация основных общеобразовательных программ среднего общего образования (Очная) | D29: Оплата охранных услуг (по договорам физической охраны: ЧОПы и др.) (КВР 244) | E29: Остаток | F29: 0.00 | G29: 47,131.62 | H29: 47,131.62 | I29: кредиторская задолженность за декабрь 2023 года по договору на оказание охранных услуг за счет остатка 2023 года
A30: 226 | B30: 2 | C30: Реализация дополнительных общеразвивающих программ (42.Г42.0) | D30: Оплата охранных услуг (по договорам физической охраны: ЧОПы и др.) (КВР 244) | E30: Остаток | F30: 0.00 | G30: 3,560.01 | H30: 3,560.01 | I30: кредиторская задолженность за декабрь 2023 года по договору на оказание охранных услуг за счет остатка 2023 года
A31: 226 | B31: 6 | C31: Реализация дополнительных общеразвивающих программ (42.Г42.0) | D31: Прочие работы, услуги (КВР 244) | E31: Остаток | F31: 0.00 | G31: 6,214.24 | H31: 6,214.24 | I31: Заключении договоров на оказание прочих работ/услуг за счет остатка 2023 года
A32: 226 | B32: 6 | C32: Реализация основных общеобразовательных программ основного общего образования (Очная) | D32: Прочие работы, услуги (КВР 244) | E32: Остаток | F32: 0.00 | G32: 111,514.40 | H32: 111,514.40 | I32: Заключении договоров на оказание прочих работ/услуг за счет остатка 2023 года
A33: 226 | B33: 6 | C33: Реализация основных общеобразовательных программ среднего общего образования (Очная) | D33: Прочие работы, услуги (КВР 244) | E33: Остаток | F33: 0.00 | G33: 82,271.36 | H33: 82,271.36 | I33: Заключении договоров на оказание прочих работ/услуг за счет остатка 2023 года
A34: 226 | B34: 7 | C34: Реализация дополнительных общеразвивающих программ (42.Г42.0) | D34: Расходы на программное обеспечение (КВР 244) | E34: Остаток | F34: 0.00 | G34: 3,107.12 | H34: 3,107.12 | I34: Заключение договоров на оказание прочих работ/услуг (приобретение прав на ПО) за счет остатка 2023 года
A35: 226 | B35: 7 | C35: Реализация основных общеобразовательных программ основного общего образования (Очная) | D35: Расходы на программное обеспечение (КВР 244) | E35: Остаток | F35: 0.00 | G35: 55,757.20 | H35: 55,757.20 | I35: Заключение договоров на оказание прочих работ/услуг (приобретение прав на ПО) за счет остатка 2023 года
A36: 226 | B36: 7 | C36: Реализация основных общеобразовательных программ среднего общего образования (Очная) | D36: Расходы на программное обеспечение (КВР 244) | E36: Остаток | F36: 0.00 | G36: 41,135.68 | H36: 41,135.68 | I36: Заключение договоров на оказание прочих работ/услуг (приобретение прав на ПО) за счет остатка 2023 года
A37: 264 | B37: 1 | C37: Реализация основных общеобразовательных программ среднего общего образования (Очная) | D37: Пенсии, пособия, выплачиваемые бывшим работникам (КВР 321) | E37: Остаток | F37: 0.00 | G37: 99,959.71 | H37: 99,959.71 | I37: Выплата компенсации в размере 2-х месячного среднего месячного заработка при сокращении штатного расписания (ст.178 ТК РФ) за счет остатка 2023 года
A38: 264 | B38: 1 | C38: Реализация основных общеобразовательных программ основного общего образования (Очная) | D38: Пенсии, пособия, выплачиваемые бывшим работникам (КВР 321) | E38: Остаток | F38: 0.00 | G38: 135,490.00 | H38: 135,490.00 | I38: Выплата компенсации в размере 2-х месячного среднего месячного заработка при сокращении штатного расписания (ст.178 ТК РФ) за счет остатка 2023 года
A39: 264 | B39: 1 | C39: Реализация дополнительных общеразвивающих программ (42.Г42.0) | D39: Пенсии, пособия, выплачиваемые бывшим работникам (КВР 321) | E39: Остаток | F39: 0.00 | G39: 7,550.29 | H39: 7,550.29 | I39: Выплата компенсации в размере 2-х месячного среднего месячного заработка при сокращении штатного расписания (ст.178 ТК РФ) за счет остатка 2023 года
A40: 266 | B40: 1 | C40: Реализация дополнительных общеразвивающих программ (42.Г42.0) | D40: Социальные пособия и компенсации персоналу в денежной форме (КВР 111) | E40: Остаток | F40: 0.00 | G40: 5,592.81 | H40: 5,592.81 | I40: выходное пособие за 1 месяц при сокращении штатного расписания (ст.178 ТК РФ) за счет остатка 2023 года
A41: 266 | B41: 1 | C41: Реализация основных общеобразовательных программ среднего общего образования (Очная) | D41: Социальные пособия и компенсации персоналу в денежной форме (КВР 111) | E41: Остаток | F41: 0.00 | G41: 74,044.23 | H41: 74,044.23 | I41: выходное пособие за 1 месяц при сокращении штатного расписания (ст.178 ТК РФ) за счет остатка 2023 года
A42: 266 | B42: 1 | C42: Реализация основных общеобразовательных программ основного общего образования (Очная) | D42: Социальные пособия и компенсации персоналу в денежной форме (КВР 111) | E42: Остаток | F42: 0.00 | G42: 100,362.96 | H42: 100,362.96 | I42: выходное пособие за 1 месяц при сокращении штатного расписания (ст.178 ТК РФ) за счет остатка 2023 года
A43: 310 | B43: 3 | C43: Реализация основных общеобразовательных программ среднего общего образования (Очная) | D43: Прочие основные средства (КВР 244) | E43: Остаток | F43: 0.00 | G43: 101,193.79 | H43: 101,193.79 | I43: Заключении договоров на приобретение основных средств за счет остатка 2023 года
A44: 310 | B44: 3 | C44: Реализация дополнительных общеразвивающих программ (42.Г42.0) | D44: Прочие основные средства (КВР 244) | E44: Остаток | F44: 0.00 | G44: 7,643.50 | H44: 7,643.50 | I44: Заключении договоров на приобретение основных средств за счет остатка 2023 года
A45: 310 | B45: 3 | C45: Реализация основных общеобразовательных программ основного общего образования (Очная) | D45: Прочие основные средства (КВР 244) | E45: Остаток | F45: 0.00 | G45: 137,162.71 | H45: 137,162.71 | I45: Заключении договоров на приобретение основных средств за счет остатка 2023 года
A46: 346 | B46: 1 | C46: Реализация основных общеобразовательных программ основного общего образования (Очная) | D46: Прочие расходные материалы (КВР 244) | E46: Остаток | F46: 0.00 | G46: 12,824.15 | H46: 12,824.15 | I46: Заключении договоров на приобретение расходных материалов за счет остатка 2023 года
A47: 346 | B47: 1 | C47: Реализация дополнительных общеразвивающих программ (42.Г42.0) | D47: Прочие расходные материалы (КВР 244) | E47: Остаток | F47: 0.00 | G47: 714.64 | H47: 714.64 | I47: Заключении договоров на приобретение расходных материалов за счет остатка 2023 года
A48: 346 | B48: 1 | C48: Реализация основных общеобразовательных программ среднего общего образования (Очная) | D48: Прочие расходные материалы (КВР 244) | E48: Остаток | F48: 0.00 | G48: 9,461.21 | H48: 9,461.21 | I48: Заключении договоров на приобретение расходных материалов за счет остатка 2023 года
A49: Итого: | F49: =SUM(F7:F48) -> 0.00 | G49: =SUM(G7:G48) -> 1,722,065.15 | H49: =SUM(H7:H48) -> 1,722,065.15
A51: Вид финансового обеспечения: | D51: Субсидии на иные цели
A52: Статья КОСГУ | B52: Расширение КОСГУ | C52: Направление | D52: Наименование статьи затрат | E52: Тип выплаты (план/остаток) | F52: Планируемые выплаты, руб.
F53: Утверждено | G53: Уточнено | H53: Изменение (+/-) | I53: Обоснование
A54: 211 | B54: 1 | C54: 0142499002-0702.03 1 01 15510.623 | D54: з/п педагогич. работников "указные" (КВР 111) ЦС | E54: План | F54: 0.00 | G54: 8,158,548.39 | H54: 8,158,548.39 | I54: Распоряжение от 18.12.2023 № Р-1140 на предоставление Гранта
A55: 211 | B55: 1 | C55: 0142401001-0702.03 1 01 R3030.622 | D55: з/п педагогич. работников "указные" (КВР 111) ЦС | E55: План | F55: 0.00 | G55: 840,000.00 | H55: 840,000.00 | I55: Распоряжение от 26.01.2024 № Р-79 на вознаграждение за классное руководство
A56: 211 | B56: 1 | C56: 0142499003-0709.03 1 EВ 51790.622 | D56: з/п педагогич. работников "указные" (КВР 111) ЦС | E56: План | F56: 0.00 | G56: 321,658.99 | H56: 321,658.99 | I56: Распоряжение Министерства образования Московской области от 01.02.2024 № Р-121 на выплаты советнику директора
A57: 211 | B57: 3 | C57: 0142499002-0702.03 1 01 15510.623 | D57: з/п руководящих работников (КВР 111) ЦС | E57: План | F57: 0.00 | G57: 806,889.40 | H57: 806,889.40 | I57: Распоряжение от 18.12.2023 № Р-1140 на предоставление Гранта
A58: 213 | B58: 1 | C58: 0142499003-0709.03 1 EВ 51790.622 | D58: Начисления на оплату труда педагогич. работников "указные" (КВР 119) ЦС | E58: План | F58: 0.00 | G58: 97,141.01 | H58: 97,141.01 | I58: Распоряжение Министерства образования Московской области от 01.02.2024 № Р-121 на выплаты советнику директора
A59: 213 | B59: 1 | C59: 0142499002-0702.03 1 01 15510.623 | D59: Начисления на оплату труда педагогич. работников "указные" (КВР 119) ЦС | E59: План | F59: 0.00 | G59: 2,463,881.61 | H59: 2,463,881.61 | I59: Распоряжение от 18.12.2023 № Р-1140 на предоставление Гранта
A60: 213 | B60: 1 | C60: 0142401001-0702.03 1 01 R3030.622 | D60: Начисления на оплату труда педагогич. работников "указные" (КВР 119) ЦС | E60: План | F60: 0.00 | G60: 253,680.00 | H60: 253,680.00 | I60: Распоряжение от 26.01.2024 № Р-79 на вознаграждение за классное руководство
A61: 213 | B61: 3 | C61: 0142499002-0702.03 1 01 15510.623 | D61: Начисления на оплату труда руководящих работников (КВР 119) ЦС | E61: План | F61: 0.00 | G61: 243,680.60 | H61: 243,680.60 | I61: Распоряжение от 18.12.2023 № Р-1140 на предоставление Гранта
A62: 345 | B62: 1 | C62: 0142437037-0702.03 1 03 00590.622 | D62: Приобретение мягкого инвентаря ЦС (КВР 244) | E62: План | F62: 0.00 | G62: 230,000.00 | H62: 230,000.00 | I62: Распоряжение Министерства образования Московской области от 31.01.2024 № Р-112 на приобретение ГДЗК
A63: Итого: | F63: =SUM(F54:F62) -> 0.00 | G63: =SUM(G54:G62) -> 13,415,480.00 | H63: =SUM(H54:H62) -> 13,415,480.00
A65: Вид финансового обеспечения: | D65: Приносящая доход деятельность
A66: Статья КОСГУ | B66: Расширение КОСГУ | C66: Направление | D66: Наименование статьи затрат | E66: Тип выплаты (план/остаток) | F66: Планируемые выплаты, руб.
F67: Утверждено | G67: Уточнено | H67: Изменение (+/-) | I67: Обоснование
A68: 211 | B68: 3 | C68: ПД (3)-0000.00 0 00 00000.000 | D68: з/п руководящих работников (КВР 111) ПД | E68: Остаток | F68: 0.00 | G68: 702,555.00 | H68: 702,555.00 | I68: Увеличение ФЗП работников за счёт остатка средств 2023 года
A69: 211 | B69: 6 | C69: ПД (3)-0000.00 0 00 00000.000 | D69: з/п учебно-вспомогательного персонала (КВР 111) ПД | E69: Остаток | F69: 0.00 | G69: 1,168,777.00 | H69: 1,168,777.00 | I69: Увеличение ФЗП работников за счет остатка средств 2023 года
A70: 213 | B70: 3 | C70: ПД (3)-0000.00 0 00 00000.000 | D70: Начисления на оплату труда руководящих работников (КВР 119) ПД | E70: Остаток | F70: 0.00 | G70: 180,163.46 | H70: 180,163.46 | I70: увеличение взносов в СФР за счет остатка средств 2023 года
A71: 213 | B71: 6 | C71: ПД (3)-0000.00 0 00 00000.000 | D71: Начисления на оплату труда учебно-вспомогательного персонала (КВР 119) ПД | E71: Остаток | F71: 0.00 | G71: 352,970.65 | H71: 352,970.65 | I71: увеличение взносов в СФР за счет остатка средств 2023 года
A72: 223 | B72: 2 | C72: ПД (3)-0000.00 0 00 00000.000 | D72: Электроэнергия ПД (КВР 247) | E72: Остаток | F72: 0.00 | G72: 672.27 | H72: 672.27 | I72: Кредиторская задолженность за декабрь 2023 по договору с ОА "Мосэнергосбыт" за счет остатка средств 2023 года
A73: 223 | B73: 3 | C73: ПД (3)-0000.00 0 00 00000.000 | D73: Теплоэнергия ПД (КВР 247) | E73: Остаток | F73: 0.00 | G73: 138,087.42 | H73: 138,087.42 | I73: Кредиторская задолженность за декабрь 2023 по договору с ОАО "Теплосеть" за счет остатка средств 2023 года
A74: 225 | B74: 2 | C74: ПД (3)-0000.00 0 00 00000.000 | D74: Текущий ремонт ПД (КВР 244) | E74: Остаток | F74: 0.00 | G74: 1,500,000.00 | H74: 1,500,000.00 | I74: Выполнение ремонтных работ текущего характера за счет остатка средств 2023 года
A75: 225 | B75: 24 | C75: ПД (3)-0000.00 0 00 00000.000 | D75: Работы, услуги по содержанию имущества (КВР 244) ПД | E75: Остаток | F75: 0.00 | G75: 150,000.00 | H75: 150,000.00 | I75: Выполнение прочих работ/услуг по содержанию имущества за счет остатка средств 2023 года
A76: 226 | B76: 6 | C76: ПД (3)-0000.00 0 00 00000.000 | D76: Прочие работы, услуги ПД (КВР 244) | E76: Остаток | F76: 0.00 | G76: 243,000.00 | H76: 243,000.00 | I76: Оказание услуг по обучению сотрудников, прочие работы/услуги за счет остатка средств 2023 года
A77: 226 | B77: 7 | C77: ПД (3)-0000.00 0 00 00000.000 | D77: Расходы на программное обеспечение ПД (КВР 244) | E77: Остаток | F77: 0.00 | G77: 100,000.00 | H77: 100,000.00 | I77: Приобретение неисключительных прав на использование программного обеспечения за счет остатка средств 2023 года
A78: 264 | B78: 1 | C78: ПД (3)-0000.00 0 00 00000.000 | D78: Пенсии, пособия, выплачиваемые бывшим работникам (КВР 321) ПД | E78: Остаток | F78: 0.00 | G78: 7,000.00 | H78: 7,000.00 | I78: Выплата компенсации в размере среднего месячного заработка за 2 мес. при сокращения штатного расписания за счет остатка средств 2023 года
A79: Итого: | F79: =SUM(F68:F78) -> 0.00 | G79: =SUM(G68:G78) -> 4,543,225.80 | H79: =SUM(H68:H78) -> 4,543,225.80
A81: Вид финансового обеспечения: | D81: Обязательное медицинское страхование
A82: Статья КОСГУ | B82: Расширение КОСГУ | C82: Направление | D82: Наименование статьи затрат | E82: Тип выплаты (план/остаток) | F82: Планируемые выплаты, руб.
F83: Утверждено | G83: Уточнено | H83: Изменение (+/-) | I83: Обоснование
A84: Изменения отсутствуют
